Workbook

Sheet Structure and Purpose
A1: NO_PRINT | B1: Estonia | C1: 2023
A2: 2 | B2: Structure and Purpose
A3: 3
A4: 4 | B4: The annual monitoring report should cover the monitoring of achieving the targets set, as well as reporting on the progress on performance indicators without targets. Any other complementary information can be added as attachment, if deemed necessary. This report should be prepared according to the principle of “reporting by exception”, meaning that minimum clarifications are sufficient when performance is on target. More substantive explanations of the situation may be given when performance lags behind targets and a description of the mitigation and corrective measures planned and/or already undertaken is provided.
A5: 5
A6: 6 | B6: Furthermore, to reduce the administrative burden on Member States the template is already prefilled to the maximum extent possible. Information taken from the RP3 Performance Plans is identified by the terminology "Value from PP".
A7: 7
A8: 8 | B8: In light of this, different field categories have been identified and colour-coded to facilitate the reporting:
A9: 9
A10: 10
A11: 11
A12: 12
A13: 13
A14: 14
A15: 15
A16: 16
A17: 17 | B17: Tips and tricks
A18: 18
A19: 19 | B19: · Guidance text is provided as embedded comments and will appear by hovering above the marked cells.
A20: 20 | B20: · Do not add lines/columns to avoid erasing the prefilled or pre-calculated areas.
A21: 21 | B21: · Manually adapt height of cell if necessary, in particular for text or description boxes.
A22: 22 | B22: · Within a cell, press ALT+ENTER to jump to the next line.
A23: 23
A24: 24
A25: 25
A26: 26 | B26: · For existing text from another source, copy and paste into the formula bar will ensure that all text remains within a single cell.
A27: 27
A28: 28
A29: 29 | B29: · In order to print your performance plan, please click on the "print pdf" button in section “Signatories”.
A30: 30

Sheet Cover Page
B1: Estonia | C1: 2.02E+03
A2: 2
A3: 3
A4: 4
A5: 5
A6: 6
A7: 7
A8: 8
A9: 9
A10: 10
A11: 11
A12: 12
A13: 13
A14: 14
A15: 15
A16: 16
A17: 17
A18: 18 | B18: Monitoring Report 2023
A19: 19
A20: Estonia | B20: =Signatories!C7 -> Estonia
A21: 21
A22: 22
A23: 23
A24: 24
A25: 25 | B25: Third Reference Period (2020-2024)

Sheet Signatories
A1: 1 | B1: Estonia | C1: 2023
A2: 2 | B2: Signatories
A3: 3
A4: 4
A5: 5
A6: 6 | B6: Monitoring report details
A7: 7 | B7: Name | C7: Estonia
A8: 8 | B8: Version number
A9: 9 | B9: Date of issue
A10: 10 | B10: Date of adoption
A11: 11
A12: 12 | B12: NSA names | C12: Name, title and signature of representative
A13: 13 | B13: Estonian Transport Administration
A14: 14
A15: 15
A16: 16
A17: 17
A18: 18
A19: 19
A20: 20
A21: 21
A22: 22 | B22: Additional comments
A23: 23
A24: 24

Sheet Table of Content
A1: 1 | B1: Estonia | C1: 2023
A2: 2 | B2: Table of Contents
A3: 3
A4: 4 | B4: SIGNATORIES
A5: 5 | B5: 5
A6: 6 | B6: 1 INTRODUCTION
A7: 7 | B7: 1.1 SCOPE
A8: 8 | B8: 1.2 AIRPORTS
A9: 9 | B9: 1.3 OVERVIEW
A10: 10 | B10: 1.4 TRAFFIC FIGURE
A11: 11 | B11: 1.5 OTHER GENERAL INFORMATION
A12: 12
A13: 13 | B13: 2 PERFORMANCE AT LOCAL LEVEL
A14: 14 | B14: 2.1 SAFETY
A15: 15 | B15: 2.1.1 KPI
A16: 16 | B16: 2.1.1.(a) Safety KPI #1: Level of Effectiveness of Safety Management
A17: 17 | B17: 2.1.2 PIs
A18: 18 | B18: 2.1.2.(a) Safety PI #1: Rate of runway incursions
A19: 19 | B19: 2.1.2.(b) Safety PI #2: Rate of minima infringements
A20: 20 | B20: 2.1.2.(c) Safety PI #3: Rate of runway incursions at an airport
A21: 21 | B21: 2.1.2.(d) Safety PI #4: Rate of minima infringements at ANSP
A22: 22 | B22: 2.1.2.(e) Safety PI #5: Application of automated safety data recording systems
A23: 23 | B23: 2.1.3 Additional Safety Indicators
A24: 24 | B24: 2.2 ENVIRONMENT
A25: 25 | B25: 2.2.1 KPIs
A26: 26 | B26: 2.2.1.(a) Environment KPI #1: Horizontal en-route flight efficiency (KEA)
A27: 27 | B27: 2.2.2 PIs
A28: 28 | B28: 2.2.2.(a) Environment PI #1: Horizontal en-route flight efficiency of last filed flight plan trajectory at local level
A29: 29 | B29: 2.2.2.(b) Environment PI #2: Horizontal en-route flightefficiency of shortest constrained trajectory at local level
A30: 30 | B30: 2.2.2.(c) Environment PI #3: Additional time in taxi-out phase at local level
A31: 31 | B31: 2.2.2.(d) Environment PI #4: Additional time in terminal airspace at local level
A32: 32 | B32: 2.2.2.(e) Environment PI #5: Share of arrivals applying continuous descent operation at local level
A33: 33 | B33: 2.2.2.(f) Environment PI #6: Effective use of reserved or segregated local airspace
A34: 34 | B34: 2.2.2.(g) Environment PI #7: Rate of planning via available local airspace structures
A35: 35 | B35: 2.2.2.(h) Environment PI #8: Rate of using available local airspace structures
A36: 36 | B36: 2.2.3 Additional Environment Indicators
A37: 37 | B37: 2.3 CAPACITY
A38: 38 | B38: 2.3.1 KPIs
A39: 39 | B39: 2.3.1.(a) Capacity KPI #1: En-route ATFM delay per flight
A40: 40 | B40: 2.3.1.(b) Capacity KPI #2: Terminal and airport ANS ATFM arrival delay per flight
A41: 41 | B41: 2.3.2 PIs
A42: 42 | B42: 2.3.2.(a) Capacity PI #1: Adherence to ATFM slots
A43: 43 | B43: 2.3.2.(b) Capacity PI #2: Air traffic control pre-departure delay
A44: 44 | B44: 2.3.2.(c) Capacity PI #3: Average departure delay from all causes per flight
A45: 45 | B45: 2.3.3 Additional Capacity Indicators
A46: 46 | B46: 2.4 COST-EFFICIENCY
A47: 47 | B47: 2.4.1 KPIs
A48: 48 | B48: 2.4.1.(a) Cost efficiency KPI #1: Determined unit cost (DUC) for en-route ANS
A49: 49 | B49: 2.4.1.(b) Cost efficiency KPI #2: Determined unit cost (DUC) for terminal ANS
A50: 50 | B50: 2.4.2 PIs
A51: 51 | B51: 2.4.2.(a) Cost efficiency PI #1: Actual unit cost incurred by users for en route ANS
A52: 52 | B52: 2.4.2.(b) Cost efficiency PI #2: Actual unit cost incurred by users for terminal ANS
A53: 53 | B53: 2.4.3 Additional Cost-efficiency Indicators
A54: 54
A55: 55 | B55: 3 INCENTIVE SCHEMES
A56: 24 | B56: 3.1 ENVIRONMENT
A57: 24 | B57: 3.2 CAPACITY
A58: 38 | B58: 3.2.1 - Capacity (En-route)
A59: 38 | B59: 3.2.2 - Capacity (Terminal)
A60: 24 | B60: 3.3 ADDITIONAL INCENTIVE SCHEMES
A62: 57 | B62: 4 INVESTMENTS
A63: 58
A64: 59 | B64: 5 MILITARY DIMENSION
A65: 60
A66: 61 | B66: 6 ANNEXES

Sheet 1. INTRODUCTION >>>
A1: NO_PRINT | B1: Estonia | C1: 2023
A2: 2 | B2: SECTION 1: INTRODUCTION

Sheet 1.1 Scope
A1: 1 | B1: Estonia | C1: 2023
A2: 2 | B2: 1 - INTRODUCTION
A3: 3
A4: 4 | B4: 1.1 Scope
A5: 5
A6: 6 | B6: 1.1.1 Background
A7: 7
A8: 8 | B8: Period covered by the monitoring report | C8: 01 Jan. 2023 - 31 Dec. 2023
A9: 9 | B9: NSAs responsible for drawing up the monitoring report | C9: Estonian Transport Administration
A10: 10 | B10: Adoption date of final performance plan (or, if not yet adopted, of the most recent draft performance plan) | C10: 17/08/2022
A11: 11 | B11: Additional comments
A12: 12
A13: 13 | B13: 1.1.2 ANSPs
A14: 14
A15: 15 | B15: Number of ANSPs | C15: 1
A16: 16
A17: 17 | B17: ANSP name | C17: EANS
A18: 18 | B18: Services | C18: ATS,AIS, CNS
A19: 19 | B19: Geographical scope | C19: Tallinn FIR
A20: 20
A21: 21 | B21: ANSP name
A22: 22 | B22: Services
A23: 23 | B23: Geographical scope
A24: 24
A25: 25 | B25: ANSP name
A26: 26 | B26: Services
A27: 27 | B27: Geographical scope
A28: 28
A29: 29 | B29: ANSP name
A30: 30 | B30: Services
A31: 31 | B31: Geographical scope
A32: 32
A33: 33 | B33: ANSP name
A34: 34 | B34: Services
A35: 35 | B35: Geographical scope
A36: 36
A37: 37 | B37: ANSP name
A38: 38 | B38: Services
A39: 39 | B39: Geographical scope
A40: 40
A41: 41 | B41: ANSP name
A42: 42 | B42: Services
A43: 43 | B43: Geographical scope
A44: 44
A45: 45 | B45: ANSP name
A46: 46 | B46: Services
A47: 47 | B47: Geographical scope
A48: 48
A49: 49 | B49: ANSP name
A50: 50 | B50: Services
A51: 51 | B51: Geographical scope
A52: 52
A53: 53 | B53: ANSP name
A54: 54 | B54: Services
A55: 55 | B55: Geographical scope
A56: 56
A57: 57 | B57: ANSP name
A58: 58 | B58: Services
A59: 59 | B59: Geographical scope
A60: 60
A61: 61 | B61: ANSP name
A62: 62 | B62: Services
A63: 63 | B63: Geographical scope
A64: 64
A65: 65 | B65: 1.1.3 Other entities
A66: 66
A67: 67 | B67: Number of other entities | C67: 5
A68: 68
A69: 69 | B69: Entity name | C69: Estonian Aviation Academy
A70: 70 | B70: Domain of activity | C70: Training Organisation
A71: 71
A72: 72 | B72: Entity name | C72: Estonian Civil Aviation Administation
A73: 73 | B73: Domain of activity | C73: NSA
A74: 74
A75: 75 | B75: Entity name | C75: Ministry of Interior
A76: 76 | B76: Domain of activity | C76: SAR
A77: 77
A78: 78 | B78: Entity name | C78: EUROCONTROL
A79: 79 | B79: Domain of activity | C79: International organisation supporting European aviation
A80: 80
A81: 81 | B81: Entity name | C81: Ministry of Economic Affairs and Communications
A82: 82 | B82: Domain of activity
A83: 83
A84: 84 | B84: Entity name
A85: 85 | B85: Domain of activity
A86: 86
A87: 87 | B87: Entity name
A88: 88 | B88: Domain of activity
A89: 89
A90: 90 | B90: Entity name
A91: 91 | B91: Domain of activity
A92: 92
A93: 93 | B93: 1.1.4 Charging zones
A94: 94
A95: 95 | B95: En route:
A96: 96 | B96: Number of en route charging zones | C96: 1
A97: 97
A98: 98 | B98: En route charging zone | C98: Estonia
A99: 99 | B99: En route charging zone
A100: 100 | B100: En route charging zone
A101: 101 | B101: En route charging zone
A102: 102 | B102: En route charging zone
A103: 103 | B103: En route charging zone
A104: 104 | B104: En route charging zone
A105: 105 | B105: En route charging zone
A106: 106
A107: 107 | B107: Terminal:
A108: 108 | B108: Number of terminal charging zones | C108: 1
A109: 109
A110: 110 | B110: Terminal charging zone | C110: Estonia
A111: 111 | B111: Terminal charging zone
A112: 112 | B112: Terminal charging zone
A113: 113 | B113: Terminal charging zone
A114: 114 | B114: Terminal charging zone
A115: 115 | B115: Terminal charging zone
A116: 116 | B116: Terminal charging zone
A117: 117 | B117: Terminal charging zone
A118: 118
A119: 119 | B119: 1.1.5 Additional information
A120: 120
A121: 121

Sheet 1.2 Airports
A1: 1 | B1: Estonia | C1: 2023
A2: 2 | B2: 1 - INTRODUCTION
A3: 3
A4: 4 | B4: 1.2 List of Airports
A5: 5
A6: 6 | B6: 1.2.1 Airports
A7: 7
A8: 8 | B8: Number of airports | C8: 2
A9: 9
A10: 10 | B10: Airport name | C10: Tallin
A11: 11 | B11: ICAO code | C11: EETN
A12: 12 | B12: Charging zone | C12: Estonia
A13: 13
A14: 14 | B14: Airport name | C14: Tartu
A15: 15 | B15: ICAO code | C15: EETU
A16: 16 | B16: Charging zone | C16: Estonia
A17: 17
A18: 18 | B18: Airport name
A19: 19 | B19: ICAO code
A20: 20 | B20: Charging zone
A21: 21
A22: 22 | B22: Airport name
A23: 23 | B23: ICAO code
A24: 24 | B24: Charging zone
A25: 25
A26: 26 | B26: Airport name
A27: 27 | B27: ICAO code
A28: 28 | B28: Charging zone
A29: 29
A30: 30 | B30: Airport name
A31: 31 | B31: ICAO code
A32: 32 | B32: Charging zone
A33: 33
A34: 34 | B34: Airport name
A35: 35 | B35: ICAO code
A36: 36 | B36: Charging zone
A37: 37
A38: 38 | B38: Airport name
A39: 39 | B39: ICAO code
A40: 40 | B40: Charging zone
A41: 41
A42: 42 | B42: Airport name
A43: 43 | B43: ICAO code
A44: 44 | B44: Charging zone
A45: 45
A46: 46 | B46: Airport name
A47: 47 | B47: ICAO code
A48: 48 | B48: Charging zone
A49: 49
A50: 50 | B50: Airport name
A51: 51 | B51: ICAO code
A52: 52 | B52: Charging zone
A53: 53
A54: 54 | B54: Airport name
A55: 55 | B55: ICAO code
A56: 56 | B56: Charging zone
A57: 57
A58: 58 | B58: Airport name
A59: 59 | B59: ICAO code
A60: 60 | B60: Charging zone
A61: 61
A62: 62 | B62: Airport name
A63: 63 | B63: ICAO code
A64: 64 | B64: Charging zone
A65: 65
A66: 66 | B66: Airport name
A67: 67 | B67: ICAO code
A68: 68 | B68: Charging zone
A69: 69
A70: 70 | B70: Airport name
A71: 71 | B71: ICAO code
A72: 72 | B72: Charging zone
A73: 73
A74: 74 | B74: Airport name
A75: 75 | B75: ICAO code
A76: 76 | B76: Charging zone
A77: 77
A78: 78 | B78: Airport name
A79: 79 | B79: ICAO code
A80: 80 | B80: Charging zone
A81: 81
A82: 82 | B82: Airport name
A83: 83 | B83: ICAO code
A84: 84 | B84: Charging zone
A85: 85
A86: 86 | B86: Airport name
A87: 87 | B87: ICAO code
A88: 88 | B88: Charging zone
A89: 89
A90: 90 | B90: Airport name
A91: 91 | B91: ICAO code
A92: 92 | B92: Charging zone
A93: 93
A94: 94 | B94: Airport name
A95: 95 | B95: ICAO code
A96: 96 | B96: Charging zone
A97: 97
A98: 98 | B98: Airport name
A99: 99 | B99: ICAO code
A100: 100 | B100: Charging zone
A101: 101
A102: 102 | B102: Airport name
A103: 103 | B103: ICAO code
A104: 104 | B104: Charging zone
A105: 105
A106: 106 | B106: Airport name
A107: 107 | B107: ICAO code
A108: 108 | B108: Charging zone
A109: 109
A110: 110 | B110: Airport name
A111: 111 | B111: ICAO code
A112: 112 | B112: Charging zone
A113: 113
A114: 114 | B114: Airport name
A115: 115 | B115: ICAO code
A116: 116 | B116: Charging zone
A117: 117
A118: 118 | B118: Airport name
A119: 119 | B119: ICAO code
A120: 120 | B120: Charging zone
A121: 121
A122: 122 | B122: Airport name
A123: 123 | B123: ICAO code
A124: 124 | B124: Charging zone
A125: 125
A126: 126 | B126: Airport name
A127: 127 | B127: ICAO code
A128: 128 | B128: Charging zone
A129: 129
A130: 130 | B130: Airport name
A131: 131 | B131: ICAO code
A132: 132 | B132: Charging zone
A133: 133
A134: 134 | B134: Airport name
A135: 135 | B135: ICAO code
A136: 136 | B136: Charging zone
A137: 137
A138: 138 | B138: Airport name
A139: 139 | B139: ICAO code
A140: 140 | B140: Charging zone
A141: 141
A142: 142 | B142: Airport name
A143: 143 | B143: ICAO code
A144: 144 | B144: Charging zone
A145: 145
A146: 146 | B146: Airport name
A147: 147 | B147: ICAO code
A148: 148 | B148: Charging zone
A149: 149
A150: 150 | B150: Airport name
A151: 151 | B151: ICAO code
A152: 152 | B152: Charging zone
A153: 153
A154: 154 | B154: Airport name
A155: 155 | B155: ICAO code
A156: 156 | B156: Charging zone
A157: 157
A158: 158 | B158: Airport name
A159: 159 | B159: ICAO code
A160: 160 | B160: Charging zone
A161: 161
A162: 162 | B162: Airport name
A163: 163 | B163: ICAO code
A164: 164 | B164: Charging zone
A165: 165
A166: 166 | B166: Airport name
A167: 167 | B167: ICAO code
A168: 168 | B168: Charging zone
A169: 169
A170: 170 | B170: Airport name
A171: 171 | B171: ICAO code
A172: 172 | B172: Charging zone
A173: 173
A174: 174 | B174: Airport name
A175: 175 | B175: ICAO code
A176: 176 | B176: Charging zone
A177: 177
A178: 178 | B178: Airport name
A179: 179 | B179: ICAO code
A180: 180 | B180: Charging zone
A181: 181
A182: 182 | B182: Airport name
A183: 183 | B183: ICAO code
A184: 184 | B184: Charging zone
A185: 185
A186: 186 | B186: Airport name
A187: 187 | B187: ICAO code
A188: 188 | B188: Charging zone
A189: 189
A190: 190 | B190: Airport name
A191: 191 | B191: ICAO code
A192: 192 | B192: Charging zone
A193: 193
A194: 194 | B194: Airport name
A195: 195 | B195: ICAO code
A196: 196 | B196: Charging zone
A197: 197
A198: 198 | B198: Airport name
A199: 199 | B199: ICAO code
A200: 200 | B200: Charging zone
... 208 more rows

Sheet 1.3 Overview
A1: 1 | B1: Estonia | C1: 2023
A2: 2 | B2: 1 - INTRODUCTION
A3: 3
A4: 4 | B4: 1.3 Overview
A5: 5
A6: 6 | B6: 1.3.1 Economic and operational context and impact on the provisions of ANS
A7: 7
A8: 8
A9: 9
A10: 10
A11: 11
A12: 12 | B12: 1.3.2 NSA key observations and highlight per KPA
A13: 13 | B13: Please provide the key observations from the monitoring for each KPA :
A14: 14
A15: 15 | B15: Safety
A16: 16
A17: 17
A18: 18
A19: 19
A20: 20 | B20: Environment
A21: 21
A22: 22
A23: 23
A24: 24
A25: 25 | B25: Capacity
A26: 26
A27: 27
A28: 28
A29: 29
A30: 30 | B30: Cost-efficiency
A31: 31
A32: 32
A33: 33

Sheet 1.4 Traffic figure
A1: 1 | B1: Estonia | C1: 2023
A2: 2 | B2: 1 - INTRODUCTION
A3: 3
A4: 4 | B4: 1.4 Traffic figures
A5: 5 | E5: 5
A6: 6 | B6: 1.4.1 En route
A7: 7
A8: 8 | B8: En route charging zone | C8: Estonia
A9: 9
A10: 10 | B10: Forecast values from the PP | C10: 2020 | D10: 2021 | E10: 2022 | F10: 2023 | G10: 2024
A11: 11 | B11: IFR movements (thousands) | C11: 97 | D11: 101 | E11: 175 | F11: 211 | G11: 224
A12: 12 | B12: IFR movements (yearly variation in %) | D12: =IFERROR(D11/C11-1,"") -> 4% | E12: =IFERROR(E11/D11-1,"") -> 73% | F12: =IFERROR(F11/E11-1,"") -> 21% | G12: =IFERROR(G11/F11-1,"") -> 6%
A13: 13 | B13: En route service units (thousands) | C13: 419 | D13: 445 | E13: 727 | F13: 865 | G13: 912
A14: 14 | B14: En route service units (yearly variation in %) | D14: =IFERROR(D13/C13-1,"") -> 6% | E14: =IFERROR(E13/D13-1,"") -> 63% | F14: =IFERROR(F13/E13-1,"") -> 19% | G14: =IFERROR(G13/F13-1,"") -> 5%
A15: 15
A16: 16 | B16: Actual values | C16: 2020 | D16: 2021 | E16: 2022 | F16: 2023 | G16: 2024
A17: 17 | B17: IFR movements (thousands) | C17: 97 | D17: 110 | E17: 143 | F17: 149
A18: 18 | B18: IFR movements (yearly variation in %) | D18: =IFERROR(D17/C17-1,"") -> 13% | E18: =IFERROR(E17/D17-1,"") -> 30% | F18: =IFERROR(F17/E17-1,"") -> 5%
A19: 19 | B19: En route service units (thousands) | C19: 419 | D19: 467 | E19: 429 | F19: 446
A20: 20 | B20: En route service units (yearly variation in %) | D20: =IFERROR(D19/C19-1,"") -> 12% | E20: =IFERROR(E19/D19-1,"") -> -8% | F20: =IFERROR(F19/E19-1,"") -> 4%
A21: 21
A22: 22 | B22: Differences | C22: 2020 | D22: 2021 | E22: 2022 | F22: 2023 | G22: 2024
A23: 23 | B23: IFR movements (thousands) | C23: =IF(C17="","",IFERROR(C17-C11,"")) -> 0 | D23: =IF(D17="","",IFERROR(D17-D11,"")) -> 9 | E23: =IF(E17="","",IFERROR(E17-E11,"")) -> -32 | F23: =IF(F17="","",IFERROR(F17-F11,"")) -> -62
A24: 24 | B24: IFR movements ( in %) | C24: =IFERROR(C17/C11-1,"") -> 0% | D24: =IFERROR(D17/D11-1,"") -> 9% | E24: =IFERROR(E17/E11-1,"") -> -18% | F24: =IFERROR(F17/F11-1,"") -> -29%
A25: 25 | B25: En route service units (thousands) | C25: =IF(C19="","",IFERROR(C19-C13,"")) -> 0 | D25: =IF(D19="","",IFERROR(D19-D13,"")) -> 22 | E25: =IF(E19="","",IFERROR(E19-E13,"")) -> -298 | F25: =IF(F19="","",IFERROR(F19-F13,"")) -> -419
A26: 26 | B26: En route service units (in %) | C26: =IFERROR(C19/C13-1,"") -> 0% | D26: =IFERROR(D19/D13-1,"") -> 5% | E26: =IFERROR(E19/E13-1,"") -> -41% | F26: =IFERROR(F19/F13-1,"") -> -48%
A27: 27
A28: 28 | B28: En route charging zone
A29: 29
A30: 30 | B30: Forecast values from the PP | C30: 2020 | D30: 2021 | E30: 2022 | F30: 2023 | G30: 2024
A31: 31 | B31: IFR movements (thousands)
A32: 32 | B32: IFR movements (yearly variation in %) | D32: =IFERROR(D31/C31-1,"") ->  | E32: =IFERROR(E31/D31-1,"") ->  | F32: =IFERROR(F31/E31-1,"") ->  | G32: =IFERROR(G31/F31-1,"") -> 
A33: 33 | B33: En route service units (thousands)
A34: 34 | B34: En route service units (yearly variation in %) | D34: =IFERROR(D33/C33-1,"") ->  | E34: =IFERROR(E33/D33-1,"") ->  | F34: =IFERROR(F33/E33-1,"") ->  | G34: =IFERROR(G33/F33-1,"") -> 
A35: 35
A36: 36 | B36: Actual values | C36: 2020 | D36: 2021 | E36: 2022 | F36: 2023 | G36: 2024
A37: 37 | B37: IFR movements (thousands)
A38: 38 | B38: IFR movements (yearly variation in %) | D38: =IFERROR(ISD37/C37-1,"") ->  | E38: =IFERROR(E37/D37-1,"") ->  | F38: =IFERROR(F37/E37-1,"") -> 
A39: 39 | B39: En route service units (thousands)
A40: 40 | B40: En route service units (yearly variation in %) | D40: =IFERROR(D39/C39-1,"") ->  | E40: =IFERROR(E39/D39-1,"") ->  | F40: =IFERROR(F39/E39-1,"") -> 
A41: 41
A42: 42 | B42: Differences | C42: 2020 | D42: 2021 | E42: 2022 | F42: 2023 | G42: 2024
A43: 43 | B43: IFR movements (thousands) | C43: =IF(C37="","",IFERROR(C37-C31,"")) ->  | D43: =IF(D37="","",IFERROR(D37-D31,"")) ->  | E43: =IF(E37="","",IFERROR(E37-E31,"")) ->  | F43: =IF(F37="","",IFERROR(F37-F31,"")) -> 
A44: 44 | B44: IFR movements ( in %) | C44: =IFERROR(C37/C31-1,"") ->  | D44: =IFERROR(D37/D31-1,"") ->  | E44: =IFERROR(E37/E31-1,"") ->  | F44: =IFERROR(F37/F31-1,"") -> 
A45: 45 | B45: En route service units (thousands) | C45: =IF(C39="","",IFERROR(C39-C33,"")) ->  | D45: =IF(D39="","",IFERROR(D39-D33,"")) ->  | E45: =IF(E39="","",IFERROR(E39-E33,"")) ->  | F45: =IF(F39="","",IFERROR(F39-F33,"")) -> 
A46: 46 | B46: En route service units (in %) | C46: =IFERROR(C39/C33-1,"") ->  | D46: =IFERROR(D39/D33-1,"") ->  | E46: =IFERROR(E39/E33-1,"") ->  | F46: =IFERROR(F39/F33-1,"") -> 
A47: 47
A48: 48 | B48: En route charging zone
A49: 49
A50: 50 | B50: Forecast values from the PP | C50: 2020 | D50: 2021 | E50: 2022 | F50: 2023 | G50: 2024
A51: 51 | B51: IFR movements (thousands)
A52: 52 | B52: IFR movements (yearly variation in %) | D52: =IFERROR(D51/C51-1,"") ->  | E52: =IFERROR(E51/D51-1,"") ->  | F52: =IFERROR(F51/E51-1,"") ->  | G52: =IFERROR(G51/F51-1,"") -> 
A53: 53 | B53: En route service units (thousands)
A54: 54 | B54: En route service units (yearly variation in %) | D54: =IFERROR(D53/C53-1,"") ->  | E54: =IFERROR(E53/D53-1,"") ->  | F54: =IFERROR(F53/E53-1,"") ->  | G54: =IFERROR(G53/F53-1,"") -> 
A55: 55
A56: 56 | B56: Actual values | C56: 2020 | D56: 2021 | E56: 2022 | F56: 2023 | G56: 2024
A57: 57 | B57: IFR movements (thousands)
A58: 58 | B58: IFR movements (yearly variation in %) | D58: =IFERROR(D57/C57-1,"") ->  | E58: =IFERROR(E57/D57-1,"") ->  | F58: =IFERROR(F57/E57-1,"") -> 
A59: 59 | B59: En route service units (thousands)
A60: 60 | B60: En route service units (yearly variation in %) | D60: =IFERROR(D59/C59-1,"") ->  | E60: =IFERROR(E59/D59-1,"") ->  | F60: =IFERROR(F59/E59-1,"") -> 
A61: 61
A62: 62 | B62: Differences | C62: 2020 | D62: 2021 | E62: 2022 | F62: 2023 | G62: 2024
A63: 63 | B63: IFR movements (thousands) | C63: =IF(C57="","",IFERROR(C57-C51,"")) ->  | D63: =IF(D57="","",IFERROR(D57-D51,"")) ->  | E63: =IF(E57="","",IFERROR(E57-E51,"")) ->  | F63: =IF(F57="","",IFERROR(F57-F51,"")) -> 
A64: 64 | B64: IFR movements ( in %) | C64: =IFERROR(C57/C51-1,"") ->  | D64: =IFERROR(D57/D51-1,"") ->  | E64: =IFERROR(E57/E51-1,"") ->  | F64: =IFERROR(F57/F51-1,"") -> 
A65: 65 | B65: En route service units (thousands) | C65: =IF(C59="","",IFERROR(C59-C53,"")) ->  | D65: =IF(D59="","",IFERROR(D59-D53,"")) ->  | E65: =IF(E59="","",IFERROR(E59-E53,"")) ->  | F65: =IF(F59="","",IFERROR(F59-F53,"")) -> 
A66: 66 | B66: En route service units (in %) | C66: =IFERROR(C59/C53-1,"") ->  | D66: =IFERROR(D59/D53-1,"") ->  | E66: =IFERROR(E59/E53-1,"") ->  | F66: =IFERROR(F59/F53-1,"") -> 
A67: 67
A68: 68 | B68: En route charging zone
A69: 69
A70: 70 | B70: Forecast values from the PP | C70: 2020 | D70: 2021 | E70: 2022 | F70: 2023 | G70: 2024
A71: 71 | B71: IFR movements (thousands)
A72: 72 | B72: IFR movements (yearly variation in %) | D72: =IFERROR(D71/C71-1,"") ->  | E72: =IFERROR(E71/D71-1,"") ->  | F72: =IFERROR(F71/E71-1,"") ->  | G72: =IFERROR(G71/F71-1,"") -> 
A73: 73 | B73: En route service units (thousands)
A74: 74 | B74: En route service units (yearly variation in %) | D74: =IFERROR(D73/C73-1,"") ->  | E74: =IFERROR(E73/D73-1,"") ->  | F74: =IFERROR(F73/E73-1,"") ->  | G74: =IFERROR(G73/F73-1,"") -> 
A75: 75
A76: 76 | B76: Actual values | C76: 2020 | D76: 2021 | E76: 2022 | F76: 2023 | G76: 2024
A77: 77 | B77: IFR movements (thousands)
A78: 78 | B78: IFR movements (yearly variation in %) | D78: =IFERROR(D77/C77-1,"") ->  | E78: =IFERROR(E77/D77-1,"") ->  | F78: =IFERROR(F77/E77-1,"") -> 
A79: 79 | B79: En route service units (thousands)
A80: 80 | B80: En route service units (yearly variation in %) | D80: =IFERROR(D79/C79-1,"") ->  | E80: =IFERROR(E79/D79-1,"") ->  | F80: =IFERROR(F79/E79-1,"") -> 
A81: 81
A82: 82 | B82: Differences | C82: 2020 | D82: 2021 | E82: 2022 | F82: 2023 | G82: 2024
A83: 83 | B83: IFR movements (thousands) | C83: =IF(C77="","",IFERROR(C77-C71,"")) ->  | D83: =IF(D77="","",IFERROR(D77-D71,"")) ->  | E83: =IF(E77="","",IFERROR(E77-E71,"")) ->  | F83: =IF(F77="","",IFERROR(F77-F71,"")) -> 
A84: 84 | B84: IFR movements ( in %) | C84: =IFERROR(C77/C71-1,"") ->  | D84: =IFERROR(D77/D71-1,"") ->  | E84: =IFERROR(E77/E71-1,"") ->  | F84: =IFERROR(F77/F71-1,"") -> 
A85: 85 | B85: En route service units (thousands) | C85: =IF(C79="","",IFERROR(C79-C73,"")) ->  | D85: =IF(D79="","",IFERROR(D79-D73,"")) ->  | E85: =IF(E79="","",IFERROR(E79-E73,"")) ->  | F85: =IF(F79="","",IFERROR(F79-F73,"")) -> 
A86: 86 | B86: En route service units (in %) | C86: =IFERROR(C79/C73-1,"") ->  | D86: =IFERROR(D79/D73-1,"") ->  | E86: =IFERROR(E79/E73-1,"") ->  | F86: =IFERROR(F79/F73-1,"") -> 
A87: 87
A88: 88 | B88: En route charging zone
A89: 89
A90: 90 | B90: Forecast values from the PP | C90: 2020 | D90: 2021 | E90: 2022 | F90: 2023 | G90: 2024
A91: 91 | B91: IFR movements (thousands)
A92: 92 | B92: IFR movements (yearly variation in %) | D92: =IFERROR(D91/C91-1,"") ->  | E92: =IFERROR(E91/D91-1,"") ->  | F92: =IFERROR(F91/E91-1,"") ->  | G92: =IFERROR(G91/F91-1,"") -> 
A93: 93 | B93: En route service units (thousands)
A94: 94 | B94: En route service units (yearly variation in %) | D94: =IFERROR(D93/C93-1,"") ->  | E94: =IFERROR(E93/D93-1,"") ->  | F94: =IFERROR(F93/E93-1,"") ->  | G94: =IFERROR(G93/F93-1,"") -> 
A95: 95
A96: 96 | B96: Actual values | C96: 2020 | D96: 2021 | E96: 2022 | F96: 2023 | G96: 2024
A97: 97 | B97: IFR movements (thousands)
A98: 98 | B98: IFR movements (yearly variation in %) | D98: =IFERROR(D97/C97-1,"") ->  | E98: =IFERROR(E97/D97-1,"") ->  | F98: =IFERROR(F97/E97-1,"") -> 
A99: 99 | B99: En route service units (thousands)
A100: 100 | B100: En route service units (yearly variation in %) | D100: =IFERROR(D99/C99-1,"") ->  | E100: =IFERROR(E99/D99-1,"") ->  | F100: =IFERROR(F99/E99-1,"") -> 
A101: 101
A102: 102 | B102: Differences | C102: 2020 | D102: 2021 | E102: 2022 | F102: 2023 | G102: 2024
A103: 103 | B103: IFR movements (thousands) | C103: =IF(C97="","",IFERROR(C97-C91,"")) ->  | D103: =IF(D97="","",IFERROR(D97-D91,"")) ->  | E103: =IF(E97="","",IFERROR(E97-E91,"")) ->  | F103: =IF(F97="","",IFERROR(F97-F91,"")) -> 
A104: 104 | B104: IFR movements ( in %) | C104: =IFERROR(C97/C91-1,"") ->  | D104: =IFERROR(D97/D91-1,"") ->  | E104: =IFERROR(E97/E91-1,"") ->  | F104: =IFERROR(F97/F91-1,"") -> 
A105: 105 | B105: En route service units (thousands) | C105: =IF(C99="","",IFERROR(C99-C93,"")) ->  | D105: =IF(D99="","",IFERROR(D99-D93,"")) ->  | E105: =IF(E99="","",IFERROR(E99-E93,"")) ->  | F105: =IF(F99="","",IFERROR(F99-F93,"")) -> 
A106: 106 | B106: En route service units (in %) | C106: =IFERROR(C99/C93-1,"") ->  | D106: =IFERROR(D99/D93-1,"") ->  | E106: =IFERROR(E99/E93-1,"") ->  | F106: =IFERROR(F99/F93-1,"") -> 
A107: 107
A108: 108 | B108: En route charging zone
A109: 109
A110: 110 | B110: Forecast values from the PP | C110: 2020 | D110: 2021 | E110: 2022 | F110: 2023 | G110: 2024
A111: 111 | B111: IFR movements (thousands)
A112: 112 | B112: IFR movements (yearly variation in %) | D112: =IFERROR(D111/C111-1,"") ->  | E112: =IFERROR(E111/D111-1,"") ->  | F112: =IFERROR(F111/E111-1,"") ->  | G112: =IFERROR(G111/F111-1,"") -> 
A113: 113 | B113: En route service units (thousands)
A114: 114 | B114: En route service units (yearly variation in %) | D114: =IFERROR(D113/C113-1,"") ->  | E114: =IFERROR(E113/D113-1,"") ->  | F114: =IFERROR(F113/E113-1,"") ->  | G114: =IFERROR(G113/F113-1,"") -> 
A115: 115
A116: 116 | B116: Actual values | C116: 2020 | D116: 2021 | E116: 2022 | F116: 2023 | G116: 2024
A117: 117 | B117: IFR movements (thousands)
A118: 118 | B118: IFR movements (yearly variation in %) | D118: =IFERROR(D117/C117-1,"") ->  | E118: =IFERROR(E117/D117-1,"") ->  | F118: =IFERROR(F117/E117-1,"") -> 
A119: 119 | B119: En route service units (thousands)
A120: 120 | B120: En route service units (yearly variation in %) | D120: =IFERROR(D119/C119-1,"") ->  | E120: =IFERROR(E119/D119-1,"") ->  | F120: =IFERROR(F119/E119-1,"") -> 
A121: 121
A122: 122 | B122: Differences | C122: 2020 | D122: 2021 | E122: 2022 | F122: 2023 | G122: 2024
A123: 123 | B123: IFR movements (thousands) | C123: =IF(C117="","",IFERROR(C117-C111,"")) ->  | D123: =IF(D117="","",IFERROR(D117-D111,"")) ->  | E123: =IF(E117="","",IFERROR(E117-E111,"")) ->  | F123: =IF(F117="","",IFERROR(F117-F111,"")) -> 
A124: 124 | B124: IFR movements ( in %) | C124: =IFERROR(C117/C111-1,"") ->  | D124: =IFERROR(D117/D111-1,"") ->  | E124: =IFERROR(E117/E111-1,"") ->  | F124: =IFERROR(F117/F111-1,"") -> 
A125: 125 | B125: En route service units (thousands) | C125: =IF(C119="","",IFERROR(C119-C113,"")) ->  | D125: =IF(D119="","",IFERROR(D119-D113,"")) ->  | E125: =IF(E119="","",IFERROR(E119-E113,"")) ->  | F125: =IF(F119="","",IFERROR(F119-F113,"")) -> 
A126: 126 | B126: En route service units (in %) | C126: =IFERROR(C119/C113-1,"") ->  | D126: =IFERROR(D119/D113-1,"") ->  | E126: =IFERROR(E119/E113-1,"") ->  | F126: =IFERROR(F119/F113-1,"") -> 
A127: 127
A128: 128 | B128: En route charging zone
A129: 129
A130: 130 | B130: Forecast values from the PP | C130: 2020 | D130: 2021 | E130: 2022 | F130: 2023 | G130: 2024
A131: 131 | B131: IFR movements (thousands)
A132: 132 | B132: IFR movements (yearly variation in %) | D132: =IFERROR(D131/C131-1,"") ->  | E132: =IFERROR(E131/D131-1,"") ->  | F132: =IFERROR(F131/E131-1,"") ->  | G132: =IFERROR(G131/F131-1,"") -> 
A133: 133 | B133: En route service units (thousands)
A134: 134 | B134: En route service units (yearly variation in %) | D134: =IFERROR(D133/C133-1,"") ->  | E134: =IFERROR(E133/D133-1,"") ->  | F134: =IFERROR(F133/E133-1,"") ->  | G134: =IFERROR(G133/F133-1,"") -> 
A135: 135
A136: 136 | B136: Actual values | C136: 2020 | D136: 2021 | E136: 2022 | F136: 2023 | G136: 2024
A137: 137 | B137: IFR movements (thousands)
A138: 138 | B138: IFR movements (yearly variation in %) | D138: =IFERROR(D137/C137-1,"") ->  | E138: =IFERROR(E137/D137-1,"") ->  | F138: =IFERROR(F137/E137-1,"") -> 
A139: 139 | B139: En route service units (thousands)
A140: 140 | B140: En route service units (yearly variation in %) | D140: =IFERROR(D139/C139-1,"") ->  | E140: =IFERROR(E139/D139-1,"") ->  | F140: =IFERROR(F139/E139-1,"") -> 
A141: 141
A142: 142 | B142: Differences | C142: 2020 | D142: 2021 | E142: 2022 | F142: 2023 | G142: 2024
A143: 143 | B143: IFR movements (thousands) | C143: =IF(C137="","",IFERROR(C137-C131,"")) ->  | D143: =IF(D137="","",IFERROR(D137-D131,"")) ->  | E143: =IF(E137="","",IFERROR(E137-E131,"")) ->  | F143: =IF(F137="","",IFERROR(F137-F131,"")) -> 
A144: 144 | B144: IFR movements ( in %) | C144: =IFERROR(C137/C131-1,"") ->  | D144: =IFERROR(D137/D131-1,"") ->  | E144: =IFERROR(E137/E131-1,"") ->  | F144: =IFERROR(F137/F131-1,"") -> 
A145: 145 | B145: En route service units (thousands) | C145: =IF(C139="","",IFERROR(C139-C133,"")) ->  | D145: =IF(D139="","",IFERROR(D139-D133,"")) ->  | E145: =IF(E139="","",IFERROR(E139-E133,"")) ->  | F145: =IF(F139="","",IFERROR(F139-F133,"")) -> 
A146: 146 | B146: En route service units (in %) | C146: =IFERROR(C139/C133-1,"") ->  | D146: =IFERROR(D139/D133-1,"") ->  | E146: =IFERROR(E139/E133-1,"") ->  | F146: =IFERROR(F139/F133-1,"") -> 
A147: 147
A148: 148 | B148: En route charging zone
A149: 149
A150: 150 | B150: Forecast values from the PP | C150: 2020 | D150: 2021 | E150: 2022 | F150: 2023 | G150: 2024
A151: 151 | B151: IFR movements (thousands)
A152: 152 | B152: IFR movements (yearly variation in %) | D152: =IFERROR(D151/C151-1,"") ->  | E152: =IFERROR(E151/D151-1,"") ->  | F152: =IFERROR(F151/E151-1,"") ->  | G152: =IFERROR(G151/F151-1,"") -> 
A153: 153 | B153: En route service units (thousands)
A154: 154 | B154: En route service units (yearly variation in %) | D154: =IFERROR(D153/C153-1,"") ->  | E154: =IFERROR(E153/D153-1,"") ->  | F154: =IFERROR(F153/E153-1,"") ->  | G154: =IFERROR(G153/F153-1,"") -> 
A155: 155
A156: 156 | B156: Actual values | C156: 2020 | D156: 2021 | E156: 2022 | F156: 2023 | G156: 2024
A157: 157 | B157: IFR movements (thousands)
A158: 158 | B158: IFR movements (yearly variation in %) | D158: =IFERROR(D157/C157-1,"") ->  | E158: =IFERROR(E157/D157-1,"") ->  | F158: =IFERROR(F157/E157-1,"") -> 
A159: 159 | B159: En route service units (thousands)
A160: 160 | B160: En route service units (yearly variation in %) | D160: =IFERROR(D159/C159-1,"") ->  | E160: =IFERROR(E159/D159-1,"") ->  | F160: =IFERROR(F159/E159-1,"") -> 
A161: 161
A162: 162 | B162: Differences | C162: 2020 | D162: 2021 | E162: 2022 | F162: 2023 | G162: 2024
A163: 163 | B163: IFR movements (thousands) | C163: =IF(C157="","",IFERROR(C157-C151,"")) ->  | D163: =IF(D157="","",IFERROR(D157-D151,"")) ->  | E163: =IF(E157="","",IFERROR(E157-E151,"")) ->  | F163: =IF(F157="","",IFERROR(F157-F151,"")) -> 
A164: 164 | B164: IFR movements ( in %) | C164: =IFERROR(C157/C151-1,"") ->  | D164: =IFERROR(D157/D151-1,"") ->  | E164: =IFERROR(E157/E151-1,"") ->  | F164: =IFERROR(F157/F151-1,"") -> 
A165: 165 | B165: En route service units (thousands) | C165: =IF(C159="","",IFERROR(C159-C153,"")) ->  | D165: =IF(D159="","",IFERROR(D159-D153,"")) ->  | E165: =IF(E159="","",IFERROR(E159-E153,"")) ->  | F165: =IF(F159="","",IFERROR(F159-F153,"")) -> 
A166: 166 | B166: En route service units (in %) | C166: =IFERROR(C159/C153-1,"") ->  | D166: =IFERROR(D159/D153-1,"") ->  | E166: =IFERROR(E159/E153-1,"") ->  | F166: =IFERROR(F159/F153-1,"") -> 
A167: 167
A168: 168
A169: 169 | B169: 1.4.2 Terminal
A170: 170
A171: 171 | B171: Terminal charging zone | C171: Estonia
A172: 172
A173: 173 | B173: Forecast values from the PP | C173: 2020 | D173: 2021 | E173: 2022 | F173: 2023 | G173: 2024
A174: 174 | B174: IFR departure movements (thousands) | C174: 10 | D174: 11 | E174: 20 | F174: 22 | G174: 23
A175: 175 | B175: IFR movements (yearly variation in %) | D175: =IFERROR(D174/C174-1,"") -> 10% | E175: =IFERROR(E174/D174-1,"") -> 82% | F175: =IFERROR(F174/E174-1,"") -> 10% | G175: =IFERROR(G174/F174-1,"") -> 5%
A176: 176 | B176: Terminal service units (thousands) | C176: 8 | D176: 10 | E176: 17 | F176: 19 | G176: 20
A177: 177 | B177: Terminal service units (yearly variation in %) | D177: =IFERROR(D176/C176-1,"") -> 22% | E177: =IFERROR(E176/D176-1,"") -> 74% | F177: =IFERROR(F176/E176-1,"") -> 8% | G177: =IFERROR(G176/F176-1,"") -> 6%
A178: 178
A179: 179 | B179: Actual values | C179: 2020 | D179: 2021 | E179: 2022 | F179: 2023 | G179: 2024
A180: 180 | B180: IFR departure movements (thousands) | C180: 10 | D180: 12 | E180: 18
A181: 181 | B181: IFR movements (yearly variation in %) | D181: =IFERROR(D180/C180-1,"") -> 19% | E181: =IFERROR(E180/D180-1,"") -> 54% | F181: =IFERROR(F180/E180-1,"") -> -100%
A182: 182 | B182: Terminal service units (thousands) | C182: 8 | D182: 11 | E182: 17
A183: 183 | B183: Terminal service units (yearly variation in %) | D183: =IFERROR(D182/C182-1,"") -> 34% | E183: =IFERROR(E182/D182-1,"") -> 58% | F183: =IFERROR(F182/E182-1,"") -> -100%
A184: 184
A185: 185 | B185: Differences | C185: 2020 | D185: 2021 | E185: 2022 | F185: 2023 | G185: 2024
A186: 186 | B186: IFR movements (thousands) | C186: =IF(C180="","",IFERROR(C180-C174,"")) -> 0 | D186: =IF(D180="","",IFERROR(D180-D174,"")) -> 1 | E186: =IF(E180="","",IFERROR(E180-E174,"")) -> -2 | F186: =IF(F180="","",IFERROR(F180-F174,"")) -> 
A187: 187 | B187: IFR movements ( in %) | C187: =IFERROR(C180/C174-1,"") -> 0% | D187: =IFERROR(D180/D174-1,"") -> 8% | E187: =IFERROR(E180/E174-1,"") -> -8% | F187: =IFERROR(F180/F174-1,"") -> -100%
A188: 188 | B188: Terminal service units (thousands) | C188: =IF(C182="","",IFERROR(C182-C176,"")) -> -0 | D188: =IF(D182="","",IFERROR(D182-D176,"")) -> 1 | E188: =IF(E182="","",IFERROR(E182-E176,"")) -> 0 | F188: =IF(F182="","",IFERROR(F182-F176,"")) -> 
A189: 189 | B189: Terminal service units (in %) | C189: =IFERROR(C182/C176-1,"") -> -0% | D189: =IFERROR(D182/D176-1,"") -> 10% | E189: =IFERROR(E182/E176-1,"") -> 0% | F189: =IFERROR(F182/F176-1,"") -> -100%
A190: 190
A191: 191 | B191: Terminal charging zone
A192: 192
A193: 193 | B193: Forecast values from the PP | C193: 2020 | D193: 2021 | E193: 2022 | F193: 2023 | G193: 2024
A194: 194 | B194: IFR departure movements (thousands)
A195: 195 | B195: IFR movements (yearly variation in %) | D195: =IFERROR(D194/C194-1,"") ->  | E195: =IFERROR(E194/D194-1,"") ->  | F195: =IFERROR(F194/E194-1,"") ->  | G195: =IFERROR(G194/F194-1,"") -> 
A196: 196 | B196: Terminal service units (thousands)
A197: 197 | B197: Terminal service units (yearly variation in %) | D197: =IFERROR(D196/C196-1,"") ->  | E197: =IFERROR(E196/D196-1,"") ->  | F197: =IFERROR(F196/E196-1,"") ->  | G197: =IFERROR(G196/F196-1,"") -> 
A198: 198
A199: 199 | B199: Actual values | C199: 2020 | D199: 2021 | E199: 2022 | F199: 2023 | G199: 2024
A200: 200 | B200: IFR departure movements (thousands)
... 129 more rows

Sheet 1.5 Other general information
A1: 1 | B1: Estonia | C1: 2023
A2: 2 | B2: 1 - INTRODUCTION
A3: 3
A4: 4 | B4: 1.5 Other general information
A5: 5
A6: 6
A7: 7 | B7: 1.5.1 Cross-border cooperation initiatives
A8: 8 | B8: Please provide an overview of the relevant economic and operational context and its impact on the provisions of ANS
A9: 9
A10: 10
A11: 11
A12: 12 | B12: 1.5.2 Description of the process and activities implemented by the NSA for the monitoring of performance
A13: 13 | B13: Please describe the process and activities implemented by the NSA in terms of monitoring
A14: 14
A15: 15
A16: 16
A17: 17

Sheet 2. PERFORMANCE >>>
A1: NO_PRINT | B1: Estonia | C1: 2023
A2: 2 | B2: SECTION 2: PERFORMANCE

Sheet 2.1. SAFETY >>>
A1: NO_PRINT | B1: Estonia | C1: 2023
A2: 2 | B2: SECTION 2.1: SAFETY KPA

Sheet 2.1.1 KPI
A1: 1 | B1: Estonia | C1: 2023
A2: 2 | B2: 2 - PERFORMANCE AT LOCAL LEVEL
A3: 3
A4: 4 | B4: 2.1 - Safety
A5: 5
A6: 6 | B6: 2.1.1 - Key Performance Indicators
A7: 7
A8: 8 | B8: 2.1.1.(a) - Safety KPI #1: Level of Effectiveness of Safety Management
A9: 9
A10: 10 | B10: Please populate the table. The overall score per EoSM component is defined as the lowest score from the questions within a given component. For example, if verified levels for the Safety Culture component for questions 1.1, 1.2 and 1.3 were C, C, A, then the overall score for the component is A.
A11: 11
A12: 12 | B12: EANS
A13: 13
A14: 14 | B14: Effectiveness of Safety Management | D14: 2020 | E14: 2021 | F14: 2022 | G14: 2023 | H14: 2024
A15: 15
A16: 16 | B16: (a) safety policy and objectives | C16: Values from PP | D16: C | E16: C | F16: C | G16: C | H16: C
A17: 17 | C17: Actual values | D17: C | E17: C | F17: D
A18: 18 | B18: (b) safety risk management | C18: Values from PP | D18: C | E18: D | F18: D | G18: D | H18: D
A19: 19 | C19: Actual values | D19: D | E19: D | F19: D
A20: 20 | B20: (c) safety assurance | C20: Values from PP | D20: C | E20: C | F20: C | G20: C | H20: C
A21: 21 | C21: Actual values | D21: D | E21: D | F21: D
A22: 22 | B22: (d) safety promotion | C22: Values from PP | D22: C | E22: C | F22: C | G22: C | H22: C
A23: 23 | C23: Actual values | D23: C | E23: D | F23: D
A24: 24 | B24: (e) safety culture | C24: Values from PP | D24: C | E24: C | F24: C | G24: C | H24: C
A25: 25 | C25: Actual values | D25: D | E25: D | F25: D
A26: 26
A27: 27 | B27: Assessment of the achieved level of actual performance
A28: 28
A29: 29
A30: 30
A31: 31
A32: 32 | B32: Main measures put in place to achieve the safety performance targets
A33: 33
A34: 34
A35: 35
A36: 36
A37: 37 | B37: If the targets have not been achieved, please explain the underlying causes or circumstances that let to this situation.
A38: 38
A39: 39
A40: 40
A41: 41
A42: 42 | B42: Is the NSA aware of any circumstances that may cause the SAF performance targets not to be met, either this year or in future years in the reference period? | G42: Please select your answer
A43: 43
A44: 44 | B44: What, if any, remedial actions have been implemented or planned by the ANSP to address this?
A45: 45
A46: 46
A47: 47
A48: 48
A49: 49 | B49: What further measures does the NSA intend to undertake to remedy this situation?
A50: 50
A51: 51
A52: 52
A53: 53
A54: 54
A55: 55
A56: 56 | B56: Effectiveness of Safety Management | D56: 2020 | E56: 2021 | F56: 2022 | G56: 2023 | H56: 2024
A57: 57
A58: 58 | B58: (a) safety policy and objectives | C58: Values from PP
A59: 59 | C59: Actual values
A60: 60 | B60: (b) safety risk management | C60: Values from PP
A61: 61 | C61: Actual values
A62: 62 | B62: (c) safety assurance | C62: Values from PP
A63: 63 | C63: Actual values
A64: 64 | B64: (d) safety promotion | C64: Values from PP
A65: 65 | C65: Actual values
A66: 66 | B66: (e) safety culture | C66: Values from PP
A67: 67 | C67: Actual values
A68: 68
A69: 69 | B69: Assessment of the achieved level of actual performance
A70: 70
A71: 71
A72: 72
A73: 73
A74: 74 | B74: Main measures put in place to achieve the safety performance targets
A75: 75
A76: 76
A77: 77
A78: 78
A79: 79 | B79: If the targets have not been achieved, please explain the underlying causes or circumstances that let to this situation.
A80: 80
A81: 81
A82: 82
A83: 83
A84: 84 | B84: Is the NSA aware of any circumstances that may cause the SAF performance targets not to be met, either this year or in future years in the reference period? | G84: Please select your answer
A85: 85
A86: 86 | B86: What, if any, remedial actions have been implemented or planned by the ANSP to address this?
A87: 87
A88: 88
A89: 89
A90: 90
A91: 91 | B91: What further measures does the NSA intend to undertake to remedy this situation?
A92: 92
A93: 93
A94: 94
A95: 95
A96: 96
A97: 97
A98: 98 | B98: Effectiveness of Safety Management | D98: 2020 | E98: 2021 | F98: 2022 | G98: 2023 | H98: 2024
A99: 99
A100: 100 | B100: (a) safety policy and objectives | C100: Values from PP
A101: 101 | C101: Actual values
A102: 102 | B102: (b) safety risk management | C102: Values from PP
A103: 103 | C103: Actual values
A104: 104 | B104: (c) safety assurance | C104: Values from PP
A105: 105 | C105: Actual values
A106: 106 | B106: (d) safety promotion | C106: Values from PP
A107: 107 | C107: Actual values
A108: 108 | B108: (e) safety culture | C108: Values from PP
A109: 109 | C109: Actual values
A110: 110
A111: 111 | B111: Assessment of the achieved level of actual performance
A112: 112
A113: 113
A114: 114
A115: 115
A116: 116 | B116: Main measures put in place to achieve the safety performance targets
A117: 117
A118: 118
A119: 119
A120: 120
A121: 121 | B121: If the targets have not been achieved, please explain the underlying causes or circumstances that let to this situation.
A122: 122
A123: 123
A124: 124
A125: 125
A126: 126 | B126: Is the NSA aware of any circumstances that may cause the SAF performance targets not to be met, either this year or in future years in the reference period? | G126: Please select your answer
A127: 127
A128: 128 | B128: What, if any, remedial actions have been implemented or planned by the ANSP to address this?
A129: 129
A130: 130
A131: 131
A132: 132
A133: 133 | B133: What further measures does the NSA intend to undertake to remedy this situation?
A134: 134
A135: 135
A136: 136
A137: 137
A138: 138
A139: 139
A140: 140 | B140: Effectiveness of Safety Management | D140: 2020 | E140: 2021 | F140: 2022 | G140: 2023 | H140: 2024
A141: 141
A142: 142 | B142: (a) safety policy and objectives | C142: Values from PP
A143: 143 | C143: Actual values
A144: 144 | B144: (b) safety risk management | C144: Values from PP
A145: 145 | C145: Actual values
A146: 146 | B146: (c) safety assurance | C146: Values from PP
A147: 147 | C147: Actual values
A148: 148 | B148: (d) safety promotion | C148: Values from PP
A149: 149 | C149: Actual values
A150: 150 | B150: (e) safety culture | C150: Values from PP
A151: 151 | C151: Actual values
A152: 152
A153: 153 | B153: Assessment of the achieved level of actual performance
A154: 154
A155: 155
A156: 156
A157: 157
A158: 158 | B158: Main measures put in place to achieve the safety performance targets
A159: 159
A160: 160
A161: 161
A162: 162
A163: 163 | B163: If the targets have not been achieved, please explain the underlying causes or circumstances that let to this situation.
A164: 164
A165: 165
A166: 166
A167: 167
A168: 168 | B168: Is the NSA aware of any circumstances that may cause the SAF performance targets not to be met, either this year or in future years in the reference period? | G168: Please select your answer
A169: 169
A170: 170 | B170: What, if any, remedial actions have been implemented or planned by the ANSP to address this?
A171: 171
A172: 172
A173: 173
A174: 174
A175: 175 | B175: What further measures does the NSA intend to undertake to remedy this situation?
A176: 176
A177: 177
A178: 178
A179: 179
A180: 180
A181: 181
A182: 182 | B182: Effectiveness of Safety Management | D182: 2020 | E182: 2021 | F182: 2022 | G182: 2023 | H182: 2024
A183: 183
A184: 184 | B184: (a) safety policy and objectives | C184: Values from PP
A185: 185 | C185: Actual values
A186: 186 | B186: (b) safety risk management | C186: Values from PP
A187: 187 | C187: Actual values
A188: 188 | B188: (c) safety assurance | C188: Values from PP
A189: 189 | C189: Actual values
A190: 190 | B190: (d) safety promotion | C190: Values from PP
A191: 191 | C191: Actual values
A192: 192 | B192: (e) safety culture | C192: Values from PP
A193: 193 | C193: Actual values
A194: 194
A195: 195 | B195: Assessment of the achieved level of actual performance
A196: 196
A197: 197
A198: 198
A199: 199
A200: 200 | B200: Main measures put in place to achieve the safety performance targets
... 147 more rows

Sheet 2.1.2.A.B PI
A1: 1 | B1: Estonia | C1: 2023
A2: 2 | B2: 2.1.2 - Performance Indicators
A3: 3
A4: 4 | B4: 2.1.2.(a) and (b) - Safety PI: rate of runway incursions and rate of separation minima infringements (Member State level)
A5: 5
A6: 6 | B6: Important note: Please refer to the Supporting Guidance Material for the implementation and measurement of the safety key performance indicator (SKPI) and safety performance indicators (SPIs) for the Third Reference Period (RP3) - AMC3 Safety performance indicators (SPIs) for the monitoring of separation minima infringements (SMIs) and runway incursions (RIs) & GM5 Safety performance indicators (SPIs) for the monitoring of separation minima infringements (SMIs) and runway incursions (RIs). Only airports listed in the Performance Plan (mandatory & voluntary) and their corresponding IFR/ VFR movements should be used to derive the rate of runway incursions. At the State level, with safety impact refers to occurrences that have risk classified using the ERCS that appear in the Amber/ Red zones of the matrix.
A7: 7 | B7: Easy Access Rules for Safety (Key) Performance Indicators (S(K)PI) – Third Reference Period (RP3) | EASA (europa.eu)
A8: 8
A9: 9 | B9: Estonia
A10: 10
A11: 11 | B11: Runway Incursions | D11: 2020 | E11: 2021 | F11: 2022 | G11: 2023 | H11: 2024
A12: 12
A13: 13 | B13: Total number of runway incursions with a safety impact | D13: 1 | E13: 3 | F13: 1
A14: 14 | B14: Total number of IFR and VFR movements at the airports | D14: 27,153 | E14: 31,280 | F14: 41,903
A15: 15 | B15: Rate of Runway Incursions at Airports Located in the Member State | D15: =IFERROR(D13/D14,"") -> 0.00004 | E15: =IFERROR(E13/E14,"") -> 0.00010 | F15: =IFERROR(F13/F14,"") -> 0.00002 | G15: =IFERROR(G13/G14,"") ->  | H15: =IFERROR(H13/H14,"") -> 
A16: 16
A17: 17 | B17: What initiatives were implemented or are planned that will improve this PI and how does the NSA intend on monitoring their effectiveness on performance?
A18: 18
A19: 19
A20: 20
A21: 21
A22: 22 | B22: Separation minima | D22: 2020 | E22: 2021 | F22: 2022 | G22: 2023 | H22: 2024
A23: 23
A24: 24 | B24: Total number of separation minima infringements with a safety impact that occurred in the airspace | D24: 5 | E24: 5 | F24: 3
A25: 25 | B25: Total number of controlled flight hours within the airspace | D25: 33,558 | E25: 37,511 | F25: 48,360
A26: 26 | B26: Rate of separation minima infringements within the airspace of all controlling air traffic services units in the Member State | D26: =IFERROR(D24/D25,"") -> 0.00015 | E26: =IFERROR(E24/E25,"") -> 0.00013 | F26: =IFERROR(F24/F25,"") -> 0.00006 | G26: =IFERROR(G24/G25,"") ->  | H26: =IFERROR(H24/H25,"") -> 
A27: 27
A28: 28 | B28: What initiatives were implemented or are planned that will improve this PI and how does the NSA intend to monitor their effectiveness?
A29: 29
A30: 30
A31: 31
A32: 32
A33: 33
A34: 34
A35: 35 | B35: Runway Incursions | D35: 2020 | E35: 2021 | F35: 2022 | G35: 2023 | H35: 2024
A36: 36
A37: 37 | B37: Total number of runway incursions with a safety impact
A38: 38 | B38: Total number of IFR and VFR movements at the airports
A39: 39 | B39: Rate of Runway Incursions at Airports Located in the Member State | D39: =IFERROR(D37/D38,"") ->  | E39: =IFERROR(E37/E38,"") ->  | F39: =IFERROR(F37/F38,"") ->  | G39: =IFERROR(G37/G38,"") ->  | H39: =IFERROR(H37/H38,"") -> 
A40: 40
A41: 41 | B41: What initiatives were implemented or are planned that will improve this PI and how does the NSA intend on monitoring their effectiveness on performance?
A42: 42
A43: 43
A44: 44
A45: 45
A46: 46 | B46: Separation minima | D46: 2020 | E46: 2021 | F46: 2022 | G46: 2023 | H46: 2024
A47: 47
A48: 48 | B48: Total number of separation minima infringements with a safety impact that occurred in the airspace
A49: 49 | B49: Total number of controlled flight hours within the airspace
A50: 50 | B50: Rate of separation minima infringements within the airspace of all controlling air traffic services units in the Member State | D50: =IFERROR(D48/D49,"") ->  | E50: =IFERROR(E48/E49,"") ->  | F50: =IFERROR(F48/F49,"") ->  | G50: =IFERROR(G48/G49,"") ->  | H50: =IFERROR(H48/H49,"") -> 
A51: 51
A52: 52 | B52: What initiatives were implemented or are planned that will improve this PI and how does the NSA intend to monitor their effectiveness?
A53: 53
A54: 54
A55: 55
A56: 56
A57: 57
A58: 58
A59: 59 | B59: Runway Incursions | D59: 2020 | E59: 2021 | F59: 2022 | G59: 2023 | H59: 2024
A60: 60
A61: 61 | B61: Total number of runway incursions with a safety impact
A62: 62 | B62: Total number of IFR and VFR movements at the airports
A63: 63 | B63: Rate of Runway Incursions at Airports Located in the Member State | D63: =IFERROR(D61/D62,"") ->  | E63: =IFERROR(E61/E62,"") ->  | F63: =IFERROR(F61/F62,"") ->  | G63: =IFERROR(G61/G62,"") ->  | H63: =IFERROR(H61/H62,"") -> 
A64: 64
A65: 65 | B65: What initiatives were implemented or are planned that will improve this PI and how does the NSA intend on monitoring their effectiveness on performance?
A66: 66
A67: 67
A68: 68
A69: 69
A70: 70 | B70: Separation minima | D70: 2020 | E70: 2021 | F70: 2022 | G70: 2023 | H70: 2024
A71: 71
A72: 72 | B72: Total number of separation minima infringements with a safety impact that occurred in the airspace
A73: 73 | B73: Total number of controlled flight hours within the airspace
A74: 74 | B74: Rate of separation minima infringements within the airspace of all controlling air traffic services units in the Member State | D74: =IFERROR(D72/D73,"") ->  | E74: =IFERROR(E72/E73,"") ->  | F74: =IFERROR(F72/F73,"") ->  | G74: =IFERROR(G72/G73,"") ->  | H74: =IFERROR(H72/H73,"") -> 
A75: 75
A76: 76 | B76: What initiatives were implemented or are planned that will improve this PI and how does the NSA intend to monitor their effectiveness?
A77: 77
A78: 78
A79: 79
A80: 80
A81: 81
A82: 82
A83: 83 | B83: Runway Incursions | D83: 2020 | E83: 2021 | F83: 2022 | G83: 2023 | H83: 2024
A84: 84
A85: 85 | B85: Total number of runway incursions with a safety impact
A86: 86 | B86: Total number of IFR and VFR movements at the airports
A87: 87 | B87: Rate of Runway Incursions at Airports Located in the Member State | D87: =IFERROR(D85/D86,"") ->  | E87: =IFERROR(E85/E86,"") ->  | F87: =IFERROR(F85/F86,"") ->  | G87: =IFERROR(G85/G86,"") ->  | H87: =IFERROR(H85/H86,"") -> 
A88: 88
A89: 89 | B89: What initiatives were implemented or are planned that will improve this PI and how does the NSA intend on monitoring their effectiveness on performance?
A90: 90
A91: 91
A92: 92
A93: 93
A94: 94 | B94: Separation minima | D94: 2020 | E94: 2021 | F94: 2022 | G94: 2023 | H94: 2024
A95: 95
A96: 96 | B96: Total number of separation minima infringements with a safety impact that occurred in the airspace
A97: 97 | B97: Total number of controlled flight hours within the airspace
A98: 98 | B98: Rate of separation minima infringements within the airspace of all controlling air traffic services units in the Member State | D98: =IFERROR(D96/D97,"") ->  | E98: =IFERROR(E96/E97,"") ->  | F98: =IFERROR(F96/F97,"") ->  | G98: =IFERROR(G96/G97,"") ->  | H98: =IFERROR(H96/H97,"") -> 
A99: 99
A100: 100 | B100: What initiatives were implemented or are planned that will improve this PI and how does the NSA intend to monitor their effectiveness?
A101: 101
A102: 102
A103: 103
A104: 104
A105: 105
A106: 106
A107: 107 | B107: Runway Incursions | D107: 2020 | E107: 2021 | F107: 2022 | G107: 2023 | H107: 2024
A108: 108
A109: 109 | B109: Total number of runway incursions with a safety impact
A110: 110 | B110: Total number of IFR and VFR movements at the airports
A111: 111 | B111: Rate of Runway Incursions at Airports Located in the Member State | D111: =IFERROR(D109/D110,"") ->  | E111: =IFERROR(E109/E110,"") ->  | F111: =IFERROR(F109/F110,"") ->  | G111: =IFERROR(G109/G110,"") ->  | H111: =IFERROR(H109/H110,"") -> 
A112: 112
A113: 113 | B113: What initiatives were implemented or are planned that will improve this PI and how does the NSA intend on monitoring their effectiveness on performance?
A114: 114
A115: 115
A116: 116
A117: 117
A118: 118 | B118: Separation minima | D118: 2020 | E118: 2021 | F118: 2022 | G118: 2023 | H118: 2024
A119: 119
A120: 120 | B120: Total number of separation minima infringements with a safety impact that occurred in the airspace
A121: 121 | B121: Total number of controlled flight hours within the airspace
A122: 122 | B122: Rate of separation minima infringements within the airspace of all controlling air traffic services units in the Member State | D122: =IFERROR(D120/D121,"") ->  | E122: =IFERROR(E120/E121,"") ->  | F122: =IFERROR(F120/F121,"") ->  | G122: =IFERROR(G120/G121,"") ->  | H122: =IFERROR(H120/H121,"") -> 
A123: 123
A124: 124 | B124: What initiatives were implemented or are planned that will improve this PI and how does the NSA intend to monitor their effectiveness?
A125: 125
A126: 126
A127: 127
A128: 128
A129: 129
A130: 130
A131: 131 | B131: Runway Incursions | D131: 2020 | E131: 2021 | F131: 2022 | G131: 2023 | H131: 2024
A132: 132
A133: 133 | B133: Total number of runway incursions with a safety impact
A134: 134 | B134: Total number of IFR and VFR movements at the airports
A135: 135 | B135: Rate of Runway Incursions at Airports Located in the Member State | D135: =IFERROR(D133/D134,"") ->  | E135: =IFERROR(E133/E134,"") ->  | F135: =IFERROR(F133/F134,"") ->  | G135: =IFERROR(G133/G134,"") ->  | H135: =IFERROR(H133/H134,"") -> 
A136: 136
A137: 137 | B137: What initiatives were implemented or are planned that will improve this PI and how does the NSA intend on monitoring their effectiveness on performance?
A138: 138
A139: 139
A140: 140
A141: 141
A142: 142 | B142: Separation minima | D142: 2020 | E142: 2021 | F142: 2022 | G142: 2023 | H142: 2024
A143: 143
A144: 144 | B144: Total number of separation minima infringements with a safety impact that occurred in the airspace
A145: 145 | B145: Total number of controlled flight hours within the airspace
A146: 146 | B146: Rate of separation minima infringements within the airspace of all controlling air traffic services units in the Member State | D146: =IFERROR(D144/D145,"") ->  | E146: =IFERROR(E144/E145,"") ->  | F146: =IFERROR(F144/F145,"") ->  | G146: =IFERROR(G144/G145,"") ->  | H146: =IFERROR(H144/H145,"") -> 
A147: 147
A148: 148 | B148: What initiatives were implemented or are planned that will improve this PI and how does the NSA intend to monitor their effectiveness?
A149: 149
A150: 150
A151: 151
A152: 152
A153: 153
A154: 154
A155: 155 | B155: Runway Incursions | D155: 2020 | E155: 2021 | F155: 2022 | G155: 2023 | H155: 2024
A156: 156
A157: 157 | B157: Total number of runway incursions with a safety impact
A158: 158 | B158: Total number of IFR and VFR movements at the airports
A159: 159 | B159: Rate of Runway Incursions at Airports Located in the Member State | D159: =IFERROR(D157/D158,"") ->  | E159: =IFERROR(E157/E158,"") ->  | F159: =IFERROR(F157/F158,"") ->  | G159: =IFERROR(G157/G158,"") ->  | H159: =IFERROR(H157/H158,"") -> 
A160: 160
A161: 161 | B161: What initiatives were implemented or are planned that will improve this PI and how does the NSA intend on monitoring their effectiveness on performance?
A162: 162
A163: 163
A164: 164
A165: 165
A166: 166 | B166: Separation minima | D166: 2020 | E166: 2021 | F166: 2022 | G166: 2023 | H166: 2024
A167: 167
A168: 168 | B168: Total number of separation minima infringements with a safety impact that occurred in the airspace
A169: 169 | B169: Total number of controlled flight hours within the airspace
A170: 170 | B170: Rate of separation minima infringements within the airspace of all controlling air traffic services units in the Member State | D170: =IFERROR(D168/D169,"") ->  | E170: =IFERROR(E168/E169,"") ->  | F170: =IFERROR(F168/F169,"") ->  | G170: =IFERROR(G168/G169,"") ->  | H170: =IFERROR(H168/H169,"") -> 
A171: 171
A172: 172 | B172: What initiatives were implemented or are planned that will improve this PI and how does the NSA intend to monitor their effectiveness?
A173: 173
A174: 174
A175: 175
A176: 176
A177: 177
A178: 178
A179: 179 | B179: Runway Incursions | D179: 2020 | E179: 2021 | F179: 2022 | G179: 2023 | H179: 2024
A180: 180
A181: 181 | B181: Total number of runway incursions with a safety impact
A182: 182 | B182: Total number of IFR and VFR movements at the airports
A183: 183 | B183: Rate of Runway Incursions at Airports Located in the Member State | D183: =IFERROR(D181/D182,"") ->  | E183: =IFERROR(E181/E182,"") ->  | F183: =IFERROR(F181/F182,"") ->  | G183: =IFERROR(G181/G182,"") ->  | H183: =IFERROR(H181/H182,"") -> 
A184: 184
A185: 185 | B185: What initiatives were implemented or are planned that will improve this PI and how does the NSA intend on monitoring their effectiveness on performance?
A186: 186
A187: 187
A188: 188
A189: 189
A190: 190 | B190: Separation minima | D190: 2020 | E190: 2021 | F190: 2022 | G190: 2023 | H190: 2024
A191: 191
A192: 192 | B192: Total number of separation minima infringements with a safety impact that occurred in the airspace
A193: 193 | B193: Total number of controlled flight hours within the airspace
A194: 194 | B194: Rate of separation minima infringements within the airspace of all controlling air traffic services units in the Member State | D194: =IFERROR(D192/D193,"") ->  | E194: =IFERROR(E192/E193,"") ->  | F194: =IFERROR(F192/F193,"") ->  | G194: =IFERROR(G192/G193,"") ->  | H194: =IFERROR(H192/H193,"") -> 
A195: 195
A196: 196 | B196: What initiatives were implemented or are planned that will improve this PI and how does the NSA intend to monitor their effectiveness?
A197: 197
A198: 198
A199: 199

Sheet 2.1.2.C PI
A1: 1 | B1: Estonia | C1: 2023
A2: 2 | B2: 2.1.2.(c) - Safety PI: rate of runway incursions (Airport level)
A3: 3
A4: 4 | B4: Important note: Please refer to the Supporting Guidance Material for the implementation and measurement of the safety key performance indicator (SKPI) and safety performance indicators (SPIs) for the Third Reference Period (RP3) - AMC3 Safety performance indicators (SPIs) for the monitoring of separation minima infringements (SMIs) and runway incursions (RIs) & GM5 Safety performance indicators (SPIs) for the monitoring of separation minima infringements (SMIs) and runway incursions (RIs). Only IFR/ VFR movements at airports listed in the Performance Plan should be used to derive the rate. At the airport level, with Safety Impact refers to occurrences with RAT ground severity of A, B and C.
A5: 5 | B5: Easy Access Rules for Safety (Key) Performance Indicators (S(K)PI) – Third Reference Period (RP3) | EASA (europa.eu)
A6: 6
A7: 7 | B7: EETU (Tartu) | D7: 2020 | E7: 2021 | F7: 2022 | G7: 2023 | H7: 2024
A8: 8 | B8: Total number of runway incursions with any contribution from air traffic services or CNS services with a safety impact that occurred at the airport | D8: 0 | E8: 1 | F8: 0
A9: 9 | B9: Total number of IFR and VFR movements at the airports | D9: 5,698 | E9: 6,075 | F9: 3,850
A10: 10 | B10: Rate of Runway Incursions at the airport | D10: =IFERROR(D8/(D9),"") -> 0.00000 | E10: =IFERROR(E8/(E9),"") -> 0.00016 | F10: =IFERROR(F8/(F9),"") -> 0.00000 | G10: =IFERROR(G8/(G9),"") ->  | H10: =IFERROR(H8/(H9),"") -> 
A11: 11
A12: 12 | B12: EETN (Tallin) | D12: 2020 | E12: 2021 | F12: 2022 | G12: 2023 | H12: 2024
A13: 13 | B13: Total number of runway incursions with any contribution from air traffic services or CNS services with a safety impact that occurred at the airport | D13: 1 | E13: 0 | F13: 0
A14: 14 | B14: Total number of IFR and VFR movements at the airports | D14: 21,455 | E14: 25,205 | F14: 38,053
A15: 15 | B15: Rate of Runway Incursions at the airport | D15: =IFERROR(D13/(D14),"") -> 0.00005 | E15: =IFERROR(E13/(E14),"") -> 0.00000 | F15: =IFERROR(F13/(F14),"") -> 0.00000 | G15: =IFERROR(G13/(G14),"") ->  | H15: =IFERROR(H13/(H14),"") -> 
A16: 16
A17: 17 | D17: 2020 | E17: 2021 | F17: 2022 | G17: 2023 | H17: 2024
A18: 18 | B18: Total number of runway incursions with any contribution from air traffic services or CNS services with a safety impact that occurred at the airport
A19: 19 | B19: Total number of IFR and VFR movements at the airports
A20: 20 | B20: Rate of Runway Incursions at the airport | D20: =IFERROR(D18/(D19),"") ->  | E20: =IFERROR(E18/(E19),"") ->  | F20: =IFERROR(F18/(F19),"") ->  | G20: =IFERROR(G18/(G19),"") ->  | H20: =IFERROR(H18/(H19),"") -> 
A21: 21
A22: 22 | D22: 2020 | E22: 2021 | F22: 2022 | G22: 2023 | H22: 2024
A23: 23 | B23: Total number of runway incursions with any contribution from air traffic services or CNS services with a safety impact that occurred at the airport
A24: 24 | B24: Total number of IFR and VFR movements at the airports
A25: 25 | B25: Rate of Runway Incursions at the airport | D25: =IFERROR(D23/(D24),"") ->  | E25: =IFERROR(E23/(E24),"") ->  | F25: =IFERROR(F23/(F24),"") ->  | G25: =IFERROR(G23/(G24),"") ->  | H25: =IFERROR(H23/(H24),"") -> 
A26: 26
A27: 27 | D27: 2020 | E27: 2021 | F27: 2022 | G27: 2023 | H27: 2024
A28: 28 | B28: Total number of runway incursions with any contribution from air traffic services or CNS services with a safety impact that occurred at the airport
A29: 29 | B29: Total number of IFR and VFR movements at the airports
A30: 30 | B30: Rate of Runway Incursions at the airport | D30: =IFERROR(D28/(D29),"") ->  | E30: =IFERROR(E28/(E29),"") ->  | F30: =IFERROR(F28/(F29),"") ->  | G30: =IFERROR(G28/(G29),"") ->  | H30: =IFERROR(H28/(H29),"") -> 
A31: 31
A32: 32 | D32: 2020 | E32: 2021 | F32: 2022 | G32: 2023 | H32: 2024
A33: 33 | B33: Total number of runway incursions with any contribution from air traffic services or CNS services with a safety impact that occurred at the airport
A34: 34 | B34: Total number of IFR and VFR movements at the airports
A35: 35 | B35: Rate of Runway Incursions at the airport | D35: =IFERROR(D33/(D34),"") ->  | E35: =IFERROR(E33/(E34),"") ->  | F35: =IFERROR(F33/(F34),"") ->  | G35: =IFERROR(G33/(G34),"") ->  | H35: =IFERROR(H33/(H34),"") -> 
A36: 36
A37: 37 | D37: 2020 | E37: 2021 | F37: 2022 | G37: 2023 | H37: 2024
A38: 38 | B38: Total number of runway incursions with any contribution from air traffic services or CNS services with a safety impact that occurred at the airport
A39: 39 | B39: Total number of IFR and VFR movements at the airports
A40: 40 | B40: Rate of Runway Incursions at the airport | D40: =IFERROR(D38/(D39),"") ->  | E40: =IFERROR(E38/(E39),"") ->  | F40: =IFERROR(F38/(F39),"") ->  | G40: =IFERROR(G38/(G39),"") ->  | H40: =IFERROR(H38/(H39),"") -> 
A41: 41
A42: 42 | D42: 2020 | E42: 2021 | F42: 2022 | G42: 2023 | H42: 2024
A43: 43 | B43: Total number of runway incursions with any contribution from air traffic services or CNS services with a safety impact that occurred at the airport
A44: 44 | B44: Total number of IFR and VFR movements at the airports
A45: 45 | B45: Rate of Runway Incursions at the airport | D45: =IFERROR(D43/(D44),"") ->  | E45: =IFERROR(E43/(E44),"") ->  | F45: =IFERROR(F43/(F44),"") ->  | G45: =IFERROR(G43/(G44),"") ->  | H45: =IFERROR(H43/(H44),"") -> 
A46: 46
A47: 47 | D47: 2020 | E47: 2021 | F47: 2022 | G47: 2023 | H47: 2024
A48: 48 | B48: Total number of runway incursions with any contribution from air traffic services or CNS services with a safety impact that occurred at the airport
A49: 49 | B49: Total number of IFR and VFR movements at the airports
A50: 50 | B50: Rate of Runway Incursions at the airport | D50: =IFERROR(D48/(D49),"") ->  | E50: =IFERROR(E48/(E49),"") ->  | F50: =IFERROR(F48/(F49),"") ->  | G50: =IFERROR(G48/(G49),"") ->  | H50: =IFERROR(H48/(H49),"") -> 
A51: 51
A52: 52 | D52: 2020 | E52: 2021 | F52: 2022 | G52: 2023 | H52: 2024
A53: 53 | B53: Total number of runway incursions with any contribution from air traffic services or CNS services with a safety impact that occurred at the airport
A54: 54 | B54: Total number of IFR and VFR movements at the airports
A55: 55 | B55: Rate of Runway Incursions at the airport | D55: =IFERROR(D53/(D54),"") ->  | E55: =IFERROR(E53/(E54),"") ->  | F55: =IFERROR(F53/(F54),"") ->  | G55: =IFERROR(G53/(G54),"") ->  | H55: =IFERROR(H53/(H54),"") -> 
A56: 56
A57: 57 | D57: 2020 | E57: 2021 | F57: 2022 | G57: 2023 | H57: 2024
A58: 58 | B58: Total number of runway incursions with any contribution from air traffic services or CNS services with a safety impact that occurred at the airport
A59: 59 | B59: Total number of IFR and VFR movements at the airports
A60: 60 | B60: Rate of Runway Incursions at the airport | D60: =IFERROR(D58/(D59),"") ->  | E60: =IFERROR(E58/(E59),"") ->  | F60: =IFERROR(F58/(F59),"") ->  | G60: =IFERROR(G58/(G59),"") ->  | H60: =IFERROR(H58/(H59),"") -> 
A61: 61
A62: 62 | D62: 2020 | E62: 2021 | F62: 2022 | G62: 2023 | H62: 2024
A63: 63 | B63: Total number of runway incursions with any contribution from air traffic services or CNS services with a safety impact that occurred at the airport
A64: 64 | B64: Total number of IFR and VFR movements at the airports
A65: 65 | B65: Rate of Runway Incursions at the airport | D65: =IFERROR(D63/(D64),"") ->  | E65: =IFERROR(E63/(E64),"") ->  | F65: =IFERROR(F63/(F64),"") ->  | G65: =IFERROR(G63/(G64),"") ->  | H65: =IFERROR(H63/(H64),"") -> 
A66: 66
A67: 67 | D67: 2020 | E67: 2021 | F67: 2022 | G67: 2023 | H67: 2024
A68: 68 | B68: Total number of runway incursions with any contribution from air traffic services or CNS services with a safety impact that occurred at the airport
A69: 69 | B69: Total number of IFR and VFR movements at the airports
A70: 70 | B70: Rate of Runway Incursions at the airport | D70: =IFERROR(D68/(D69),"") ->  | E70: =IFERROR(E68/(E69),"") ->  | F70: =IFERROR(F68/(F69),"") ->  | G70: =IFERROR(G68/(G69),"") ->  | H70: =IFERROR(H68/(H69),"") -> 
A71: 71
A72: 72 | D72: 2020 | E72: 2021 | F72: 2022 | G72: 2023 | H72: 2024
A73: 73 | B73: Total number of runway incursions with any contribution from air traffic services or CNS services with a safety impact that occurred at the airport
A74: 74 | B74: Total number of IFR and VFR movements at the airports
A75: 75 | B75: Rate of Runway Incursions at the airport | D75: =IFERROR(D73/(D74),"") ->  | E75: =IFERROR(E73/(E74),"") ->  | F75: =IFERROR(F73/(F74),"") ->  | G75: =IFERROR(G73/(G74),"") ->  | H75: =IFERROR(H73/(H74),"") -> 
A76: 76
A77: 77 | D77: 2020 | E77: 2021 | F77: 2022 | G77: 2023 | H77: 2024
A78: 78 | B78: Total number of runway incursions with any contribution from air traffic services or CNS services with a safety impact that occurred at the airport
A79: 79 | B79: Total number of IFR and VFR movements at the airports
A80: 80 | B80: Rate of Runway Incursions at the airport | D80: =IFERROR(D78/(D79),"") ->  | E80: =IFERROR(E78/(E79),"") ->  | F80: =IFERROR(F78/(F79),"") ->  | G80: =IFERROR(G78/(G79),"") ->  | H80: =IFERROR(H78/(H79),"") -> 
A81: 81
A82: 82 | D82: 2020 | E82: 2021 | F82: 2022 | G82: 2023 | H82: 2024
A83: 83 | B83: Total number of runway incursions with any contribution from air traffic services or CNS services with a safety impact that occurred at the airport
A84: 84 | B84: Total number of IFR and VFR movements at the airports
A85: 85 | B85: Rate of Runway Incursions at the airport | D85: =IFERROR(D83/(D84),"") ->  | E85: =IFERROR(E83/(E84),"") ->  | F85: =IFERROR(F83/(F84),"") ->  | G85: =IFERROR(G83/(G84),"") ->  | H85: =IFERROR(H83/(H84),"") -> 
A86: 86
A87: 87 | D87: 2020 | E87: 2021 | F87: 2022 | G87: 2023 | H87: 2024
A88: 88 | B88: Total number of runway incursions with any contribution from air traffic services or CNS services with a safety impact that occurred at the airport
A89: 89 | B89: Total number of IFR and VFR movements at the airports
A90: 90 | B90: Rate of Runway Incursions at the airport | D90: =IFERROR(D88/(D89),"") ->  | E90: =IFERROR(E88/(E89),"") ->  | F90: =IFERROR(F88/(F89),"") ->  | G90: =IFERROR(G88/(G89),"") ->  | H90: =IFERROR(H88/(H89),"") -> 
A91: 91
A92: 92 | D92: 2020 | E92: 2021 | F92: 2022 | G92: 2023 | H92: 2024
A93: 93 | B93: Total number of runway incursions with any contribution from air traffic services or CNS services with a safety impact that occurred at the airport
A94: 94 | B94: Total number of IFR and VFR movements at the airports
A95: 95 | B95: Rate of Runway Incursions at the airport | D95: =IFERROR(D93/(D94),"") ->  | E95: =IFERROR(E93/(E94),"") ->  | F95: =IFERROR(F93/(F94),"") ->  | G95: =IFERROR(G93/(G94),"") ->  | H95: =IFERROR(H93/(H94),"") -> 
A96: 96
A97: 97 | D97: 2020 | E97: 2021 | F97: 2022 | G97: 2023 | H97: 2024
A98: 98 | B98: Total number of runway incursions with any contribution from air traffic services or CNS services with a safety impact that occurred at the airport
A99: 99 | B99: Total number of IFR and VFR movements at the airports
A100: 100 | B100: Rate of Runway Incursions at the airport | D100: =IFERROR(D98/(D99),"") ->  | E100: =IFERROR(E98/(E99),"") ->  | F100: =IFERROR(F98/(F99),"") ->  | G100: =IFERROR(G98/(G99),"") ->  | H100: =IFERROR(H98/(H99),"") -> 
A101: 101
A102: 102 | D102: 2020 | E102: 2021 | F102: 2022 | G102: 2023 | H102: 2024
A103: 103 | B103: Total number of runway incursions with any contribution from air traffic services or CNS services with a safety impact that occurred at the airport
A104: 104 | B104: Total number of IFR and VFR movements at the airports
A105: 105 | B105: Rate of Runway Incursions at the airport | D105: =IFERROR(D103/(D104),"") ->  | E105: =IFERROR(E103/(E104),"") ->  | F105: =IFERROR(F103/(F104),"") ->  | G105: =IFERROR(G103/(G104),"") ->  | H105: =IFERROR(H103/(H104),"") -> 
A106: 106
A107: 107 | D107: 2020 | E107: 2021 | F107: 2022 | G107: 2023 | H107: 2024
A108: 108 | B108: Total number of runway incursions with any contribution from air traffic services or CNS services with a safety impact that occurred at the airport
A109: 109 | B109: Total number of IFR and VFR movements at the airports
A110: 110 | B110: Rate of Runway Incursions at the airport | D110: =IFERROR(D108/(D109),"") ->  | E110: =IFERROR(E108/(E109),"") ->  | F110: =IFERROR(F108/(F109),"") ->  | G110: =IFERROR(G108/(G109),"") ->  | H110: =IFERROR(H108/(H109),"") -> 
A111: 111
A112: 112 | D112: 2020 | E112: 2021 | F112: 2022 | G112: 2023 | H112: 2024
A113: 113 | B113: Total number of runway incursions with any contribution from air traffic services or CNS services with a safety impact that occurred at the airport
A114: 114 | B114: Total number of IFR and VFR movements at the airports
A115: 115 | B115: Rate of Runway Incursions at the airport | D115: =IFERROR(D113/(D114),"") ->  | E115: =IFERROR(E113/(E114),"") ->  | F115: =IFERROR(F113/(F114),"") ->  | G115: =IFERROR(G113/(G114),"") ->  | H115: =IFERROR(H113/(H114),"") -> 
A116: 116
A117: 117 | D117: 2020 | E117: 2021 | F117: 2022 | G117: 2023 | H117: 2024
A118: 118 | B118: Total number of runway incursions with any contribution from air traffic services or CNS services with a safety impact that occurred at the airport
A119: 119 | B119: Total number of IFR and VFR movements at the airports
A120: 120 | B120: Rate of Runway Incursions at the airport | D120: =IFERROR(D118/(D119),"") ->  | E120: =IFERROR(E118/E119,"") ->  | F120: =IFERROR(F118/F119,"") ->  | G120: =IFERROR(G118/G119,"") ->  | H120: =IFERROR(H118/H119,"") -> 
A121: 121
A122: 122 | D122: 2020 | E122: 2021 | F122: 2022 | G122: 2023 | H122: 2024
A123: 123 | B123: Total number of runway incursions with any contribution from air traffic services or CNS services with a safety impact that occurred at the airport
A124: 124 | B124: Total number of IFR and VFR movements at the airports
A125: 125 | B125: Rate of Runway Incursions at the airport | D125: =IFERROR(D123/(D124),"") ->  | E125: =IFERROR(E123/(E124),"") ->  | F125: =IFERROR(F123/(F124),"") ->  | G125: =IFERROR(G123/(G124),"") ->  | H125: =IFERROR(H123/(H124),"") -> 
A126: 126
A127: 127 | D127: 2020 | E127: 2021 | F127: 2022 | G127: 2023 | H127: 2024
A128: 128 | B128: Total number of runway incursions with any contribution from air traffic services or CNS services with a safety impact that occurred at the airport
A129: 129 | B129: Total number of IFR and VFR movements at the airports
A130: 130 | B130: Rate of Runway Incursions at the airport | D130: =IFERROR(D128/(D129),"") ->  | E130: =IFERROR(E128/(E129),"") ->  | F130: =IFERROR(F128/(F129),"") ->  | G130: =IFERROR(G128/(G129),"") ->  | H130: =IFERROR(H128/(H129),"") -> 
A131: 131
A132: 132 | D132: 2020 | E132: 2021 | F132: 2022 | G132: 2023 | H132: 2024
A133: 133 | B133: Total number of runway incursions with any contribution from air traffic services or CNS services with a safety impact that occurred at the airport
A134: 134 | B134: Total number of IFR and VFR movements at the airports
A135: 135 | B135: Rate of Runway Incursions at the airport | D135: =IFERROR(D133/(D134),"") ->  | E135: =IFERROR(E133/(E134),"") ->  | F135: =IFERROR(F133/(F134),"") ->  | G135: =IFERROR(G133/(G134),"") ->  | H135: =IFERROR(H133/(H134),"") -> 
A136: 136
A137: 137 | D137: 2020 | E137: 2021 | F137: 2022 | G137: 2023 | H137: 2024
A138: 138 | B138: Total number of runway incursions with any contribution from air traffic services or CNS services with a safety impact that occurred at the airport
A139: 139 | B139: Total number of IFR and VFR movements at the airports
A140: 140 | B140: Rate of Runway Incursions at the airport | D140: =IFERROR(D138/(D139),"") ->  | E140: =IFERROR(E138/(E139),"") ->  | F140: =IFERROR(F138/(F139),"") ->  | G140: =IFERROR(G138/(G139),"") ->  | H140: =IFERROR(H138/(H139),"") -> 
A141: 141
A142: 142 | D142: 2020 | E142: 2021 | F142: 2022 | G142: 2023 | H142: 2024
A143: 143 | B143: Total number of runway incursions with any contribution from air traffic services or CNS services with a safety impact that occurred at the airport
A144: 144 | B144: Total number of IFR and VFR movements at the airports
A145: 145 | B145: Rate of Runway Incursions at the airport | D145: =IFERROR(D143/(D144),"") ->  | E145: =IFERROR(E143/(E144),"") ->  | F145: =IFERROR(F143/(F144),"") ->  | G145: =IFERROR(G143/(G144),"") ->  | H145: =IFERROR(H143/(H144),"") -> 
A146: 146
A147: 147 | D147: 2020 | E147: 2021 | F147: 2022 | G147: 2023 | H147: 2024
A148: 148 | B148: Total number of runway incursions with any contribution from air traffic services or CNS services with a safety impact that occurred at the airport
A149: 149 | B149: Total number of IFR and VFR movements at the airports
A150: 150 | B150: Rate of Runway Incursions at the airport | D150: =IFERROR(D148/(D149),"") ->  | E150: =IFERROR(E148/(E149),"") ->  | F150: =IFERROR(F148/(F149),"") ->  | G150: =IFERROR(G148/(G149),"") ->  | H150: =IFERROR(H148/(H149),"") -> 
A151: 151
A152: 152 | D152: 2020 | E152: 2021 | F152: 2022 | G152: 2023 | H152: 2024
A153: 153 | B153: Total number of runway incursions with any contribution from air traffic services or CNS services with a safety impact that occurred at the airport
A154: 154 | B154: Total number of IFR and VFR movements at the airports
A155: 155 | B155: Rate of Runway Incursions at the airport | D155: =IFERROR(D153/(D154),"") ->  | E155: =IFERROR(E153/(E154),"") ->  | F155: =IFERROR(F153/(F154),"") ->  | G155: =IFERROR(G153/(G154),"") ->  | H155: =IFERROR(H153/(H154),"") -> 
A156: 156
A157: 157 | D157: 2020 | E157: 2021 | F157: 2022 | G157: 2023 | H157: 2024
A158: 158 | B158: Total number of runway incursions with any contribution from air traffic services or CNS services with a safety impact that occurred at the airport
A159: 159 | B159: Total number of IFR and VFR movements at the airports
A160: 160 | B160: Rate of Runway Incursions at the airport | D160: =IFERROR(D158/(D159),"") ->  | E160: =IFERROR(E158/(E159),"") ->  | F160: =IFERROR(F158/(F159),"") ->  | G160: =IFERROR(G158/(G159),"") ->  | H160: =IFERROR(H158/(H159),"") -> 
A161: 161
A162: 162 | D162: 2020 | E162: 2021 | F162: 2022 | G162: 2023 | H162: 2024
A163: 163 | B163: Total number of runway incursions with any contribution from air traffic services or CNS services with a safety impact that occurred at the airport
A164: 164 | B164: Total number of IFR and VFR movements at the airports
A165: 165 | B165: Rate of Runway Incursions at the airport | D165: =IFERROR(D163/(D164),"") ->  | E165: =IFERROR(E163/(E164),"") ->  | F165: =IFERROR(F163/(F164),"") ->  | G165: =IFERROR(G163/(G164),"") ->  | H165: =IFERROR(H163/(H164),"") -> 
A166: 166
A167: 167 | D167: 2020 | E167: 2021 | F167: 2022 | G167: 2023 | H167: 2024
A168: 168 | B168: Total number of runway incursions with any contribution from air traffic services or CNS services with a safety impact that occurred at the airport
A169: 169 | B169: Total number of IFR and VFR movements at the airports
A170: 170 | B170: Rate of Runway Incursions at the airport | D170: =IFERROR(D168/(D169),"") ->  | E170: =IFERROR(E168/(E169),"") ->  | F170: =IFERROR(F168/(F169),"") ->  | G170: =IFERROR(G168/(G169),"") ->  | H170: =IFERROR(H168/(H169),"") -> 
A171: 171
A172: 172 | D172: 2020 | E172: 2021 | F172: 2022 | G172: 2023 | H172: 2024
A173: 173 | B173: Total number of runway incursions with any contribution from air traffic services or CNS services with a safety impact that occurred at the airport
A174: 174 | B174: Total number of IFR and VFR movements at the airports
A175: 175 | B175: Rate of Runway Incursions at the airport | D175: =IFERROR(D173/(D174),"") ->  | E175: =IFERROR(E173/(E174),"") ->  | F175: =IFERROR(F173/(F174),"") ->  | G175: =IFERROR(G173/(G174),"") ->  | H175: =IFERROR(H173/(H174),"") -> 
A176: 176
A177: 177 | D177: 2020 | E177: 2021 | F177: 2022 | G177: 2023 | H177: 2024
A178: 178 | B178: Total number of runway incursions with any contribution from air traffic services or CNS services with a safety impact that occurred at the airport
A179: 179 | B179: Total number of IFR and VFR movements at the airports
A180: 180 | B180: Rate of Runway Incursions at the airport | D180: =IFERROR(D178/(D179),"") ->  | E180: =IFERROR(E178/(E179),"") ->  | F180: =IFERROR(F178/(F179),"") ->  | G180: =IFERROR(G178/(G179),"") ->  | H180: =IFERROR(H178/(H179),"") -> 
A181: 181
A182: 182 | D182: 2020 | E182: 2021 | F182: 2022 | G182: 2023 | H182: 2024
A183: 183 | B183: Total number of runway incursions with any contribution from air traffic services or CNS services with a safety impact that occurred at the airport
A184: 184 | B184: Total number of IFR and VFR movements at the airports
A185: 185 | B185: Rate of Runway Incursions at the airport | D185: =IFERROR(D183/(D184),"") ->  | E185: =IFERROR(E183/(E184),"") ->  | F185: =IFERROR(F183/(F184),"") ->  | G185: =IFERROR(G183/(G184),"") ->  | H185: =IFERROR(H183/(H184),"") -> 
A186: 186
A187: 187 | D187: 2020 | E187: 2021 | F187: 2022 | G187: 2023 | H187: 2024
A188: 188 | B188: Total number of runway incursions with any contribution from air traffic services or CNS services with a safety impact that occurred at the airport
A189: 189 | B189: Total number of IFR and VFR movements at the airports
A190: 190 | B190: Rate of Runway Incursions at the airport | D190: =IFERROR(D188/(D189),"") ->  | E190: =IFERROR(E188/(E189),"") ->  | F190: =IFERROR(F188/(F189),"") ->  | G190: =IFERROR(G188/(G189),"") ->  | H190: =IFERROR(H188/(H189),"") -> 
A191: 191
A192: 192 | D192: 2020 | E192: 2021 | F192: 2022 | G192: 2023 | H192: 2024
A193: 193 | B193: Total number of runway incursions with any contribution from air traffic services or CNS services with a safety impact that occurred at the airport
A194: 194 | B194: Total number of IFR and VFR movements at the airports
A195: 195 | B195: Rate of Runway Incursions at the airport | D195: =IFERROR(D193/(D194),"") ->  | E195: =IFERROR(E193/(E194),"") ->  | F195: =IFERROR(F193/(F194),"") ->  | G195: =IFERROR(G193/(G194),"") ->  | H195: =IFERROR(H193/(H194),"") -> 
A196: 196
A197: 197 | D197: 2020 | E197: 2021 | F197: 2022 | G197: 2023 | H197: 2024
A198: 198 | B198: Total number of runway incursions with any contribution from air traffic services or CNS services with a safety impact that occurred at the airport
A199: 199 | B199: Total number of IFR and VFR movements at the airports
A200: 200 | B200: Rate of Runway Incursions at the airport | D200: =IFERROR(D198/(D199),"") ->  | E200: =IFERROR(E198/(E199),"") ->  | F200: =IFERROR(F198/(F199),"") ->  | G200: =IFERROR(G198/(G199),"") ->  | H200: =IFERROR(H198/(H199),"") -> 
... 310 more rows

Sheet 2.1.2.D PI
A1: 1 | B1: Estonia | C1: 2023
A2: 2 | B2: 2.1.2.(d) - Safety PI: rate of separation minima infringements (ANSP level)
A3: 3
A4: 4 | B4: Important note: Please refer to the Supporting Guidance Material for the implementation and measurement of the safety key performance indicator (SKPI) and safety performance indicators (SPIs) for the Third Reference Period (RP3) - AMC3 Safety performance indicators (SPIs) for the monitoring of separation minima infringements (SMIs) and runway incursions (RIs) & GM5 Safety performance indicators (SPIs) for the monitoring of separation minima infringements (SMIs) and runway incursions (RIs). When monitoring SMIs ensure that the following has been coded and reported: — unambiguously identify the safety occurrences that are SMIs; — when the SMI occurred at the arrival or departure at an airport, the location indicator of the airport where it took place; — The ATS unit name, airspace type, class and FIR/UIR name; — information on whether, in the judgement of the investigators of the occurrence, the ATS or CNS contributed to the SMI, either directly or indirectly or none, as appropriate; — RAT ground severity associated to the SMI, as obtained by the application of the RAT methodology by the ANSP; — ERCS risk grade associated to the SMI, as obtained by the application of the ERCS methodology by the State.
A5: 5 | B5: Easy Access Rules for Safety (Key) Performance Indicators (S(K)PI) – Third Reference Period (RP3) | EASA (europa.eu)
A6: 6
A7: 7 | B7: EANS | D7: 2020 | E7: 2021 | F7: 2022 | G7: 2023 | H7: 2024
A8: 8 | B8: Total number of separation minima infringements with any contribution from air traffic services, or CNS services with a safety impact | D8: 4 | E8: 4 | F8: 3
A9: 9 | B9: Total number of controlled flight hours within the airspace | D9: 33,558 | E9: 37,511 | F9: 48,360
A10: 10 | B10: Rate of separation minima infringements within the airspace where the air navigation service provider provides air traffic services | D10: =IFERROR(D8/D9,"") -> 0.00012 | E10: =IFERROR(E8/E9,"") -> 0.00011 | F10: =IFERROR(F8/F9,"") -> 0.00006 | G10: =IFERROR(G8/G9,"") ->  | H10: =IFERROR(H8/H9,"") -> 
A11: 11
A12: 12 | D12: 2020 | E12: 2021 | F12: 2022 | G12: 2023 | H12: 2024
A13: 13 | B13: Total number of separation minima infringements with any contribution from air traffic services, or CNS services with a safety impact
A14: 14 | B14: Total number of controlled flight hours within the airspace
A15: 15 | B15: Rate of separation minima infringements within the airspace where the air navigation service provider provides air traffic services | D15: =IFERROR(D13/D14,"") ->  | E15: =IFERROR(E13/E14,"") ->  | F15: =IFERROR(F13/F14,"") ->  | G15: =IFERROR(G13/G14,"") ->  | H15: =IFERROR(H13/H14,"") -> 
A16: 16
A17: 17 | D17: 2020 | E17: 2021 | F17: 2022 | G17: 2023 | H17: 2024
A18: 18 | B18: Total number of separation minima infringements with any contribution from air traffic services, or CNS services with a safety impact
A19: 19 | B19: Total number of controlled flight hours within the airspace
A20: 20 | B20: Rate of separation minima infringements within the airspace where the air navigation service provider provides air traffic services | D20: =IFERROR(D18/D19,"") ->  | E20: =IFERROR(E18/E19,"") ->  | F20: =IFERROR(F18/F19,"") ->  | G20: =IFERROR(G18/G19,"") ->  | H20: =IFERROR(H18/H19,"") -> 
A21: 21
A22: 22 | D22: 2020 | E22: 2021 | F22: 2022 | G22: 2023 | H22: 2024
A23: 23 | B23: Total number of separation minima infringements with any contribution from air traffic services, or CNS services with a safety impact
A24: 24 | B24: Total number of controlled flight hours within the airspace
A25: 25 | B25: Rate of separation minima infringements within the airspace where the air navigation service provider provides air traffic services | D25: =IFERROR(D23/D24,"") ->  | E25: =IFERROR(E23/E24,"") ->  | F25: =IFERROR(F23/F24,"") ->  | G25: =IFERROR(G23/G24,"") ->  | H25: =IFERROR(H23/H24,"") -> 
A26: 26
A27: 27 | D27: 2020 | E27: 2021 | F27: 2022 | G27: 2023 | H27: 2024
A28: 28 | B28: Total number of separation minima infringements with any contribution from air traffic services, or CNS services with a safety impact
A29: 29 | B29: Total number of controlled flight hours within the airspace
A30: 30 | B30: Rate of separation minima infringements within the airspace where the air navigation service provider provides air traffic services | D30: =IFERROR(D28/D29,"") ->  | E30: =IFERROR(E28/E29,"") ->  | F30: =IFERROR(F28/F29,"") ->  | G30: =IFERROR(G28/G29,"") ->  | H30: =IFERROR(H28/H29,"") -> 
A31: 31
A32: 32 | D32: 2020 | E32: 2021 | F32: 2022 | G32: 2023 | H32: 2024
A33: 33 | B33: Total number of separation minima infringements with any contribution from air traffic services, or CNS services with a safety impact
A34: 34 | B34: Total number of controlled flight hours within the airspace
A35: 35 | B35: Rate of separation minima infringements within the airspace where the air navigation service provider provides air traffic services | D35: =IFERROR(D33/D34,"") ->  | E35: =IFERROR(E33/E34,"") ->  | F35: =IFERROR(F33/F34,"") ->  | G35: =IFERROR(G33/G34,"") ->  | H35: =IFERROR(H33/H34,"") -> 
A36: 36
A37: 37 | D37: 2020 | E37: 2021 | F37: 2022 | G37: 2023 | H37: 2024
A38: 38 | B38: Total number of separation minima infringements with any contribution from air traffic services, or CNS services with a safety impact
A39: 39 | B39: Total number of controlled flight hours within the airspace
A40: 40 | B40: Rate of separation minima infringements within the airspace where the air navigation service provider provides air traffic services | D40: =IFERROR(D38/D39,"") ->  | E40: =IFERROR(E38/E39,"") ->  | F40: =IFERROR(F38/F39,"") ->  | G40: =IFERROR(G38/G39,"") ->  | H40: =IFERROR(H38/H39,"") -> 
A41: 41
A42: 42 | D42: 2020 | E42: 2021 | F42: 2022 | G42: 2023 | H42: 2024
A43: 43 | B43: Total number of separation minima infringements with any contribution from air traffic services, or CNS services with a safety impact
A44: 44 | B44: Total number of controlled flight hours within the airspace
A45: 45 | B45: Rate of separation minima infringements within the airspace where the air navigation service provider provides air traffic services | D45: =IFERROR(D43/D44,"") ->  | E45: =IFERROR(E43/E44,"") ->  | F45: =IFERROR(F43/F44,"") ->  | G45: =IFERROR(G43/G44,"") ->  | H45: =IFERROR(H43/H44,"") -> 
A46: 46
A47: 47 | B47: What initiatives were implemented or are planned that will improve this PI and how does the NSA intend on monitoring their effectiveness on performance?
A48: 48
A49: 49
A50: 50
A51: 51

Sheet 2.1.2.E PI
A1: 1 | B1: Estonia | C1: 2023
A2: 2 | B2: 2.1.2.(e) - Safety PI: Application of automated safety data recording systems
A3: 3
A4: 4 | B4: Important note: Please provide details of any automated safety data recording systems that have been implemented, including the use of the systems by the air navigation service provider, as a component of the safety risk management framework, for the purposes of gathering, storing and near-real time analyses of data related to, as a minimum, separation minima infringements and runway incursions Please refer to the Supporting Material for the implementation and measurement of the safety key performance indicator (SKPI) and safety performance indicators (SPIs) for the Third Reference Period (RP3).
A5: 5 | B5: https://www.easa.europa.eu/document-library/easy-access-rules/easy-access-rules-safety-key-performance-indicators-skpi-third
A6: 6
A7: 7 | B7: EANS | D7: Type of automated safety data recording system: | F7: Click to select
A8: 8
A9: 9 | B9: (a) What safety data is captured by the automated safety data recording systems?
A10: 10
A11: 11
A12: 12
A13: 13
A14: 14 | B14: (b) How is the data captured used in support of the safety risk management framework?
A15: 15
A16: 16
A17: 17
A18: 18
A19: 19 | B19: (c) How are just-culture organisation principles applied in gathering and using the safety data recorded?
A20: 20
A21: 21
A22: 22
A23: 23
A24: 24 | B24: (d) How is the monitoring of data sources organised and how is it ensured that available data sources are utilised in a coherent way?
A25: 25
A26: 26
A27: 27
A28: 28
A29: 29 | B29: (e) How is the data combined to provide the explanatory power to understand the context that led to safety occurrences and anticipate emerging risks?
A30: 30
A31: 31
A32: 32
A33: 33
A34: 34 | B34: (f) How is the information from safety data analyses fed forward to risk assessment processes and to designers of future systems?
A35: 35
A36: 36
A37: 37
A38: 38
A39: 39 | B39: (g) How is the information disseminated inside and outside the organisation?
A40: 40
A41: 41
A42: 42
A43: 43
A44: 44 | B44: (h) Have obstacles of a technical, operational or cultural nature been identified that prevented the realisation of the full potential of a data-driven safety decision-making process? What are the main issues when using automated safety data recording systems?
A45: 45
A46: 46
A47: 47
A48: 48
A49: 49 | D49: Type of automated safety data recording system: | F49: Click to select
A50: 50
A51: 51 | B51: (a) What safety data is captured by the automated safety data recording systems?
A52: 52
A53: 53
A54: 54
A55: 55
A56: 56 | B56: (b) How is the data captured used in support of the safety risk management framework?
A57: 57
A58: 58
A59: 59
A60: 60
A61: 61 | B61: (c) How are just-culture organisation principles applied in gathering and using the safety data recorded?
A62: 62
A63: 63
A64: 64
A65: 65
A66: 66 | B66: (d) How is the monitoring of data sources organised and how is it ensured that available data sources are utilised in a coherent way?
A67: 67
A68: 68
A69: 69
A70: 70
A71: 71 | B71: (e) How is the data combined to provide the explanatory power to understand the context that led to safety occurrences and anticipate emerging risks?
A72: 72
A73: 73
A74: 74
A75: 75
A76: 76 | B76: (f) How is the information from safety data analyses fed forward to risk assessment processes and to designers of future systems?
A77: 77
A78: 78
A79: 79
A80: 80
A81: 81 | B81: (g) How is the information disseminated inside and outside the organisation?
A82: 82
A83: 83
A84: 84
A85: 85
A86: 86 | B86: (h) Have obstacles of a technical, operational or cultural nature been identified that prevented the realisation of the full potential of a data-driven safety decision-making process? What are the main issues when using automated safety data recording systems?
A87: 87
A88: 88
A89: 89
A90: 90
A91: 91 | D91: Type of automated safety data recording system: | F91: Click to select
A92: 92
A93: 93 | B93: (a) What safety data is captured by the automated safety data recording systems?
A94: 94
A95: 95
A96: 96
A97: 97
A98: 98 | B98: (b) How is the data captured used in support of the safety risk management framework?
A99: 99
A100: 100
A101: 101
A102: 102
A103: 103 | B103: (c) How are just-culture organisation principles applied in gathering and using the safety data recorded?
A104: 104
A105: 105
A106: 106
A107: 107
A108: 108 | B108: (d) How is the monitoring of data sources organised and how is it ensured that available data sources are utilised in a coherent way?
A109: 109
A110: 110
A111: 111
A112: 112
A113: 113 | B113: (e) How is the data combined to provide the explanatory power to understand the context that led to safety occurrences and anticipate emerging risks?
A114: 114
A115: 115
A116: 116
A117: 117
A118: 118 | B118: (f) How is the information from safety data analyses fed forward to risk assessment processes and to designers of future systems?
A119: 119
A120: 120
A121: 121
A122: 122
A123: 123 | B123: (g) How is the information disseminated inside and outside the organisation?
A124: 124
A125: 125
A126: 126
A127: 127
A128: 128 | B128: (h) Have obstacles of a technical, operational or cultural nature been identified that prevented the realisation of the full potential of a data-driven safety decision-making process? What are the main issues when using automated safety data recording systems?
A129: 129
A130: 130
A131: 131
A132: 132
A133: 133 | D133: Type of automated safety data recording system: | F133: Click to select
A134: 134
A135: 135 | B135: (a) What safety data is captured by the automated safety data recording systems?
A136: 136
A137: 137
A138: 138
A139: 139
A140: 140 | B140: (b) How is the data captured used in support of the safety risk management framework?
A141: 141
A142: 142
A143: 143
A144: 144
A145: 145 | B145: (c) How are just-culture organisation principles applied in gathering and using the safety data recorded?
A146: 146
A147: 147
A148: 148
A149: 149
A150: 150 | B150: (d) How is the monitoring of data sources organised and how is it ensured that available data sources are utilised in a coherent way?
A151: 151
A152: 152
A153: 153
A154: 154
A155: 155 | B155: (e) How is the data combined to provide the explanatory power to understand the context that led to safety occurrences and anticipate emerging risks?
A156: 156
A157: 157
A158: 158
A159: 159
A160: 160 | B160: (f) How is the information from safety data analyses fed forward to risk assessment processes and to designers of future systems?
A161: 161
A162: 162
A163: 163
A164: 164
A165: 165 | B165: (g) How is the information disseminated inside and outside the organisation?
A166: 166
A167: 167
A168: 168
A169: 169
A170: 170 | B170: (h) Have obstacles of a technical, operational or cultural nature been identified that prevented the realisation of the full potential of a data-driven safety decision-making process? What are the main issues when using automated safety data recording systems?
A171: 171
A172: 172
A173: 173
A174: 174
A175: 175 | D175: Type of automated safety data recording system: | F175: Click to select
A176: 176
A177: 177 | B177: (a) What safety data is captured by the automated safety data recording systems?
A178: 178
A179: 179
A180: 180
A181: 181
A182: 182 | B182: (b) How is the data captured used in support of the safety risk management framework?
A183: 183
A184: 184
A185: 185
A186: 186
A187: 187 | B187: (c) How are just-culture organisation principles applied in gathering and using the safety data recorded?
A188: 188
A189: 189
A190: 190
A191: 191
A192: 192 | B192: (d) How is the monitoring of data sources organised and how is it ensured that available data sources are utilised in a coherent way?
A193: 193
A194: 194
A195: 195
A196: 196
A197: 197 | B197: (e) How is the data combined to provide the explanatory power to understand the context that led to safety occurrences and anticipate emerging risks?
A198: 198
A199: 199
A200: 200
... 142 more rows

Sheet 2.1.3. Additional indicators
A1: 1 | B1: Estonia | C1: 2023
A2: 2 | B2: 2.1.3 - Additional Safety Indicators
A3: 3
A4: 4 | B4: Number of additional Safety Indicators | C4: Click to select number of additional Indicators
A5: 5
A6: 6 | B6: Name of additional indicator #1
A7: 7 | B7: Details and description
A8: 8
A9: 9 | B9: Name of additional indicator #2
A10: 10 | B10: Details and description
A11: 11
A12: 12 | B12: Name of additional indicator #3
A13: 13 | B13: Details and description
A14: 14
A15: 15 | B15: Name of additional indicator #4
A16: 16 | B16: Details and description
A17: 17
A18: 18 | B18: Name of additional indicator #5
A19: 19 | B19: Details and description
A20: 20
A21: 21 | B21: Name of additional indicator #6
A22: 22 | B22: Details and description
A23: 23
A24: 24 | B24: Name of additional indicator #7
A25: 25 | B25: Details and description
A26: 26
A27: 27 | B27: Name of additional indicator #8
A28: 28 | B28: Details and description
A29: 29
A30: 30 | B30: Name of additional indicator #9
A31: 31 | B31: Details and description
A32: 32
A33: 33 | B33: Name of additional indicator #10
A34: 34 | B34: Details and description
A35: 35
A36: 36 | B36: Name of additional indicator #11
A37: 37 | B37: Details and description
A38: 38
A39: 39 | B39: Name of additional indicator #12
A40: 40 | B40: Details and description
A41: 41
A42: 42

Sheet 2.2. ENVIRONMENT >>>
A1: NO_PRINT | B1: Estonia | C1: 2023
A2: 2 | B2: SECTION 2.2: ENVIRONMENT KPA

Sheet 2.2.1.A KPI #1
A1: 1 | B1: Estonia | C1: 2023
A2: 2
A3: 3
A4: 4 | B4: 2.2 - Environment
A5: 5
A6: 6 | B6: 2.2.1 - Key Performance Indicators
A7: 7
A8: 8 | B8: 2.2.1.(a) - Environment KPI #1: Horizontal en-route flight efficiency (KEA)
A9: 9
A10: 10 | B10: Estonia | C10: 2020 | D10: 2021 | E10: 2022 | F10: 2023 | G10: 2024
A11: 11
A12: 12
A13: 13
A14: 14 | B14: Targets as shown in PP | C14: 1.33% | D14: 1.22% | E14: 1.22% | F14: 1.22% | G14: 1.22%
A15: 15 | B15: Actual values | C15: 1.21% | D15: 1.43% | E15: 5.46% | F15: 6.55%
A16: 16 | B16: Difference | C16: =IFERROR(C15-C14,"") -> -0.12% | D16: =IFERROR(D15-D14,"") -> 0.21% | E16: =IFERROR(E15-E14,"") -> 4.24% | F16: =IFERROR(F15-F14,"") -> 5.33%
A17: 17
A18: 18 | B18: Assessment of the achieved level of actual performance in the environment KPA
A19: 19
A20: 20
A21: 21
A22: 22
A23: 23 | B23: Has the ANSP implemented any major operational or structural changes (incl. any new fixed assets put into operation) during the calendar year impacting performance in this key performance area? Please outline the relevant changes and their estimated impact
A24: 24
A25: 25
A26: 26
A27: 27
A28: 28 | B28: Implementation of published flight efficiency plans (ERNIP)
A29: 29
A30: 30
A31: 31
A32: 32
A33: 33 | B33: If the performance target for the calendar year was not met
A34: 34
A35: 35 | B35: Identification and analysis by the NSA of the underlying reasons or circumstances having led to the performance target not being achieved
A36: 36
A37: 37
A38: 38
A39: 39
A40: 40 | B40: Recommendations to the ANSP to rectify the situation
A41: 41
A42: 42
A43: 43
A44: 44
A45: 45 | B45: Remedial measures have been / will be taken by the ANSP? | G45: Click to select
A46: 46
A47: 47 | B47: Number of measures put in place | G47: Click to select
A48: 48
A49: 49 | B49: Title | C49: Description | E49: Timeline for implementation | F49: Status
A50: 50
A51: 51
A52: 52
A53: 53
A54: 54
A55: 55
A56: 56
A57: 57
A58: 58
A59: 59
A60: 60
A61: 61
A62: 62
A63: 63
A64: 64
A65: 65
A66: 66
A67: 67
A68: 68
A69: 69
A70: 70
A71: 71 | B71: If no measures will be taken by the ANSP, please explain why
A72: 72
A73: 73
A74: 74
A75: 75
A76: 76 | B76: Follow-up of the measures relating to previous calendar years
A77: 77
A78: 78 | B78: Remedial measures have been / will be taken by the ANSP? | G78: Click to select
A79: 79
A80: 80 | B80: If yes, have those measures been effectively implemented? | G80: Click to select
A81: 81
A82: 82 | B82: What action has the NSA taken to check/monitor the implementation of those measures and what further actions (if any) are planned during the ongoing calendar year?
A83: 83
A84: 84
A85: 85
A86: 86
A87: 87 | B87: Is the NSA aware of any significant risks which are likely to lead to performance targets not being achieved during the ongoing calendar year or during the following calendar years of the reference period? | G87: Click to select
A88: 88
A89: 89 | B89: What has been done by the ANSP in order to address the identified performance issues?
A90: 90
A91: 91
A92: 92
A93: 93
A94: 94 | B94: What further measures does the NSA intend to undertake to remedy this situation?
A95: 95
A96: 96
A97: 97
A98: 98
A99: 99 | B99: Additional comments
A100: 100
A101: 101
A102: 102
A103: 103
A104: 104
A105: 105 | B105: Additional information related to Russia’s war of aggression against Ukraine
A106: 106
A107: 107 | B107: Please describe any changes in traffic flows/patterns, and if/how those changes affected the Environment KPA.
A108: 108
A109: 109
A110: 110
A111: 111
A112: 112 | B112: Please describe what remedial actions have been taken to mitigate any possible impacts on the Environment KPA, related to Russia’s war of aggression against Ukraine.
A113: 113
A114: 114
A115: 115

Sheet 2.2.2.A PI #1
A1: 1 | B1: Estonia | C1: 2023
A2: 2 | B2: 2.2.2 - Performance Indicators
A3: 3
A4: 4 | B4: 2.2.2.(a) - Environment PI #1: Horizontal en-route flight efficiency of last filed flight plan (KEP)
A5: 5
A6: 6 | B6: Estonia | C6: 2020 | D6: 2021 | E6: 2022 | F6: 2023 | G6: 2024
A7: 7 | B7: Actual values | C7: 1.34% | D7: 1.66% | E7: 5.74% | F7: 6.77%
A8: 8
A9: 9 | B9: What initiatives were implemented or are planned that will improve this PI and how does the NSA intend on monitoring their effectiveness on performance?
A10: 10
A11: 11
A12: 12
A13: 13

Sheet 2.2.2.B PI #2
A1: 1 | B1: Estonia | C1: 2023
A2: 2 | B2: 2.2.2.(b) - Environment PI #2: Horizontal en-route flight efficiency of shortest constrained route (KES)
A3: 3
A4: 4 | B4: Estonia | C4: 2020 | D4: 2021 | E4: 2022 | F4: 2023 | G4: 2024
A5: 5 | B5: Actual values | C5: 1.23% | D5: 1.62% | E5: 5.76% | F5: 6.65%
A6: 6
A7: 7 | B7: What initiatives were implemented or are planned that will improve this PI and how does the NSA intend on monitoring their effectiveness on performance?
A8: 8
A9: 9
A10: 10

Sheet 2.2.2.C PI #3
A1: 1 | B1: Estonia | C1: 2023
A2: 2 | B2: 2.2.2.(c) - Environment PI #3: Additional taxi-out time (>80K movements)
A3: 3
A4: 4 | B4: Important note: If the data at airport level are not available, the field will show "N/A"
A5: 5
A6: 6 | B6: STATE/FAB | E6: 2020 | F6: 2021 | G6: 2022 | H6: 2023 | I6: 2024
A7: 7 | B7: only airports > 80k movements (2016-18)
A8: 8
A9: 9 | D9: Actual
A10: 10 | D10: Actual
A11: 11 | D11: Actual
A12: 12 | D12: Actual
A13: 13 | D13: Actual
A14: 14 | D14: Actual
A15: 15 | D15: Actual
A16: 16 | D16: Actual
A17: 17 | D17: Actual
A18: 18 | D18: Actual
A19: 19 | D19: Actual
A20: 20 | D20: Actual
A21: 21 | D21: Actual
A22: 22 | D22: Actual
A23: 23 | D23: Actual
A24: 24 | D24: Actual
A25: 25 | D25: Actual
A26: 26 | D26: Actual
A27: 27 | D27: Actual
A28: 28 | D28: Actual
A29: 29 | D29: Actual
A30: 30 | D30: Actual
A31: 31 | D31: Actual
A32: 32 | D32: Actual
A33: 33 | D33: Actual
A34: 34 | D34: Actual
A35: 35 | D35: Actual
A36: 36 | D36: Actual
A37: 37 | D37: Actual
A38: 38 | D38: Actual
A39: 39 | D39: Actual
A40: 40 | D40: Actual
A41: 41 | D41: Actual
A42: 42 | D42: Actual
A43: 43 | D43: Actual
A44: 44 | D44: Actual
A45: 45 | D45: Actual
A46: 46 | D46: Actual
A47: 47 | D47: Actual
A48: 48 | D48: Actual
A49: 49
A50: 50 | B50: What initiatives were implemented or are planned that will improve this PI and how does the NSA intend on monitoring their effectiveness on performance?
A51: 51
A52: 52
A53: 53
A54: 54
A55: 55 | B55: If the data at airport level are not available, please explain the reasons why data is missing and describe the measures planned to resolve the situation
A56: 56
A57: 57
A58: 58
B61: Not Applicable

Sheet 2.2.2.D PI #4
A1: 1 | B1: Estonia | C1: 2023
A2: 2 | B2: 2.2.2.(d) - Environment PI #4: Additional time in terminal airspace (>80K movements)
A3: 3
A4: 4 | B4: Important note: If the data at airport level are not available, the field will show "N/A"
A5: 5
A6: 6 | B6: STATE/FAB | E6: 2020 | F6: 2021 | G6: 2022 | H6: 2023 | I6: 2024
A7: 7 | B7: only airports > 80k movements (2016-18)
A8: 8
A9: 9 | D9: Actual
A10: 10 | D10: Actual
A11: 11 | D11: Actual
A12: 12 | D12: Actual
A13: 13 | D13: Actual
A14: 14 | D14: Actual
A15: 15 | D15: Actual
A16: 16 | D16: Actual
A17: 17 | D17: Actual
A18: 18 | D18: Actual
A19: 19 | D19: Actual
A20: 20 | D20: Actual
A21: 21 | D21: Actual
A22: 22 | D22: Actual
A23: 23 | D23: Actual
A24: 24 | D24: Actual
A25: 25 | D25: Actual
A26: 26 | D26: Actual
A27: 27 | D27: Actual
A28: 28 | D28: Actual
A29: 29 | D29: Actual
A30: 30 | D30: Actual
A31: 31 | D31: Actual
A32: 32 | D32: Actual
A33: 33 | D33: Actual
A34: 34 | D34: Actual
A35: 35 | D35: Actual
A36: 36 | D36: Actual
A37: 37 | D37: Actual
A38: 38 | D38: Actual
A39: 39 | D39: Actual
A40: 40 | D40: Actual
A41: 41 | D41: Actual
A42: 42 | D42: Actual
A43: 43 | D43: Actual
A44: 44 | D44: Actual
A45: 45 | D45: Actual
A46: 46 | D46: Actual
A47: 47 | D47: Actual
A48: 48 | D48: Actual
A49: 49
A50: 50 | B50: What initiatives were implemented or are planned that will improve this PI and how does the NSA intend on monitoring their effectiveness on performance?
A51: 51
A52: 52
A53: 53
A54: 54
A55: 55 | B55: If the data at airport level are not available, please explain the reasons why data is missing and describe the measures planned to resolve the situation
A56: 56
A57: 57
A58: 58
B61: Not Applicable

Sheet 2.2.2.E PI #5
A1: 1 | B1: Estonia | C1: 2023
A2: 2 | B2: 2.2.2.(e) - Environment PI #5: Share of arrivals applying continuous descent operation
A3: 3
A4: 4 | B4: Important note: If the data at airport level are not available, the field will show "N/A"
A5: 5
A6: 6 | B6: Estonia | E6: 2020 | F6: 2021 | G6: 2022 | H6: 2023 | I6: 2024
A7: 7 | B7: all airports included in the SES PS
A8: 8
A9: 9 | B9: EETN (Tallin) | D9: Actual | E9: 0.61 | F9: 0.56 | G9: 0.66 | H9: 0.66
A10: 10 | B10: EETU (Tartu) | D10: Actual | E10: 0.69 | F10: 0.44 | G10: 0.71 | H10: 0.49
A11: 11 | D11: Actual
A12: 12 | D12: Actual
A13: 13 | D13: Actual
A14: 14 | D14: Actual
A15: 15 | D15: Actual
A16: 16 | D16: Actual
A17: 17 | D17: Actual
A18: 18 | D18: Actual
A19: 19 | D19: Actual
A20: 20 | D20: Actual
A21: 21 | D21: Actual
A22: 22 | D22: Actual
A23: 23 | D23: Actual
A24: 24 | D24: Actual
A25: 25 | D25: Actual
A26: 26 | D26: Actual
A27: 27 | D27: Actual
A28: 28 | D28: Actual
A29: 29 | D29: Actual
A30: 30 | D30: Actual
A31: 31 | D31: Actual
A32: 32 | D32: Actual
A33: 33 | D33: Actual
A34: 34 | D34: Actual
A35: 35 | D35: Actual
A36: 36 | D36: Actual
A37: 37 | D37: Actual
A38: 38 | D38: Actual
A39: 39 | D39: Actual
A40: 40 | D40: Actual
A41: 41 | D41: Actual
A42: 42 | D42: Actual
A43: 43 | D43: Actual
A44: 44 | D44: Actual
A45: 45 | D45: Actual
A46: 46 | D46: Actual
A47: 47 | D47: Actual
A48: 48 | D48: Actual
A49: 49 | D49: Actual
A50: 50 | D50: Actual
A51: 51 | D51: Actual
A52: 52 | D52: Actual
A53: 53 | D53: Actual
A54: 54 | D54: Actual
A55: 55 | D55: Actual
A56: 56 | D56: Actual
A57: 57 | D57: Actual
A58: 58 | D58: Actual
A59: 59 | D59: Actual
A60: 60 | D60: Actual
A61: 61 | D61: Actual
A62: 62 | D62: Actual
A63: 63 | D63: Actual
A64: 64 | D64: Actual
A65: 65 | D65: Actual
A66: 66 | D66: Actual
A67: 67 | D67: Actual
A68: 68 | D68: Actual
A69: 69 | D69: Actual
A70: 70 | D70: Actual
A71: 71 | D71: Actual
A72: 72 | D72: Actual
A73: 73 | D73: Actual
A74: 74 | D74: Actual
A75: 75 | D75: Actual
A76: 76 | D76: Actual
A77: 77 | D77: Actual
A78: 78 | D78: Actual
A79: 79 | D79: Actual
A80: 80 | D80: Actual
A81: 81 | D81: Actual
A82: 82 | D82: Actual
A83: 83 | D83: Actual
A84: 84 | D84: Actual
A85: 85 | D85: Actual
A86: 86 | D86: Actual
A87: 87 | D87: Actual
A88: 88 | D88: Actual
A89: 89 | D89: Actual
A90: 90 | D90: Actual
A91: 91 | D91: Actual
A92: 92 | D92: Actual
A93: 93 | D93: Actual
A94: 94 | D94: Actual
A95: 95 | D95: Actual
A96: 96 | D96: Actual
A97: 97 | D97: Actual
A98: 98 | D98: Actual
A99: 99 | D99: Actual
A100: 100 | D100: Actual
A101: 101 | D101: Actual
A102: 102 | D102: Actual
A103: 103 | D103: Actual
A104: 104 | D104: Actual
A105: 105 | D105: Actual
A106: 106 | D106: Actual
A107: 107 | D107: Actual
A108: 108 | D108: Actual
A109: 109
A110: 110 | B110: What initiatives were implemented or are planned that will improve this PI and how does the NSA intend on monitoring their effectiveness on performance?
A111: 111
A112: 112
A113: 113
A114: 114
A115: 115

Sheet 2.2.2.F PI #6
A1: 1 | B1: Estonia | C1: 2023
A2: 2 | B2: 2.2.2.(f) - Environment PI #6: Effective use of reserved or segregated airspace (per ACC)
A3: 3
A4: 4 | B4: Estonia | D4: 2020 | E4: 2021 | F4: 2022 | G4: 2023 | H4: 2024
A5: 5
A6: 6 | B6: Total number of hours allocated & notified to NM
A7: 7 | B7: Total number of hours used
A8: 8 | B8: Ratio | G8: =IFERROR(G7/G6,"") -> 
A9: 9
A10: 10 | B10: What initiatives were implemented or are planned that will improve this PI and how does the NSA intend on monitoring their effectiveness on performance?
A11: 11
A12: 12
A13: 13
A14: 14
A15: 15
A16: 16
A17: 17 | B17: Tallinn (EETT ACC) | D17: 2020 | E17: 2021 | F17: 2022 | G17: 2023 | H17: 2024
A18: 18
A19: 19 | B19: Total number of hours allocated & notified to NM
A20: 20 | B20: Total number of hours used
A21: 21 | B21: Ratio | G21: =IFERROR(G20/G19,"") -> 
A22: 22
A23: 23 | D23: 2020 | E23: 2021 | F23: 2022 | G23: 2023 | H23: 2024
A24: 24
A25: 25 | B25: Total number of hours allocated & notified to NM
A26: 26 | B26: Total number of hours used
A27: 27 | B27: Ratio | G27: =IFERROR(G26/G25,"") -> 
A28: 28
A29: 29 | D29: 2020 | E29: 2021 | F29: 2022 | G29: 2023 | H29: 2024
A30: 30
A31: 31 | B31: Total number of hours allocated & notified to NM
A32: 32 | B32: Total number of hours used
A33: 33 | B33: Ratio | G33: =IFERROR(G32/G31,"") -> 
A34: 34
A35: 35 | D35: 2020 | E35: 2021 | F35: 2022 | G35: 2023 | H35: 2024
A36: 36
A37: 37 | B37: Total number of hours allocated & notified to NM
A38: 38 | B38: Total number of hours used
A39: 39 | B39: Ratio | G39: =IFERROR(G38/G37,"") -> 
A40: 40
A41: 41 | D41: 2020 | E41: 2021 | F41: 2022 | G41: 2023 | H41: 2024
A42: 42
A43: 43 | B43: Total number of hours allocated & notified to NM
A44: 44 | B44: Total number of hours used
A45: 45 | B45: Ratio | G45: =IFERROR(G44/G43,"") -> 
A46: 46
A47: 47 | D47: 2020 | E47: 2021 | F47: 2022 | G47: 2023 | H47: 2024
A48: 48
A49: 49 | B49: Total number of hours allocated & notified to NM
A50: 50 | B50: Total number of hours used
A51: 51 | B51: Ratio | G51: =IFERROR(G50/G49,"") -> 
A52: 52
A53: 53 | D53: 2020 | E53: 2021 | F53: 2022 | G53: 2023 | H53: 2024
A54: 54
A55: 55 | B55: Total number of hours allocated & notified to NM
A56: 56 | B56: Total number of hours used
A57: 57 | B57: Ratio | G57: =IFERROR(G56/G55,"") -> 
A58: 58
A59: 59 | D59: 2020 | E59: 2021 | F59: 2022 | G59: 2023 | H59: 2024
A60: 60
A61: 61 | B61: Total number of hours allocated & notified to NM
A62: 62 | B62: Total number of hours used
A63: 63 | B63: Ratio | G63: =IFERROR(G62/G61,"") -> 
A64: 64
A65: 65 | B65: What initiatives were implemented or are planned that will improve this PI and how does the NSA intend on monitoring their effectiveness on performance?
A66: 66
A67: 67
A68: 68
A69: 69
A70: 70
A71: 71 | D71: 2020 | E71: 2021 | F71: 2022 | G71: 2023 | H71: 2024
A72: 72
A73: 73 | B73: Total number of hours allocated & notified to NM
A74: 74 | B74: Total number of hours used
A75: 75 | B75: Ratio | G75: =IFERROR(G74/G73,"") -> 
A76: 76
A77: 77 | B77: What initiatives were implemented or are planned that will improve this PI and how does the NSA intend on monitoring their effectiveness on performance?
A78: 78
A79: 79
A80: 80
A81: 81
A82: 82
A83: 83
A84: 84 | B84: Name Area Control Center | D84: 2020 | E84: 2021 | F84: 2022 | G84: 2023 | H84: 2024
A85: 85
A86: 86 | B86: Total number of hours allocated & notified to NM
A87: 87 | B87: Total number of hours used
A88: 88 | B88: Ratio | D88: =IFERROR(D87/D86,"") ->  | E88: =IFERROR(E87/E86,"") ->  | F88: =IFERROR(F87/F86,"") ->  | G88: =IFERROR(G87/G86,"") -> 
A89: 89
A90: 90 | B90: Name Area Control Center | D90: 2020 | E90: 2021 | F90: 2022 | G90: 2023 | H90: 2024
A91: 91
A92: 92 | B92: Total number of hours allocated & notified to NM
A93: 93 | B93: Total number of hours used
A94: 94 | B94: Ratio | D94: =IFERROR(D93/D92,"") ->  | E94: =IFERROR(E93/E92,"") ->  | F94: =IFERROR(F93/F92,"") ->  | G94: =IFERROR(G93/G92,"") -> 
A95: 95
A96: 96 | B96: Name Area Control Center | D96: 2020 | E96: 2021 | F96: 2022 | G96: 2023 | H96: 2024
A97: 97
A98: 98 | B98: Total number of hours allocated & notified to NM
A99: 99 | B99: Total number of hours used
A100: 100 | B100: Ratio | D100: =IFERROR(D99/D98,"") ->  | E100: =IFERROR(E99/E98,"") ->  | F100: =IFERROR(F99/F98,"") ->  | G100: =IFERROR(G99/G98,"") -> 
A101: 101
A102: 102 | B102: Name Area Control Center | D102: 2020 | E102: 2021 | F102: 2022 | G102: 2023 | H102: 2024
A103: 103
A104: 104 | B104: Total number of hours allocated & notified to NM
A105: 105 | B105: Total number of hours used
A106: 106 | B106: Ratio | D106: =IFERROR(D105/D104,"") ->  | E106: =IFERROR(E105/E104,"") ->  | F106: =IFERROR(F105/F104,"") ->  | G106: =IFERROR(G105/G104,"") -> 
A107: 107
A108: 108 | B108: Name Area Control Center | D108: 2020 | E108: 2021 | F108: 2022 | G108: 2023 | H108: 2024
A109: 109
A110: 110 | B110: Total number of hours allocated & notified to NM
A111: 111 | B111: Total number of hours used
A112: 112 | B112: Ratio | D112: =IFERROR(D111/D110,"") ->  | E112: =IFERROR(E111/E110,"") ->  | F112: =IFERROR(F111/F110,"") ->  | G112: =IFERROR(G111/G110,"") -> 
A113: 113
A114: 114 | B114: Name Area Control Center | D114: 2020 | E114: 2021 | F114: 2022 | G114: 2023 | H114: 2024
A115: 115
A116: 116 | B116: Total number of hours allocated & notified to NM
A117: 117 | B117: Total number of hours used
A118: 118 | B118: Ratio | D118: =IFERROR(D117/D116,"") ->  | E118: =IFERROR(E117/E116,"") ->  | F118: =IFERROR(F117/F116,"") ->  | G118: =IFERROR(G117/G116,"") -> 
A119: 119
A120: 120 | B120: Name Area Control Center | D120: 2020 | E120: 2021 | F120: 2022 | G120: 2023 | H120: 2024
A121: 121
A122: 122 | B122: Total number of hours allocated & notified to NM
A123: 123 | B123: Total number of hours used
A124: 124 | B124: Ratio | D124: =IFERROR(D123/D122,"") ->  | E124: =IFERROR(E123/E122,"") ->  | F124: =IFERROR(F123/F122,"") ->  | G124: =IFERROR(G123/G122,"") -> 
A125: 125
A126: 126 | B126: Name Area Control Center | D126: 2020 | E126: 2021 | F126: 2022 | G126: 2023 | H126: 2024
A127: 127
A128: 128 | B128: Total number of hours allocated & notified to NM
A129: 129 | B129: Total number of hours used
A130: 130 | B130: Ratio | D130: =IFERROR(D129/D128,"") ->  | E130: =IFERROR(E129/E128,"") ->  | F130: =IFERROR(F129/F128,"") ->  | G130: =IFERROR(G129/G128,"") -> 
A131: 131
A132: 132 | B132: What initiatives were implemented or are planned that will improve this PI and how does the NSA intend on monitoring their effectiveness on performance?
A133: 133
A134: 134
A135: 135
A136: 136
A137: 137
A138: 138 | D138: 2020 | E138: 2021 | F138: 2022 | G138: 2023 | H138: 2024
A139: 139
A140: 140 | B140: Total number of hours allocated & notified to NM
A141: 141 | B141: Total number of hours used
A142: 142 | B142: Ratio | G142: =IFERROR(G141/G140,"") -> 
A143: 143
A144: 144 | B144: What initiatives were implemented or are planned that will improve this PI and how does the NSA intend on monitoring their effectiveness on performance?
A145: 145
A146: 146
A147: 147
A148: 148
A149: 149
A150: 150
A151: 151 | B151: Name Area Control Center | D151: 2020 | E151: 2021 | F151: 2022 | G151: 2023 | H151: 2024
A152: 152
A153: 153 | B153: Total number of hours allocated & notified to NM
A154: 154 | B154: Total number of hours used
A155: 155 | B155: Ratio | D155: =IFERROR(D154/D153,"") ->  | E155: =IFERROR(E154/E153,"") ->  | F155: =IFERROR(F154/F153,"") ->  | G155: =IFERROR(G154/G153,"") -> 
A156: 156
A157: 157 | B157: Name Area Control Center | D157: 2020 | E157: 2021 | F157: 2022 | G157: 2023 | H157: 2024
A158: 158
A159: 159 | B159: Total number of hours allocated & notified to NM
A160: 160 | B160: Total number of hours used
A161: 161 | B161: Ratio | D161: =IFERROR(D160/D159,"") ->  | E161: =IFERROR(E160/E159,"") ->  | F161: =IFERROR(F160/F159,"") ->  | G161: =IFERROR(G160/G159,"") -> 
A162: 162
A163: 163 | B163: Name Area Control Center | D163: 2020 | E163: 2021 | F163: 2022 | G163: 2023 | H163: 2024
A164: 164
A165: 165 | B165: Total number of hours allocated & notified to NM
A166: 166 | B166: Total number of hours used
A167: 167 | B167: Ratio | D167: =IFERROR(D166/D165,"") ->  | E167: =IFERROR(E166/E165,"") ->  | F167: =IFERROR(F166/F165,"") ->  | G167: =IFERROR(G166/G165,"") -> 
A168: 168
A169: 169 | B169: Name Area Control Center | D169: 2020 | E169: 2021 | F169: 2022 | G169: 2023 | H169: 2024
A170: 170
A171: 171 | B171: Total number of hours allocated & notified to NM
A172: 172 | B172: Total number of hours used
A173: 173 | B173: Ratio | D173: =IFERROR(D172/D171,"") ->  | E173: =IFERROR(E172/E171,"") ->  | F173: =IFERROR(F172/F171,"") ->  | G173: =IFERROR(G172/G171,"") -> 
A174: 174
A175: 175 | B175: Name Area Control Center | D175: 2020 | E175: 2021 | F175: 2022 | G175: 2023 | H175: 2024
A176: 176
A177: 177 | B177: Total number of hours allocated & notified to NM
A178: 178 | B178: Total number of hours used
A179: 179 | B179: Ratio | D179: =IFERROR(D178/D177,"") ->  | E179: =IFERROR(E178/E177,"") ->  | F179: =IFERROR(F178/F177,"") ->  | G179: =IFERROR(G178/G177,"") -> 
A180: 180
A181: 181 | B181: Name Area Control Center | D181: 2020 | E181: 2021 | F181: 2022 | G181: 2023 | H181: 2024
A182: 182
A183: 183 | B183: Total number of hours allocated & notified to NM
A184: 184 | B184: Total number of hours used
A185: 185 | B185: Ratio | D185: =IFERROR(D184/D183,"") ->  | E185: =IFERROR(E184/E183,"") ->  | F185: =IFERROR(F184/F183,"") ->  | G185: =IFERROR(G184/G183,"") -> 
A186: 186
A187: 187 | B187: Name Area Control Center | D187: 2020 | E187: 2021 | F187: 2022 | G187: 2023 | H187: 2024
A188: 188
A189: 189 | B189: Total number of hours allocated & notified to NM
A190: 190 | B190: Total number of hours used
A191: 191 | B191: Ratio | D191: =IFERROR(D190/D189,"") ->  | E191: =IFERROR(E190/E189,"") ->  | F191: =IFERROR(F190/F189,"") ->  | G191: =IFERROR(G190/G189,"") -> 
A192: 192
A193: 193 | B193: Name Area Control Center | D193: 2020 | E193: 2021 | F193: 2022 | G193: 2023 | H193: 2024
A194: 194
A195: 195 | B195: Total number of hours allocated & notified to NM
A196: 196 | B196: Total number of hours used
A197: 197 | B197: Ratio | D197: =IFERROR(D196/D195,"") ->  | E197: =IFERROR(E196/E195,"") ->  | F197: =IFERROR(F196/F195,"") ->  | G197: =IFERROR(G196/G195,"") -> 
A198: 198
A199: 199 | B199: What initiatives were implemented or are planned that will improve this PI and how does the NSA intend on monitoring their effectiveness on performance?
A200: 200
... 337 more rows

Sheet 2.2.2.G PI #7
A1: 1 | B1: Estonia | C1: 2023
A2: 2 | B2: 2.2.2.(g) - Environment PI #7: Rate of planning via available airspace structures (per ACC)
A3: 3
A4: 4 | B4: Estonia | D4: 2020 | E4: 2021 | F4: 2022 | G4: 2023 | H4: 2024
A5: 5
A6: 6 | B6: Number of aircraft filing flight plans via reserved or segregated airspace and CDRs | D6: 0 | E6: 0 | F6: 0
A7: 7 | B7: Number of aircraft that could have planned through those airspace structures | D7: 0 | E7: 0 | F7: 0
A8: 8 | B8: Ratio of planning via available airspace structures | G8: =IFERROR(G6/G7,"") -> 
A9: 9
A10: 10 | B10: What initiatives were implemented or are planned that will improve this PI and how does the NSA intend on monitoring their effectiveness on performance?
A11: 11
A12: 12
A13: 13
A14: 14
A15: 15
A16: 16
A17: 17 | B17: Tallinn (EETT ACC) | D17: 2020 | E17: 2021 | F17: 2022 | G17: 2023 | H17: 2024
A18: 18
A19: 19 | B19: Number of aircraft filing flight plans via reserved or segregated airspace and CDRs | D19: 0 | E19: 0 | F19: 0
A20: 20 | B20: Number of aircraft that could have planned through those airspace structures | D20: 0 | E20: 0 | F20: 0
A21: 21 | B21: Ratio of planning via available airspace structures | G21: =IFERROR(G19/G20,"") -> 
A22: 22
A23: 23 | D23: 2020 | E23: 2021 | F23: 2022 | G23: 2023 | H23: 2024
A24: 24
A25: 25 | B25: Number of aircraft filing flight plans via reserved or segregated airspace and CDRs
A26: 26 | B26: Number of aircraft that could have planned through those airspace structures
A27: 27 | B27: Ratio of planning via available airspace structures | G27: =IFERROR(G25/G26,"") -> 
A28: 28
A29: 29 | D29: 2020 | E29: 2021 | F29: 2022 | G29: 2023 | H29: 2024
A30: 30
A31: 31 | B31: Number of aircraft filing flight plans via reserved or segregated airspace and CDRs
A32: 32 | B32: Number of aircraft that could have planned through those airspace structures
A33: 33 | B33: Ratio of planning via available airspace structures | G33: =IFERROR(G31/G32,"") -> 
A34: 34
A35: 35 | D35: 2020 | E35: 2021 | F35: 2022 | G35: 2023 | H35: 2024
A36: 36
A37: 37 | B37: Number of aircraft filing flight plans via reserved or segregated airspace and CDRs
A38: 38 | B38: Number of aircraft that could have planned through those airspace structures
A39: 39 | B39: Ratio of planning via available airspace structures | G39: =IFERROR(G37/G38,"") -> 
A40: 40
A41: 41 | D41: 2020 | E41: 2021 | F41: 2022 | G41: 2023 | H41: 2024
A42: 42
A43: 43 | B43: Number of aircraft filing flight plans via reserved or segregated airspace and CDRs
A44: 44 | B44: Number of aircraft that could have planned through those airspace structures
A45: 45 | B45: Ratio of planning via available airspace structures | G45: =IFERROR(G43/G44,"") -> 
A46: 46
A47: 47 | D47: 2020 | E47: 2021 | F47: 2022 | G47: 2023 | H47: 2024
A48: 48
A49: 49 | B49: Number of aircraft filing flight plans via reserved or segregated airspace and CDRs
A50: 50 | B50: Number of aircraft that could have planned through those airspace structures
A51: 51 | B51: Ratio of planning via available airspace structures | G51: =IFERROR(G49/G50,"") -> 
A52: 52
A53: 53 | D53: 2020 | E53: 2021 | F53: 2022 | G53: 2023 | H53: 2024
A54: 54
A55: 55 | B55: Number of aircraft filing flight plans via reserved or segregated airspace and CDRs
A56: 56 | B56: Number of aircraft that could have planned through those airspace structures
A57: 57 | B57: Ratio of planning via available airspace structures | G57: =IFERROR(G55/G56,"") -> 
A58: 58
A59: 59 | D59: 2020 | E59: 2021 | F59: 2022 | G59: 2023 | H59: 2024
A60: 60
A61: 61 | B61: Number of aircraft filing flight plans via reserved or segregated airspace and CDRs
A62: 62 | B62: Number of aircraft that could have planned through those airspace structures
A63: 63 | B63: Ratio of planning via available airspace structures | G63: =IFERROR(G61/G62,"") -> 
A64: 64
A65: 65 | B65: What initiatives were implemented or are planned that will improve this PI and how does the NSA intend on monitoring their effectiveness on performance?
A66: 66
A67: 67
A68: 68
A69: 69
A70: 70
A71: 71 | D71: 2020 | E71: 2021 | F71: 2022 | G71: 2023 | H71: 2024
A72: 72
A73: 73 | B73: Number of aircraft filing flight plans via reserved or segregated airspace and CDRs
A74: 74 | B74: Number of aircraft that could have planned through those airspace structures
A75: 75 | B75: Ratio of planning via available airspace structures | G75: =IFERROR(G73/G74,"") -> 
A76: 76
A77: 77 | B77: What initiatives were implemented or are planned that will improve this PI and how does the NSA intend on monitoring their effectiveness on performance?
A78: 78
A79: 79
A80: 80
A81: 81
A82: 82
A83: 83
A84: 84 | B84: Name Area Control Center | D84: 2020 | E84: 2021 | F84: 2022 | G84: 2023 | H84: 2024
A85: 85
A86: 86 | B86: Number of aircraft filing flight plans via reserved or segregated airspace and CDRs
A87: 87 | B87: Number of aircraft that could have planned through those airspace structures
A88: 88 | B88: Ratio of planning via available airspace structures | D88: =IFERROR(D86/D87,"") ->  | E88: =IFERROR(E86/E87,"") ->  | F88: =IFERROR(F86/F87,"") ->  | G88: =IFERROR(G86/G87,"") -> 
A89: 89
A90: 90 | B90: Name Area Control Center | D90: 2020 | E90: 2021 | F90: 2022 | G90: 2023 | H90: 2024
A91: 91
A92: 92 | B92: Number of aircraft filing flight plans via reserved or segregated airspace and CDRs
A93: 93 | B93: Number of aircraft that could have planned through those airspace structures
A94: 94 | B94: Ratio of planning via available airspace structures | D94: =IFERROR(D92/D93,"") ->  | E94: =IFERROR(E92/E93,"") ->  | F94: =IFERROR(F92/F93,"") ->  | G94: =IFERROR(G92/G93,"") -> 
A95: 95
A96: 96 | B96: Name Area Control Center | D96: 2020 | E96: 2021 | F96: 2022 | G96: 2023 | H96: 2024
A97: 97
A98: 98 | B98: Number of aircraft filing flight plans via reserved or segregated airspace and CDRs
A99: 99 | B99: Number of aircraft that could have planned through those airspace structures
A100: 100 | B100: Ratio of planning via available airspace structures | D100: =IFERROR(D98/D99,"") ->  | E100: =IFERROR(E98/E99,"") ->  | F100: =IFERROR(F98/F99,"") ->  | G100: =IFERROR(G98/G99,"") -> 
A101: 101
A102: 102 | B102: Name Area Control Center | D102: 2020 | E102: 2021 | F102: 2022 | G102: 2023 | H102: 2024
A103: 103
A104: 104 | B104: Number of aircraft filing flight plans via reserved or segregated airspace and CDRs
A105: 105 | B105: Number of aircraft that could have planned through those airspace structures
A106: 106 | B106: Ratio of planning via available airspace structures | D106: =IFERROR(D104/D105,"") ->  | E106: =IFERROR(E104/E105,"") ->  | F106: =IFERROR(F104/F105,"") ->  | G106: =IFERROR(G104/G105,"") -> 
A107: 107
A108: 108 | B108: Name Area Control Center | D108: 2020 | E108: 2021 | F108: 2022 | G108: 2023 | H108: 2024
A109: 109
A110: 110 | B110: Number of aircraft filing flight plans via reserved or segregated airspace and CDRs
A111: 111 | B111: Number of aircraft that could have planned through those airspace structures
A112: 112 | B112: Ratio of planning via available airspace structures | D112: =IFERROR(D110/D111,"") ->  | E112: =IFERROR(E110/E111,"") ->  | F112: =IFERROR(F110/F111,"") ->  | G112: =IFERROR(G110/G111,"") -> 
A113: 113
A114: 114 | B114: Name Area Control Center | D114: 2020 | E114: 2021 | F114: 2022 | G114: 2023 | H114: 2024
A115: 115
A116: 116 | B116: Number of aircraft filing flight plans via reserved or segregated airspace and CDRs
A117: 117 | B117: Number of aircraft that could have planned through those airspace structures
A118: 118 | B118: Ratio of planning via available airspace structures | D118: =IFERROR(D116/D117,"") ->  | E118: =IFERROR(E116/E117,"") ->  | F118: =IFERROR(F116/F117,"") ->  | G118: =IFERROR(G116/G117,"") -> 
A119: 119
A120: 120 | B120: Name Area Control Center | D120: 2020 | E120: 2021 | F120: 2022 | G120: 2023 | H120: 2024
A121: 121
A122: 122 | B122: Number of aircraft filing flight plans via reserved or segregated airspace and CDRs
A123: 123 | B123: Number of aircraft that could have planned through those airspace structures
A124: 124 | B124: Ratio of planning via available airspace structures | D124: =IFERROR(D122/D123,"") ->  | E124: =IFERROR(E122/E123,"") ->  | F124: =IFERROR(F122/F123,"") ->  | G124: =IFERROR(G122/G123,"") -> 
A125: 125
A126: 126 | B126: Name Area Control Center | D126: 2020 | E126: 2021 | F126: 2022 | G126: 2023 | H126: 2024
A127: 127
A128: 128 | B128: Number of aircraft filing flight plans via reserved or segregated airspace and CDRs
A129: 129 | B129: Number of aircraft that could have planned through those airspace structures
A130: 130 | B130: Ratio of planning via available airspace structures | D130: =IFERROR(D128/D129,"") ->  | E130: =IFERROR(E128/E129,"") ->  | F130: =IFERROR(F128/F129,"") ->  | G130: =IFERROR(G128/G129,"") -> 
A131: 131
A132: 132 | B132: What initiatives were implemented or are planned that will improve this PI and how does the NSA intend on monitoring their effectiveness on performance?
A133: 133
A134: 134
A135: 135
A136: 136
A137: 137
A138: 138 | D138: 2020 | E138: 2021 | F138: 2022 | G138: 2023 | H138: 2024
A139: 139
A140: 140 | B140: Number of aircraft filing flight plans via reserved or segregated airspace and CDRs
A141: 141 | B141: Number of aircraft that could have planned through those airspace structures
A142: 142 | B142: Ratio of planning via available airspace structures | G142: =IFERROR(G140/G141,"") -> 
A143: 143
A144: 144 | B144: What initiatives were implemented or are planned that will improve this PI and how does the NSA intend on monitoring their effectiveness on performance?
A145: 145
A146: 146
A147: 147
A148: 148
A149: 149
A150: 150
A151: 151 | B151: Name Area Control Center | D151: 2020 | E151: 2021 | F151: 2022 | G151: 2023 | H151: 2024
A152: 152
A153: 153 | B153: Number of aircraft filing flight plans via reserved or segregated airspace and CDRs
A154: 154 | B154: Number of aircraft that could have planned through those airspace structures
A155: 155 | B155: Ratio of planning via available airspace structures | D155: =IFERROR(D153/D154,"") ->  | E155: =IFERROR(E153/E154,"") ->  | F155: =IFERROR(F153/F154,"") ->  | G155: =IFERROR(G153/G154,"") -> 
A156: 156
A157: 157 | B157: Name Area Control Center | D157: 2020 | E157: 2021 | F157: 2022 | G157: 2023 | H157: 2024
A158: 158
A159: 159 | B159: Number of aircraft filing flight plans via reserved or segregated airspace and CDRs
A160: 160 | B160: Number of aircraft that could have planned through those airspace structures
A161: 161 | B161: Ratio of planning via available airspace structures | D161: =IFERROR(D159/D160,"") ->  | E161: =IFERROR(E159/E160,"") ->  | F161: =IFERROR(F159/F160,"") ->  | G161: =IFERROR(G159/G160,"") -> 
A162: 162
A163: 163 | B163: Name Area Control Center | D163: 2020 | E163: 2021 | F163: 2022 | G163: 2023 | H163: 2024
A164: 164
A165: 165 | B165: Number of aircraft filing flight plans via reserved or segregated airspace and CDRs
A166: 166 | B166: Number of aircraft that could have planned through those airspace structures
A167: 167 | B167: Ratio of planning via available airspace structures | D167: =IFERROR(D165/D166,"") ->  | E167: =IFERROR(E165/E166,"") ->  | F167: =IFERROR(F165/F166,"") ->  | G167: =IFERROR(G165/G166,"") -> 
A168: 168
A169: 169 | B169: Name Area Control Center | D169: 2020 | E169: 2021 | F169: 2022 | G169: 2023 | H169: 2024
A170: 170
A171: 171 | B171: Number of aircraft filing flight plans via reserved or segregated airspace and CDRs
A172: 172 | B172: Number of aircraft that could have planned through those airspace structures
A173: 173 | B173: Ratio of planning via available airspace structures | D173: =IFERROR(D171/D172,"") ->  | E173: =IFERROR(E171/E172,"") ->  | F173: =IFERROR(F171/F172,"") ->  | G173: =IFERROR(G171/G172,"") -> 
A174: 174
A175: 175 | B175: Name Area Control Center | D175: 2020 | E175: 2021 | F175: 2022 | G175: 2023 | H175: 2024
A176: 176
A177: 177 | B177: Number of aircraft filing flight plans via reserved or segregated airspace and CDRs
A178: 178 | B178: Number of aircraft that could have planned through those airspace structures
A179: 179 | B179: Ratio of planning via available airspace structures | D179: =IFERROR(D177/D178,"") ->  | E179: =IFERROR(E177/E178,"") ->  | F179: =IFERROR(F177/F178,"") ->  | G179: =IFERROR(G177/G178,"") -> 
A180: 180
A181: 181 | B181: Name Area Control Center | D181: 2020 | E181: 2021 | F181: 2022 | G181: 2023 | H181: 2024
A182: 182
A183: 183 | B183: Number of aircraft filing flight plans via reserved or segregated airspace and CDRs
A184: 184 | B184: Number of aircraft that could have planned through those airspace structures
A185: 185 | B185: Ratio of planning via available airspace structures | D185: =IFERROR(D183/D184,"") ->  | E185: =IFERROR(E183/E184,"") ->  | F185: =IFERROR(F183/F184,"") ->  | G185: =IFERROR(G183/G184,"") -> 
A186: 186
A187: 187 | B187: Name Area Control Center | D187: 2020 | E187: 2021 | F187: 2022 | G187: 2023 | H187: 2024
A188: 188
A189: 189 | B189: Number of aircraft filing flight plans via reserved or segregated airspace and CDRs
A190: 190 | B190: Number of aircraft that could have planned through those airspace structures
A191: 191 | B191: Ratio of planning via available airspace structures | D191: =IFERROR(D189/D190,"") ->  | E191: =IFERROR(E189/E190,"") ->  | F191: =IFERROR(F189/F190,"") ->  | G191: =IFERROR(G189/G190,"") -> 
A192: 192
A193: 193 | B193: Name Area Control Center | D193: 2020 | E193: 2021 | F193: 2022 | G193: 2023 | H193: 2024
A194: 194
A195: 195 | B195: Number of aircraft filing flight plans via reserved or segregated airspace and CDRs
A196: 196 | B196: Number of aircraft that could have planned through those airspace structures
A197: 197 | B197: Ratio of planning via available airspace structures | D197: =IFERROR(D195/D196,"") ->  | E197: =IFERROR(E195/E196,"") ->  | F197: =IFERROR(F195/F196,"") ->  | G197: =IFERROR(G195/G196,"") -> 
A198: 198
A199: 199 | B199: What initiatives were implemented or are planned that will improve this PI and how does the NSA intend on monitoring their effectiveness on performance?
A200: 200
... 339 more rows

Sheet 2.2.2.H PI #8
A1: 1 | B1: Estonia | C1: 2023
A2: 2 | B2: 2.2.2.(h) - Environment PI #8: Rate of using available airspace structures (per ACC)
A3: 3
A4: 4 | B4: Estonia | D4: 2020 | E4: 2021 | F4: 2022 | G4: 2023 | H4: 2024
A5: 5
A6: 6 | B6: Number of aircraft flying via reserved or segregated airspace and CDRs | E6: 0 | F6: 0
A7: 7 | B7: Number of aircraft that could have planned through those airspace structures | E7: 0 | F7: 0
A8: 8 | B8: Ratio of using available airspace structures | G8: =IFERROR(G6/G7,"") -> 
A9: 9
A10: 10 | B10: What initiatives were implemented or are planned that will improve this PI and how does the NSA intend on monitoring their effectiveness on performance?
A11: 11
A12: 12
A13: 13
A14: 14
A15: 15
A16: 16
A17: 17 | B17: Tallinn (EETT ACC) | D17: 2020 | E17: 2021 | F17: 2022 | G17: 2023 | H17: 2024
A18: 18
A19: 19 | B19: Number of aircraft flying via reserved or segregated airspace and CDRs | E19: 0 | F19: 0
A20: 20 | B20: Number of aircraft that could have planned through those airspace structures | E20: 0 | F20: 0
A21: 21 | B21: Ratio of using available airspace structures | G21: =IFERROR(G19/G20,"") -> 
A22: 22
A23: 23 | D23: 2020 | E23: 2021 | F23: 2022 | G23: 2023 | H23: 2024
A24: 24
A25: 25 | B25: Number of aircraft flying via reserved or segregated airspace and CDRs
A26: 26 | B26: Number of aircraft that could have planned through those airspace structures
A27: 27 | B27: Ratio of using available airspace structures | G27: =IFERROR(G25/G26,"") -> 
A28: 28
A29: 29 | D29: 2020 | E29: 2021 | F29: 2022 | G29: 2023 | H29: 2024
A30: 30
A31: 31 | B31: Number of aircraft flying via reserved or segregated airspace and CDRs
A32: 32 | B32: Number of aircraft that could have planned through those airspace structures
A33: 33 | B33: Ratio of using available airspace structures | G33: =IFERROR(G31/G32,"") -> 
A34: 34
A35: 35 | D35: 2020 | E35: 2021 | F35: 2022 | G35: 2023 | H35: 2024
A36: 36
A37: 37 | B37: Number of aircraft flying via reserved or segregated airspace and CDRs
A38: 38 | B38: Number of aircraft that could have planned through those airspace structures
A39: 39 | B39: Ratio of using available airspace structures | G39: =IFERROR(G37/G38,"") -> 
A40: 40
A41: 41 | D41: 2020 | E41: 2021 | F41: 2022 | G41: 2023 | H41: 2024
A42: 42
A43: 43 | B43: Number of aircraft flying via reserved or segregated airspace and CDRs
A44: 44 | B44: Number of aircraft that could have planned through those airspace structures
A45: 45 | B45: Ratio of using available airspace structures | G45: =IFERROR(G43/G44,"") -> 
A46: 46
A47: 47 | D47: 2020 | E47: 2021 | F47: 2022 | G47: 2023 | H47: 2024
A48: 48
A49: 49 | B49: Number of aircraft flying via reserved or segregated airspace and CDRs
A50: 50 | B50: Number of aircraft that could have planned through those airspace structures
A51: 51 | B51: Ratio of using available airspace structures | G51: =IFERROR(G49/G50,"") -> 
A52: 52
A53: 53 | D53: 2020 | E53: 2021 | F53: 2022 | G53: 2023 | H53: 2024
A54: 54
A55: 55 | B55: Number of aircraft flying via reserved or segregated airspace and CDRs
A56: 56 | B56: Number of aircraft that could have planned through those airspace structures
A57: 57 | B57: Ratio of using available airspace structures | G57: =IFERROR(G55/G56,"") -> 
A58: 58
A59: 59 | D59: 2020 | E59: 2021 | F59: 2022 | G59: 2023 | H59: 2024
A60: 60
A61: 61 | B61: Number of aircraft flying via reserved or segregated airspace and CDRs
A62: 62 | B62: Number of aircraft that could have planned through those airspace structures
A63: 63 | B63: Ratio of using available airspace structures | G63: =IFERROR(G61/G62,"") -> 
A64: 64
A65: 65 | B65: What initiatives were implemented or are planned that will improve this PI and how does the NSA intend on monitoring their effectiveness on performance?
A66: 66
A67: 67
A68: 68
A69: 69
A70: 70
A71: 71 | D71: 2020 | E71: 2021 | F71: 2022 | G71: 2023 | H71: 2024
A72: 72
A73: 73 | B73: Number of aircraft flying via reserved or segregated airspace and CDRs
A74: 74 | B74: Number of aircraft that could have planned through those airspace structures
A75: 75 | B75: Ratio of using available airspace structures | G75: =IFERROR(G73/G74,"") -> 
A76: 76
A77: 77 | B77: What initiatives were implemented or are planned that will improve this PI and how does the NSA intend on monitoring their effectiveness on performance?
A78: 78
A79: 79
A80: 80
A81: 81
A82: 82
A83: 83
A84: 84 | B84: Name Area Control Center | D84: 2020 | E84: 2021 | F84: 2022 | G84: 2023 | H84: 2024
A85: 85
A86: 86 | B86: Number of aircraft flying via reserved or segregated airspace and CDRs
A87: 87 | B87: Number of aircraft that could have planned through those airspace structures
A88: 88 | B88: Ratio of using available airspace structures | D88: =IFERROR(D86/D87,"") ->  | E88: =IFERROR(E86/E87,"") ->  | F88: =IFERROR(F86/F87,"") ->  | G88: =IFERROR(G86/G87,"") -> 
A89: 89
A90: 90 | B90: Name Area Control Center | D90: 2020 | E90: 2021 | F90: 2022 | G90: 2023 | H90: 2024
A91: 91
A92: 92 | B92: Number of aircraft flying via reserved or segregated airspace and CDRs
A93: 93 | B93: Number of aircraft that could have planned through those airspace structures
A94: 94 | B94: Ratio of using available airspace structures | D94: =IFERROR(D92/D93,"") ->  | E94: =IFERROR(E92/E93,"") ->  | F94: =IFERROR(F92/F93,"") ->  | G94: =IFERROR(G92/G93,"") -> 
A95: 95
A96: 96 | B96: Name Area Control Center | D96: 2020 | E96: 2021 | F96: 2022 | G96: 2023 | H96: 2024
A97: 97
A98: 98 | B98: Number of aircraft flying via reserved or segregated airspace and CDRs
A99: 99 | B99: Number of aircraft that could have planned through those airspace structures
A100: 100 | B100: Ratio of using available airspace structures | D100: =IFERROR(D98/D99,"") ->  | E100: =IFERROR(E98/E99,"") ->  | F100: =IFERROR(F98/F99,"") ->  | G100: =IFERROR(G98/G99,"") -> 
A101: 101
A102: 102 | B102: Name Area Control Center | D102: 2020 | E102: 2021 | F102: 2022 | G102: 2023 | H102: 2024
A103: 103
A104: 104 | B104: Number of aircraft flying via reserved or segregated airspace and CDRs
A105: 105 | B105: Number of aircraft that could have planned through those airspace structures
A106: 106 | B106: Ratio of using available airspace structures | D106: =IFERROR(D104/D105,"") ->  | E106: =IFERROR(E104/E105,"") ->  | F106: =IFERROR(F104/F105,"") ->  | G106: =IFERROR(G104/G105,"") -> 
A107: 107
A108: 108 | B108: Name Area Control Center | D108: 2020 | E108: 2021 | F108: 2022 | G108: 2023 | H108: 2024
A109: 109
A110: 110 | B110: Number of aircraft flying via reserved or segregated airspace and CDRs
A111: 111 | B111: Number of aircraft that could have planned through those airspace structures
A112: 112 | B112: Ratio of using available airspace structures | D112: =IFERROR(D110/D111,"") ->  | E112: =IFERROR(E110/E111,"") ->  | F112: =IFERROR(F110/F111,"") ->  | G112: =IFERROR(G110/G111,"") -> 
A113: 113
A114: 114 | B114: Name Area Control Center | D114: 2020 | E114: 2021 | F114: 2022 | G114: 2023 | H114: 2024
A115: 115
A116: 116 | B116: Number of aircraft flying via reserved or segregated airspace and CDRs
A117: 117 | B117: Number of aircraft that could have planned through those airspace structures
A118: 118 | B118: Ratio of using available airspace structures | D118: =IFERROR(D116/D117,"") ->  | E118: =IFERROR(E116/E117,"") ->  | F118: =IFERROR(F116/F117,"") ->  | G118: =IFERROR(G116/G117,"") -> 
A119: 119
A120: 120 | B120: Name Area Control Center | D120: 2020 | E120: 2021 | F120: 2022 | G120: 2023 | H120: 2024
A121: 121
A122: 122 | B122: Number of aircraft flying via reserved or segregated airspace and CDRs
A123: 123 | B123: Number of aircraft that could have planned through those airspace structures
A124: 124 | B124: Ratio of using available airspace structures | D124: =IFERROR(D122/D123,"") ->  | E124: =IFERROR(E122/E123,"") ->  | F124: =IFERROR(F122/F123,"") ->  | G124: =IFERROR(G122/G123,"") -> 
A125: 125
A126: 126 | B126: Name Area Control Center | D126: 2020 | E126: 2021 | F126: 2022 | G126: 2023 | H126: 2024
A127: 127
A128: 128 | B128: Number of aircraft flying via reserved or segregated airspace and CDRs
A129: 129 | B129: Number of aircraft that could have planned through those airspace structures
A130: 130 | B130: Ratio of using available airspace structures | D130: =IFERROR(D128/D129,"") ->  | E130: =IFERROR(E128/E129,"") ->  | F130: =IFERROR(F128/F129,"") ->  | G130: =IFERROR(G128/G129,"") -> 
A131: 131
A132: 132 | B132: What initiatives were implemented or are planned that will improve this PI and how does the NSA intend on monitoring their effectiveness on performance?
A133: 133
A134: 134
A135: 135
A136: 136
A137: 137
A138: 138 | D138: 2020 | E138: 2021 | F138: 2022 | G138: 2023 | H138: 2024
A139: 139
A140: 140 | B140: Number of aircraft flying via reserved or segregated airspace and CDRs
A141: 141 | B141: Number of aircraft that could have planned through those airspace structures
A142: 142 | B142: Ratio of using available airspace structures | G142: =IFERROR(G140/G141,"") -> 
A143: 143
A144: 144 | B144: What initiatives were implemented or are planned that will improve this PI and how does the NSA intend on monitoring their effectiveness on performance?
A145: 145
A146: 146
A147: 147
A148: 148
A149: 149
A150: 150
A151: 151 | B151: Name Area Control Center | D151: 2020 | E151: 2021 | F151: 2022 | G151: 2023 | H151: 2024
A152: 152
A153: 153 | B153: Number of aircraft flying via reserved or segregated airspace and CDRs
A154: 154 | B154: Number of aircraft that could have planned through those airspace structures
A155: 155 | B155: Ratio of using available airspace structures | D155: =IFERROR(D153/D154,"") ->  | E155: =IFERROR(E153/E154,"") ->  | F155: =IFERROR(F153/F154,"") ->  | G155: =IFERROR(G153/G154,"") -> 
A156: 156
A157: 157 | B157: Name Area Control Center | D157: 2020 | E157: 2021 | F157: 2022 | G157: 2023 | H157: 2024
A158: 158
A159: 159 | B159: Number of aircraft flying via reserved or segregated airspace and CDRs
A160: 160 | B160: Number of aircraft that could have planned through those airspace structures
A161: 161 | B161: Ratio of using available airspace structures | D161: =IFERROR(D159/D160,"") ->  | E161: =IFERROR(E159/E160,"") ->  | F161: =IFERROR(F159/F160,"") ->  | G161: =IFERROR(G159/G160,"") -> 
A162: 162
A163: 163 | B163: Name Area Control Center | D163: 2020 | E163: 2021 | F163: 2022 | G163: 2023 | H163: 2024
A164: 164
A165: 165 | B165: Number of aircraft flying via reserved or segregated airspace and CDRs
A166: 166 | B166: Number of aircraft that could have planned through those airspace structures
A167: 167 | B167: Ratio of using available airspace structures | D167: =IFERROR(D165/D166,"") ->  | E167: =IFERROR(E165/E166,"") ->  | F167: =IFERROR(F165/F166,"") ->  | G167: =IFERROR(G165/G166,"") -> 
A168: 168
A169: 169 | B169: Name Area Control Center | D169: 2020 | E169: 2021 | F169: 2022 | G169: 2023 | H169: 2024
A170: 170
A171: 171 | B171: Number of aircraft flying via reserved or segregated airspace and CDRs
A172: 172 | B172: Number of aircraft that could have planned through those airspace structures
A173: 173 | B173: Ratio of using available airspace structures | D173: =IFERROR(D171/D172,"") ->  | E173: =IFERROR(E171/E172,"") ->  | F173: =IFERROR(F171/F172,"") ->  | G173: =IFERROR(G171/G172,"") -> 
A174: 174
A175: 175 | B175: Name Area Control Center | D175: 2020 | E175: 2021 | F175: 2022 | G175: 2023 | H175: 2024
A176: 176
A177: 177 | B177: Number of aircraft flying via reserved or segregated airspace and CDRs
A178: 178 | B178: Number of aircraft that could have planned through those airspace structures
A179: 179 | B179: Ratio of using available airspace structures | D179: =IFERROR(D177/D178,"") ->  | E179: =IFERROR(E177/E178,"") ->  | F179: =IFERROR(F177/F178,"") ->  | G179: =IFERROR(G177/G178,"") -> 
A180: 180
A181: 181 | B181: Name Area Control Center | D181: 2020 | E181: 2021 | F181: 2022 | G181: 2023 | H181: 2024
A182: 182
A183: 183 | B183: Number of aircraft flying via reserved or segregated airspace and CDRs
A184: 184 | B184: Number of aircraft that could have planned through those airspace structures
A185: 185 | B185: Ratio of using available airspace structures | D185: =IFERROR(D183/D184,"") ->  | E185: =IFERROR(E183/E184,"") ->  | F185: =IFERROR(F183/F184,"") ->  | G185: =IFERROR(G183/G184,"") -> 
A186: 186
A187: 187 | B187: Name Area Control Center | D187: 2020 | E187: 2021 | F187: 2022 | G187: 2023 | H187: 2024
A188: 188
A189: 189 | B189: Number of aircraft flying via reserved or segregated airspace and CDRs
A190: 190 | B190: Number of aircraft that could have planned through those airspace structures
A191: 191 | B191: Ratio of using available airspace structures | D191: =IFERROR(D189/D190,"") ->  | E191: =IFERROR(E189/E190,"") ->  | F191: =IFERROR(F189/F190,"") ->  | G191: =IFERROR(G189/G190,"") -> 
A192: 192
A193: 193 | B193: Name Area Control Center | D193: 2020 | E193: 2021 | F193: 2022 | G193: 2023 | H193: 2024
A194: 194
A195: 195 | B195: Number of aircraft flying via reserved or segregated airspace and CDRs
A196: 196 | B196: Number of aircraft that could have planned through those airspace structures
A197: 197 | B197: Ratio of using available airspace structures | D197: =IFERROR(D195/D196,"") ->  | E197: =IFERROR(E195/E196,"") ->  | F197: =IFERROR(F195/F196,"") ->  | G197: =IFERROR(G195/G196,"") -> 
A198: 198
A199: 199 | B199: What initiatives were implemented or are planned that will improve this PI and how does the NSA intend on monitoring their effectiveness on performance?
A200: 200
... 337 more rows

Sheet 2.2.3. Additional indicators
A1: 1 | B1: Estonia | C1: 2023
A2: 2 | B2: 2.2.3 - Additional Environment Indicators
A3: 3
A4: 4 | B4: Number of additional Environment Indicators | C4: Click to select number of additional Indicators
A5: 5
A6: 6 | B6: Name of additional indicator #1
A7: 7 | B7: Details and description
A8: 8
A9: 9 | B9: Name of additional indicator #2
A10: 10 | B10: Details and description
A11: 11
A12: 12 | B12: Name of additional indicator #3
A13: 13 | B13: Details and description
A14: 14
A15: 15 | B15: Name of additional indicator #4
A16: 16 | B16: Details and description
A17: 17
A18: 18 | B18: Name of additional indicator #5
A19: 19 | B19: Details and description
A20: 20
A21: 21 | B21: Name of additional indicator #6
A22: 22 | B22: Details and description
A23: 23
A24: 24 | B24: Name of additional indicator #7
A25: 25 | B25: Details and description
A26: 26
A27: 27 | B27: Name of additional indicator #8
A28: 28 | B28: Details and description
A29: 29
A30: 30 | B30: Name of additional indicator #9
A31: 31 | B31: Details and description
A32: 32
A33: 33 | B33: Name of additional indicator #10
A34: 34 | B34: Details and description
A35: 35
A36: 36 | B36: Name of additional indicator #11
A37: 37 | B37: Details and description
A38: 38
A39: 39 | B39: Name of additional indicator #12
A40: 40 | B40: Details and description
A41: 41
A42: 42
A43: 43 | B43: Does the Member State use internal metrics for measuring environmental performance that are not subject to Commission Implementing Regulation?

Sheet 2.3. CAPACITY >>>
A1: NO_PRINT | B1: Estonia | C1: 2023
A2: 2 | B2: SECTION 2.3: CAPACITY KPA

Sheet 2.3.1.A. KPI #1
A1: 1 | B1: Estonia | C1: 2023
A2: 2
A3: 3
A4: 4 | B4: 2.3 - Capacity
A5: 5
A6: 6 | B6: 2.3.1 - Key Performance Indicators
A7: 7
A8: 8 | B8: 2.3.1.(a) - Capacity KPI #1: En-route ATFM delay per flight
A9: 9
A10: 10 | B10: Estonia (EANS) | C10: 2020 | D10: 2021 | E10: 2022 | F10: 2023 | G10: 2024
A11: 11
A12: 12
A13: 13
A14: 14 | B14: Targets as shown in PP | C14: 0.05 | D14: 0.01 | E14: 0.03 | F14: 0.03 | G14: 0.03
A15: 15 | B15: Actual values | C15: 0.00 | D15: 0.00 | E15: 0.00 | F15: 0.00
A16: 16 | B16: Difference | C16: =IF(C15="","",IFERROR(C15-C14,"")) -> -0.05 | D16: =IF(D15="","",IFERROR(D15-D14,"")) -> -0.01 | E16: =IF(E15="","",IFERROR(E15-E14,"")) -> -0.03 | F16: =IF(F15="","",IFERROR(F15-F14,"")) -> -0.03
A17: 17
A18: 18 | B18: Actual values | C18: 2020 | D18: 2021 | E18: 2022 | F18: 2023 | G18: 2024
A19: 19
A20: 20 | B20: ANSP
A21: 21 | B21: ANSP
A22: 22 | B22: ANSP
A23: 23 | B23: ANSP
A24: 24 | B24: ANSP
A25: 25 | B25: ANSP
A26: 26 | B26: ANSP
A27: 27
A28: 28
A29: 29
A30: 30
A31: 31
A32: 32
A33: 33 | B33: Monitoring process
A34: 34
A35: 35
A36: 36
A37: 37
A38: 38 | B38: Capacity planning
A39: 39
A40: 40
A41: 41
A42: 42
A43: 43 | B43: ATCOs in OPS
A44: 44
A45: 45 | B45: Tallinn (EETT ACC) | E45: Plan values from the PP
A46: 46 | C46: 2020 | D46: 2021 | E46: 2022 | F46: 2023 | G46: 2024
A47: 47 | B47: Number of additional ATCOs in OPS who have started working in the OPS room (FTEs) | D47: 2 | E47: 4 | F47: 2 | G47: 2
A48: 48 | B48: Number of ATCOs in OPS who have stopped working in the OPS room (FTEs) | D48: 0 | E48: 2 | F48: 2 | G48: 2
A49: 49 | B49: Number of ATCOs in OPS operational at year-end (FTEs) | D49: 25 | E49: 27 | F49: 27 | G49: 27
A50: 50
A51: 51 | E51: Actual values
A52: 52 | C52: 2020 | D52: 2021 | E52: 2022 | F52: 2023 | G52: 2024
A53: 53 | B53: Number of additional ATCOs in OPS who have started working in the OPS room (FTEs) | C53: 3 | D53: 0 | E53: 0
A54: 54 | B54: Number of ATCOs in OPS who have stopped working in the OPS room (FTEs) | C54: 10 | D54: 0 | E54: 0
A55: 55 | B55: Number of ATCOs in OPS operational at year-end (FTEs) | C55: 23 | D55: 23 | E55: 23
A56: 56
A57: 57 | E57: Differences
A58: 58 | C58: 2020 | D58: 2021 | E58: 2022 | F58: 2023 | G58: 2024
A59: 59 | B59: Number of additional ATCOs in OPS who have started working in the OPS room (FTEs) | D59: =IFERROR(IF(D53="","",D53-D47),"") -> -2 | E59: -4
A60: 60 | B60: Number of ATCOs in OPS who have stopped working in the OPS room (FTEs) | D60: 0 | E60: -2
A61: 61 | B61: Number of ATCOs in OPS operational at year-end (FTEs) | D61: -2 | E61: -4
A62: 62
A63: 63 | E63: Plan values from the PP
A64: 64 | C64: 2020 | D64: 2021 | E64: 2022 | F64: 2023 | G64: 2024
A65: 65 | B65: Number of additional ATCOs in OPS who have started working in the OPS room (FTEs)
A66: 66 | B66: Number of ATCOs in OPS who have stopped working in the OPS room (FTEs)
A67: 67 | B67: Number of ATCOs in OPS operational at year-end (FTEs)
A68: 68
A69: 69 | E69: Actual values
A70: 70 | C70: 2020 | D70: 2021 | E70: 2022 | F70: 2023 | G70: 2024
A71: 71 | B71: Number of additional ATCOs in OPS who have started working in the OPS room (FTEs)
A72: 72 | B72: Number of ATCOs in OPS who have stopped working in the OPS room (FTEs)
A73: 73 | B73: Number of ATCOs in OPS operational at year-end (FTEs)
A74: 74
A75: 75 | E75: Differences
A76: 76 | C76: 2020 | D76: 2021 | E76: 2022 | F76: 2023 | G76: 2024
A77: 77 | B77: Number of additional ATCOs in OPS who have started working in the OPS room (FTEs) | D77: =IFERROR(IF(D71="","",D71-D65),"") -> 
A78: 78 | B78: Number of ATCOs in OPS who have stopped working in the OPS room (FTEs)
A79: 79 | B79: Number of ATCOs in OPS operational at year-end (FTEs)
A80: 80
A81: 81 | E81: Plan values from the PP
A82: 82 | C82: 2020 | D82: 2021 | E82: 2022 | F82: 2023 | G82: 2024
A83: 83 | B83: Number of additional ATCOs in OPS who have started working in the OPS room (FTEs)
A84: 84 | B84: Number of ATCOs in OPS who have stopped working in the OPS room (FTEs)
A85: 85 | B85: Number of ATCOs in OPS operational at year-end (FTEs)
A86: 86
A87: 87 | E87: Actual values
A88: 88 | C88: 2020 | D88: 2021 | E88: 2022 | F88: 2023 | G88: 2024
A89: 89 | B89: Number of additional ATCOs in OPS who have started working in the OPS room (FTEs)
A90: 90 | B90: Number of ATCOs in OPS who have stopped working in the OPS room (FTEs)
A91: 91 | B91: Number of ATCOs in OPS operational at year-end (FTEs)
A92: 92
A93: 93 | E93: Differences
A94: 94 | C94: 2020 | D94: 2021 | E94: 2022 | F94: 2023 | G94: 2024
A95: 95 | B95: Number of additional ATCOs in OPS who have started working in the OPS room (FTEs) | D95: =IFERROR(IF(D89="","",D89-D83),"") -> 
A96: 96 | B96: Number of ATCOs in OPS who have stopped working in the OPS room (FTEs)
A97: 97 | B97: Number of ATCOs in OPS operational at year-end (FTEs)
A98: 98
A99: 99 | E99: Plan values from the PP
A100: 100 | C100: 2020 | D100: 2021 | E100: 2022 | F100: 2023 | G100: 2024
A101: 101 | B101: Number of additional ATCOs in OPS who have started working in the OPS room (FTEs)
A102: 102 | B102: Number of ATCOs in OPS who have stopped working in the OPS room (FTEs)
A103: 103 | B103: Number of ATCOs in OPS operational at year-end (FTEs)
A104: 104
A105: 105 | E105: Actual values
A106: 106 | C106: 2020 | D106: 2021 | E106: 2022 | F106: 2023 | G106: 2024
A107: 107 | B107: Number of additional ATCOs in OPS who have started working in the OPS room (FTEs)
A108: 108 | B108: Number of ATCOs in OPS who have stopped working in the OPS room (FTEs)
A109: 109 | B109: Number of ATCOs in OPS operational at year-end (FTEs)
A110: 110
A111: 111 | E111: Differences
A112: 112 | C112: 2020 | D112: 2021 | E112: 2022 | F112: 2023 | G112: 2024
A113: 113 | B113: Number of additional ATCOs in OPS who have started working in the OPS room (FTEs) | D113: =IFERROR(IF(D107="","",D107-D101),"") -> 
A114: 114 | B114: Number of ATCOs in OPS who have stopped working in the OPS room (FTEs)
A115: 115 | B115: Number of ATCOs in OPS operational at year-end (FTEs)
A116: 116
A117: 117 | E117: Plan values from the PP
A118: 118 | C118: 2020 | D118: 2021 | E118: 2022 | F118: 2023 | G118: 2024
A119: 119 | B119: Number of additional ATCOs in OPS who have started working in the OPS room (FTEs)
A120: 120 | B120: Number of ATCOs in OPS who have stopped working in the OPS room (FTEs)
A121: 121 | B121: Number of ATCOs in OPS operational at year-end (FTEs)
A122: 122
A123: 123 | E123: Actual values
A124: 124 | C124: 2020 | D124: 2021 | E124: 2022 | F124: 2023 | G124: 2024
A125: 125 | B125: Number of additional ATCOs in OPS who have started working in the OPS room (FTEs)
A126: 126 | B126: Number of ATCOs in OPS who have stopped working in the OPS room (FTEs)
A127: 127 | B127: Number of ATCOs in OPS operational at year-end (FTEs)
A128: 128
A129: 129 | E129: Differences
A130: 130 | C130: 2020 | D130: 2021 | E130: 2022 | F130: 2023 | G130: 2024
A131: 131 | B131: Number of additional ATCOs in OPS who have started working in the OPS room (FTEs) | D131: =IFERROR(IF(D125="","",D125-D119),"") -> 
A132: 132 | B132: Number of ATCOs in OPS who have stopped working in the OPS room (FTEs)
A133: 133 | B133: Number of ATCOs in OPS operational at year-end (FTEs)
A134: 134
A135: 135 | E135: Plan values from the PP
A136: 136 | C136: 2020 | D136: 2021 | E136: 2022 | F136: 2023 | G136: 2024
A137: 137 | B137: Number of additional ATCOs in OPS who have started working in the OPS room (FTEs)
A138: 138 | B138: Number of ATCOs in OPS who have stopped working in the OPS room (FTEs)
A139: 139 | B139: Number of ATCOs in OPS operational at year-end (FTEs)
A140: 140
A141: 141 | E141: Actual values
A142: 142 | C142: 2020 | D142: 2021 | E142: 2022 | F142: 2023 | G142: 2024
A143: 143 | B143: Number of additional ATCOs in OPS who have started working in the OPS room (FTEs)
A144: 144 | B144: Number of ATCOs in OPS who have stopped working in the OPS room (FTEs)
A145: 145 | B145: Number of ATCOs in OPS operational at year-end (FTEs)
A146: 146
A147: 147 | E147: Differences
A148: 148 | C148: 2020 | D148: 2021 | E148: 2022 | F148: 2023 | G148: 2024
A149: 149 | B149: Number of additional ATCOs in OPS who have started working in the OPS room (FTEs) | D149: =IFERROR(IF(D143="","",D143-D137),"") -> 
A150: 150 | B150: Number of ATCOs in OPS who have stopped working in the OPS room (FTEs)
A151: 151 | B151: Number of ATCOs in OPS operational at year-end (FTEs)
A152: 152
A153: 153 | E153: Plan values from the PP
A154: 154 | C154: 2020 | D154: 2021 | E154: 2022 | F154: 2023 | G154: 2024
A155: 155 | B155: Number of additional ATCOs in OPS who have started working in the OPS room (FTEs)
A156: 156 | B156: Number of ATCOs in OPS who have stopped working in the OPS room (FTEs)
A157: 157 | B157: Number of ATCOs in OPS operational at year-end (FTEs)
A158: 158
A159: 159 | E159: Actual values
A160: 160 | C160: 2020 | D160: 2021 | E160: 2022 | F160: 2023 | G160: 2024
A161: 161 | B161: Number of additional ATCOs in OPS who have started working in the OPS room (FTEs)
A162: 162 | B162: Number of ATCOs in OPS who have stopped working in the OPS room (FTEs)
A163: 163 | B163: Number of ATCOs in OPS operational at year-end (FTEs)
A164: 164
A165: 165 | E165: Differences
A166: 166 | C166: 2020 | D166: 2021 | E166: 2022 | F166: 2023 | G166: 2024
A167: 167 | B167: Number of additional ATCOs in OPS who have started working in the OPS room (FTEs) | D167: =IFERROR(IF(D161="","",D161-D155),"") -> 
A168: 168 | B168: Number of ATCOs in OPS who have stopped working in the OPS room (FTEs)
A169: 169 | B169: Number of ATCOs in OPS operational at year-end (FTEs)
A170: 170
A171: 171 | E171: Plan values from the PP
A172: 172 | C172: 2020 | D172: 2021 | E172: 2022 | F172: 2023 | G172: 2024
A173: 173 | B173: Number of additional ATCOs in OPS who have started working in the OPS room (FTEs)
A174: 174 | B174: Number of ATCOs in OPS who have stopped working in the OPS room (FTEs)
A175: 175 | B175: Number of ATCOs in OPS operational at year-end (FTEs)
A176: 176
A177: 177 | E177: Actual values
A178: 178 | C178: 2020 | D178: 2021 | E178: 2022 | F178: 2023 | G178: 2024
A179: 179 | B179: Number of additional ATCOs in OPS who have started working in the OPS room (FTEs)
A180: 180 | B180: Number of ATCOs in OPS who have stopped working in the OPS room (FTEs)
A181: 181 | B181: Number of ATCOs in OPS operational at year-end (FTEs)
A182: 182
A183: 183 | E183: Differences
A184: 184 | C184: 2020 | D184: 2021 | E184: 2022 | F184: 2023 | G184: 2024
A185: 185 | B185: Number of additional ATCOs in OPS who have started working in the OPS room (FTEs) | D185: =IFERROR(IF(D179="","",D179-D173),"") -> 
A186: 186 | B186: Number of ATCOs in OPS who have stopped working in the OPS room (FTEs)
A187: 187 | B187: Number of ATCOs in OPS operational at year-end (FTEs)
A188: 188
A189: 189 | E189: Plan values from the PP
A190: 190 | C190: 2020 | D190: 2021 | E190: 2022 | F190: 2023 | G190: 2024
A191: 191 | B191: Number of additional ATCOs in OPS who have started working in the OPS room (FTEs)
A192: 192 | B192: Number of ATCOs in OPS who have stopped working in the OPS room (FTEs)
A193: 193 | B193: Number of ATCOs in OPS operational at year-end (FTEs)
A194: 194
A195: 195 | E195: Actual values
A196: 196 | C196: 2020 | D196: 2021 | E196: 2022 | F196: 2023 | G196: 2024
A197: 197 | B197: Number of additional ATCOs in OPS who have started working in the OPS room (FTEs)
A198: 198 | B198: Number of ATCOs in OPS who have stopped working in the OPS room (FTEs)
A199: 199 | B199: Number of ATCOs in OPS operational at year-end (FTEs)
A200: 200
... 305 more rows

Sheet 2.3.1.B. KPI #2
A1: 1 | B1: Estonia | C1: 2023
A2: 2
A3: 3 | C3: 2019
A4: 4 | B4: 2.3.1.(b) - Capacity KPI #2: Terminal and airport ANS ATFM arrival delay per flight
A5: 5
A6: 6 | B6: Important note: If the data at airport level are not available, the field will show "N/A"
A7: 7
A8: 8 | B8: Estonia | E8: 2020 | F8: 2021 | G8: 2022 | H8: 2023 | I8: 2024
A9: 9
A10: 10 | B10: National level (all airports included in the SES PS) | D10: PP values | E10: 0.00 | F10: 0.00 | G10: 0.00 | H10: 0.00 | I10: 0.00
A11: 11 | D11: Actual | E11: 0.00 | F11: 0.00 | G11: 0.00 | H11: 0.00
A12: 12 | D12: Diff. | E12: =IF(E11="","",IFERROR(E11-E10,"")) -> 0.00 | F12: =IF(F11="","",IFERROR(F11-F10,"")) -> 0.00 | G12: =IF(G11="","",IFERROR(G11-G10,"")) -> 0.00 | H12: =IF(H11="","",IFERROR(H11-H10,"")) -> 0.00
A13: 13
A14: 14 | B14: Airport level | C14: EETN (Tallin) | D14: PP values | E14: 0.00 | F14: 0.00 | G14: 0.00 | H14: 0.00 | I14: 0.00
A15: 15 | D15: Actual | E15: 0.00 | F15: 0.00 | G15: 0.00 | H15: 0.00
A16: 16 | C16: EETU (Tartu) | D16: PP values | E16: 0.00 | F16: 0.00 | G16: 0.00 | H16: 0.00 | I16: 0.00
A17: 17 | D17: Actual | E17: 0.00 | F17: 0.00 | G17: 0.00 | H17: 0.00
A18: 18 | D18: PP values
A19: 19 | D19: Actual
A20: 20 | D20: PP values
A21: 21 | D21: Actual
A22: 22 | D22: PP values
A23: 23 | D23: Actual
A24: 24 | D24: PP values
A25: 25 | D25: Actual
A26: 26 | D26: PP values
A27: 27 | D27: Actual
A28: 28 | D28: PP values
A29: 29 | D29: Actual
A30: 30 | D30: PP values
A31: 31 | D31: Actual
A32: 32 | D32: PP values
A33: 33 | D33: Actual
A34: 34 | D34: PP values
A35: 35 | D35: Actual
A36: 36 | D36: PP values
A37: 37 | D37: Actual
A38: 38 | D38: PP values
A39: 39 | D39: Actual
A40: 40 | D40: PP values
A41: 41 | D41: Actual
A42: 42 | D42: PP values
A43: 43 | D43: Actual
A44: 44 | D44: PP values
A45: 45 | D45: Actual
A46: 46 | D46: PP values
A47: 47 | D47: Actual
A48: 48 | D48: PP values
A49: 49 | D49: Actual
A50: 50 | D50: PP values
A51: 51 | D51: Actual
A52: 52 | D52: PP values
A53: 53 | D53: Actual
A54: 54 | D54: PP values
A55: 55 | D55: Actual
A56: 56 | D56: PP values
A57: 57 | D57: Actual
A58: 58 | D58: PP values
A59: 59 | D59: Actual
A60: 60 | D60: PP values
A61: 61 | D61: Actual
A62: 62 | D62: PP values
A63: 63 | D63: Actual
A64: 64 | D64: PP values
A65: 65 | D65: Actual
A66: 66 | D66: PP values
A67: 67 | D67: Actual
A68: 68 | D68: PP values
A69: 69 | D69: Actual
A70: 70 | D70: PP values
A71: 71 | D71: Actual
A72: 72 | D72: PP values
A73: 73 | D73: Actual
A74: 74 | D74: PP values
A75: 75 | D75: Actual
A76: 76 | D76: PP values
A77: 77 | D77: Actual
A78: 78 | D78: PP values
A79: 79 | D79: Actual
A80: 80 | D80: PP values
A81: 81 | D81: Actual
A82: 82 | D82: PP values
A83: 83 | D83: Actual
A84: 84 | D84: PP values
A85: 85 | D85: Actual
A86: 86 | D86: PP values
A87: 87 | D87: Actual
A88: 88 | D88: PP values
A89: 89 | D89: Actual
A90: 90 | D90: PP values
A91: 91 | D91: Actual
A92: 92 | D92: PP values
A93: 93 | D93: Actual
A94: 94
A95: 95 | B95: Additional comments
A96: 96
A97: 97
A98: 98
A99: 99
A100: 100 | B100: If the performance target for the calendar year was not met
A101: 101
A102: 102 | B102: Identification and analysis by the NSA of the underlying reasons or circumstances having led to the performance target not being achieved
A103: 103
A104: 104
A105: 105
A106: 106
A107: 107 | B107: Recommendations to the ANSP to rectify the situation
A108: 108
A109: 109
A110: 110
A111: 111
A112: 112 | B112: Remedial measures have been / will be taken by the ANSP? | H112: Click to select
A113: 113
A114: 114 | B114: Measures put in place | H114: Click to select
A115: 115
A116: 116 | B116: Title / Airport(s) | C116: Description | G116: Timeline for implementation | H116: Status
A117: 117
A118: 118
A119: 119
A120: 120
A121: 121
A122: 122
A123: 123
A124: 124
A125: 125
A126: 126
A127: 127
A128: 128
A129: 129
A130: 130
A131: 131
A132: 132
A133: 133
A134: 134
A135: 135
A136: 136
A137: 137
A138: 138 | B138: If no measures will be taken by the ANSP, please explain why
A139: 139
A140: 140
A141: 141
A142: 142
A143: 143 | B143: Follow-up of the measures relating to previous calendar years
A144: 144
A145: 145 | B145: Remedial measures have been / will be taken by the ANSP? | H145: Click to select
A146: 146
A147: 147 | B147: If yes, have those measures been effectively implemented? | H147: Click to select
A148: 148
A149: 149 | B149: What action has the NSA taken to check/monitor the implementation of those measures and what further actions (if any) are planned during the ongoing calendar year?
A150: 150
A151: 151
A152: 152
A153: 153
A154: 154 | B154: Is the NSA aware of any significant risks which are likely to lead to performance targets not being achieved during the ongoing calendar year or during the following calendar years of the reference period? | H154: Click to select
A155: 155
A156: 156 | B156: What has been done by the ANSP in order to address the identified performance issues?
A157: 157
A158: 158
A159: 159
A160: 160
A161: 161 | B161: What further measures does the NSA intend to undertake to remedy this situation?
A162: 162
A163: 163
A164: 164
A165: 165
A166: 166 | B166: Additional comments
A167: 167
A168: 168
A169: 169
A170: 170
A171: 171
A172: 172 | E172: 2020 | F172: 2021 | G172: 2022 | H172: 2023 | I172: 2024
A173: 173
A174: 174 | B174: National level (all airports included in the SES PS) | D174: PP values
A175: 175 | D175: Actual
A176: 176 | D176: Diff. | E176: =IFERROR(E175-E174,"") -> 0.00 | F176: =IFERROR(F175-F174,"") -> 0.00 | G176: =IFERROR(G175-G174,"") -> 0.00 | H176: =IFERROR(H175-H174,"") -> 0.00
A177: 177
A178: 178 | B178: Airport level | D178: PP values
A179: 179 | D179: Actual
A180: 180 | D180: PP values
A181: 181 | D181: Actual
A182: 182 | D182: PP values
A183: 183 | D183: Actual
A184: 184 | D184: PP values
A185: 185 | D185: Actual
A186: 186 | D186: PP values
A187: 187 | D187: Actual
A188: 188 | D188: PP values
A189: 189 | D189: Actual
A190: 190 | D190: PP values
A191: 191 | D191: Actual
A192: 192 | D192: PP values
A193: 193 | D193: Actual
A194: 194 | D194: PP values
A195: 195 | D195: Actual
A196: 196 | D196: PP values
A197: 197 | D197: Actual
A198: 198 | D198: PP values
A199: 199 | D199: Actual
A200: 200 | D200: PP values
... 1136 more rows

Sheet 2.3.2.A. PI #1
A1: 1 | B1: Estonia | C1: 2023
A2: 2 | B2: 2.3.2 - Performance Indicators
A3: 3
A4: 4 | B4: 2.3.2.(a) - Capacity PI #1: Adherence to ATFM slots
A5: 5
A6: 6 | B6: Important note: If the data at airport level are not available, the field will show "N/A"
A7: 7
A8: 8 | B8: Estonia | E8: 2020 | F8: 2021 | G8: 2022 | H8: 2023 | I8: 2024
A9: 9
A10: 10 | B10: National level | D10: Actual | E10: 98.5% | F10: 98.2% | G10: 98.3% | H10: 98.9%
A11: 11
A12: 12 | B12: EETN (Tallin) | D12: Actual | E12: 98.5% | F12: 98.2% | G12: 98.6% | H12: 98.9%
A13: 13 | B13: EETU (Tartu) | D13: Actual | E13: n/a | F13: n/a | G13: 50.0% | H13: 90.9%
A14: 14 | D14: Actual
A15: 15 | D15: Actual
A16: 16 | D16: Actual
A17: 17 | D17: Actual
A18: 18 | D18: Actual
A19: 19 | D19: Actual
A20: 20 | D20: Actual
A21: 21 | D21: Actual
A22: 22 | D22: Actual
A23: 23 | D23: Actual
A24: 24 | D24: Actual
A25: 25 | D25: Actual
A26: 26 | D26: Actual
A27: 27 | D27: Actual
A28: 28 | D28: Actual
A29: 29 | D29: Actual
A30: 30 | D30: Actual
A31: 31 | D31: Actual
A32: 32 | D32: Actual
A33: 33 | D33: Actual
A34: 34 | D34: Actual
A35: 35 | D35: Actual
A36: 36 | D36: Actual
A37: 37 | D37: Actual
A38: 38 | D38: Actual
A39: 39 | D39: Actual
A40: 40 | D40: Actual
A41: 41 | D41: Actual
A42: 42 | D42: Actual
A43: 43 | D43: Actual
A44: 44 | D44: Actual
A45: 45 | D45: Actual
A46: 46 | D46: Actual
A47: 47 | D47: Actual
A48: 48 | D48: Actual
A49: 49 | D49: Actual
A50: 50 | D50: Actual
A51: 51 | D51: Actual
A52: 52
A53: 53 | B53: Please provide background information on the actual performance: - If performance improved compared to previous years, please describe the measures that were implemented (if any), - If performance deteriorated compared to previous years, please explain the reasons which lead to the deterioration, and describe the improvement measures which are planned to improve performance. How does the NSA intend on monitoring their effectiveness on performance
A54: 54
A55: 55
A56: 56
A57: 57
A58: 58 | B58: If the data at airport level are not available, please explain the reasons why data is missing and describe the measures planned to resolve the situation
A59: 59
A60: 60
A61: 61
A62: 62
A63: 63 | B63: Additional comments
A64: 64
A65: 65
A66: 66
A67: 67
A68: 68
A69: 69 | E69: 2020 | F69: 2021 | G69: 2022 | H69: 2023 | I69: 2024
A70: 70
A71: 71 | B71: National level | D71: Actual
A72: 72
A73: 73 | B73: Airport | D73: Actual
A74: 74 | B74: Airport | D74: Actual
A75: 75 | B75: Airport | D75: Actual
A76: 76 | B76: Airport | D76: Actual
A77: 77 | B77: Airport | D77: Actual
A78: 78 | B78: Airport | D78: Actual
A79: 79 | B79: Airport | D79: Actual
A80: 80 | B80: Airport | D80: Actual
A81: 81 | B81: Airport | D81: Actual
A82: 82 | B82: Airport | D82: Actual
A83: 83 | B83: Airport | D83: Actual
A84: 84 | B84: Airport | D84: Actual
A85: 85 | B85: Airport | D85: Actual
A86: 86 | B86: Airport | D86: Actual
A87: 87 | B87: Airport | D87: Actual
A88: 88 | B88: Airport | D88: Actual
A89: 89 | B89: Airport | D89: Actual
A90: 90 | B90: Airport | D90: Actual
A91: 91 | B91: Airport | D91: Actual
A92: 92 | B92: Airport | D92: Actual
A93: 93 | B93: Airport | D93: Actual
A94: 94 | B94: Airport | D94: Actual
A95: 95 | B95: Airport | D95: Actual
A96: 96 | B96: Airport | D96: Actual
A97: 97 | B97: Airport | D97: Actual
A98: 98 | B98: Airport | D98: Actual
A99: 99 | B99: Airport | D99: Actual
A100: 100 | B100: Airport | D100: Actual
A101: 101 | B101: Airport | D101: Actual
A102: 102 | B102: Airport | D102: Actual
A103: 103 | B103: Airport | D103: Actual
A104: 104 | B104: Airport | D104: Actual
A105: 105 | B105: Airport | D105: Actual
A106: 106 | B106: Airport | D106: Actual
A107: 107 | B107: Airport | D107: Actual
A108: 108 | B108: Airport | D108: Actual
A109: 109 | B109: Airport | D109: Actual
A110: 110 | B110: Airport | D110: Actual
A111: 111 | B111: Airport | D111: Actual
A112: 112 | B112: Airport | D112: Actual
A113: 113
A114: 114 | B114: Please provide background information on the actual performance: - If performance improved compared to previous years, please describe the measures that were implemented (if any), - If performance deteriorated compared to previous years, please explain the reasons which lead to the deterioration, and describe the improvement measures which are planned to improve performance. How does the NSA intend on monitoring their effectiveness on performance
A115: 115
A116: 116
A117: 117
A118: 118
A119: 119 | B119: If the data at airport level are not available, please explain the reasons why data is missing and describe the measures planned to resolve the situation
A120: 120
A121: 121
A122: 122
A123: 123
A124: 124 | B124: Additional comments
A125: 125
A126: 126
A127: 127
A128: 128
A129: 129
A130: 130 | E130: 2020 | F130: 2021 | G130: 2022 | H130: 2023 | I130: 2024
A131: 131
A132: 132 | B132: National level | D132: Actual
A133: 133
A134: 134 | B134: Airport | D134: Actual
A135: 135 | B135: Airport | D135: Actual
A136: 136 | B136: Airport | D136: Actual
A137: 137 | B137: Airport | D137: Actual
A138: 138 | B138: Airport | D138: Actual
A139: 139 | B139: Airport | D139: Actual
A140: 140 | B140: Airport | D140: Actual
A141: 141 | B141: Airport | D141: Actual
A142: 142 | B142: Airport | D142: Actual
A143: 143 | B143: Airport | D143: Actual
A144: 144 | B144: Airport | D144: Actual
A145: 145 | B145: Airport | D145: Actual
A146: 146 | B146: Airport | D146: Actual
A147: 147 | B147: Airport | D147: Actual
A148: 148 | B148: Airport | D148: Actual
A149: 149 | B149: Airport | D149: Actual
A150: 150 | B150: Airport | D150: Actual
A151: 151 | B151: Airport | D151: Actual
A152: 152 | B152: Airport | D152: Actual
A153: 153 | B153: Airport | D153: Actual
A154: 154 | B154: Airport | D154: Actual
A155: 155 | B155: Airport | D155: Actual
A156: 156 | B156: Airport | D156: Actual
A157: 157 | B157: Airport | D157: Actual
A158: 158 | B158: Airport | D158: Actual
A159: 159 | B159: Airport | D159: Actual
A160: 160 | B160: Airport | D160: Actual
A161: 161 | B161: Airport | D161: Actual
A162: 162 | B162: Airport | D162: Actual
A163: 163 | B163: Airport | D163: Actual
A164: 164 | B164: Airport | D164: Actual
A165: 165 | B165: Airport | D165: Actual
A166: 166 | B166: Airport | D166: Actual
A167: 167 | B167: Airport | D167: Actual
A168: 168 | B168: Airport | D168: Actual
A169: 169 | B169: Airport | D169: Actual
A170: 170 | B170: Airport | D170: Actual
A171: 171 | B171: Airport | D171: Actual
A172: 172 | B172: Airport | D172: Actual
A173: 173 | B173: Airport | D173: Actual
A174: 174
A175: 175 | B175: Please provide background information on the actual performance: - If performance improved compared to previous years, please describe the measures that were implemented (if any), - If performance deteriorated compared to previous years, please explain the reasons which lead to the deterioration, and describe the improvement measures which are planned to improve performance. How does the NSA intend on monitoring their effectiveness on performance
A176: 176
A177: 177
A178: 178
A179: 179
A180: 180 | B180: If the data at airport level are not available, please explain the reasons why data is missing and describe the measures planned to resolve the situation
A181: 181
A182: 182
A183: 183
A184: 184
A185: 185 | B185: Additional comments
A186: 186
A187: 187
A188: 188
A189: 189
A190: 190
A191: 191 | E191: 2020 | F191: 2021 | G191: 2022 | H191: 2023 | I191: 2024
A192: 192
A193: 193 | B193: National level | D193: Actual
A194: 194
A195: 195 | B195: Airport | D195: Actual
A196: 196 | B196: Airport | D196: Actual
A197: 197 | B197: Airport | D197: Actual
A198: 198 | B198: Airport | D198: Actual
A199: 199 | B199: Airport | D199: Actual
A200: 200 | B200: Airport | D200: Actual
... 295 more rows

Sheet 2.3.2.B. PI #2
A1: 1 | B1: Estonia | C1: 2023
A2: 2 | B2: 2.3.2.(b) - Capacity PI #2: Air traffic control pre-departure delay (>80k movements)
A3: 3
A4: 4 | B4: Important note: If the data at airport level are not available, the field will show "N/A"
A5: 5
A6: 6 | B6: STATE | E6: 2020 | F6: 2021 | G6: 2022 | H6: 2023 | I6: 2024
A7: 7 | B7: only airports > 80k movements (2016-18)
A8: 8
A9: 9 | B9: Airport | D9: Actual
A10: 10 | B10: Airport | D10: Actual
A11: 11 | B11: Airport | D11: Actual
A12: 12 | B12: Airport | D12: Actual
A13: 13 | B13: Airport | D13: Actual
A14: 14 | B14: Airport | D14: Actual
A15: 15 | B15: Airport | D15: Actual
A16: 16 | B16: Airport | D16: Actual
A17: 17 | B17: Airport | D17: Actual
A18: 18 | B18: Airport | D18: Actual
A19: 19 | B19: Airport | D19: Actual
A20: 20 | B20: Airport | D20: Actual
A21: 21 | B21: Airport | D21: Actual
A22: 22 | B22: Airport | D22: Actual
A23: 23 | B23: Airport | D23: Actual
A24: 24 | B24: Airport | D24: Actual
A25: 25 | B25: Airport | D25: Actual
A26: 26 | B26: Airport | D26: Actual
A27: 27 | B27: Airport | D27: Actual
A28: 28 | B28: Airport | D28: Actual
A29: 29 | B29: Airport | D29: Actual
A30: 30 | B30: Airport | D30: Actual
A31: 31 | B31: Airport | D31: Actual
A32: 32 | B32: Airport | D32: Actual
A33: 33 | B33: Airport | D33: Actual
A34: 34 | B34: Airport | D34: Actual
A35: 35 | B35: Airport | D35: Actual
A36: 36 | B36: Airport | D36: Actual
A37: 37 | B37: Airport | D37: Actual
A38: 38 | B38: Airport | D38: Actual
A39: 39 | B39: Airport | D39: Actual
A40: 40 | B40: Airport | D40: Actual
A41: 41 | B41: Airport | D41: Actual
A42: 42 | B42: Airport | D42: Actual
A43: 43 | B43: Airport | D43: Actual
A44: 44 | B44: Airport | D44: Actual
A45: 45 | B45: Airport | D45: Actual
A46: 46 | B46: Airport | D46: Actual
A47: 47 | B47: Airport | D47: Actual
A48: 48 | B48: Airport | D48: Actual
A49: 49
A50: 50 | B50: Please provide background information on the actual performance: - If performance improved compared to previous years, please describe the measures that were implemented (if any), - If performance deteriorated compared to previous years, please explain the reasons which lead to the deterioration, and describe the improvement measures which are planned to improve performance. How does the NSA intend on monitoring their effectiveness on performance
A51: 51
A52: 52
A53: 53
A54: 54
A55: 55 | B55: If the data at airport level are not available, please explain the reasons why data is missing and describe the measures planned to resolve the situation
A56: 56
A57: 57
A58: 58
A59: 59
A60: 60 | B60: Additional comments
A61: 61
A62: 62
A63: 63
B66: Not Applicable

Sheet 2.3.2.C. PI #3
A1: 1 | B1: Estonia | C1: 2023
A2: 2 | B2: 2.3.2.(c) - Capacity PI #3: Average time of all cause departure delay per flight (>80K movements)
A3: 3
A4: 4 | B4: Important note: If the data at airport level are not available, the field will show "N/A"
A5: 5
A6: 6 | B6: STATE | E6: 2020 | F6: 2021 | G6: 2022 | H6: 2023 | I6: 2024
A7: 7 | B7: only airports > 80k movements (2016-18)
A8: 8
A9: 9 | B9: Airport | D9: Actual
A10: 10 | B10: Airport | D10: Actual
A11: 11 | B11: Airport | D11: Actual
A12: 12 | B12: Airport | D12: Actual
A13: 13 | B13: Airport | D13: Actual
A14: 14 | B14: Airport | D14: Actual
A15: 15 | B15: Airport | D15: Actual
A16: 16 | B16: Airport | D16: Actual
A17: 17 | B17: Airport | D17: Actual
A18: 18 | B18: Airport | D18: Actual
A19: 19 | B19: Airport | D19: Actual
A20: 20 | B20: Airport | D20: Actual
A21: 21 | B21: Airport | D21: Actual
A22: 22 | B22: Airport | D22: Actual
A23: 23 | B23: Airport | D23: Actual
A24: 24 | B24: Airport | D24: Actual
A25: 25 | B25: Airport | D25: Actual
A26: 26 | B26: Airport | D26: Actual
A27: 27 | B27: Airport | D27: Actual
A28: 28 | B28: Airport | D28: Actual
A29: 29 | B29: Airport | D29: Actual
A30: 30 | B30: Airport | D30: Actual
A31: 31 | B31: Airport | D31: Actual
A32: 32 | B32: Airport | D32: Actual
A33: 33 | B33: Airport | D33: Actual
A34: 34 | B34: Airport | D34: Actual
A35: 35 | B35: Airport | D35: Actual
A36: 36 | B36: Airport | D36: Actual
A37: 37 | B37: Airport | D37: Actual
A38: 38 | B38: Airport | D38: Actual
A39: 39 | B39: Airport | D39: Actual
A40: 40 | B40: Airport | D40: Actual
A41: 41 | B41: Airport | D41: Actual
A42: 42 | B42: Airport | D42: Actual
A43: 43 | B43: Airport | D43: Actual
A44: 44 | B44: Airport | D44: Actual
A45: 45 | B45: Airport | D45: Actual
A46: 46 | B46: Airport | D46: Actual
A47: 47 | B47: Airport | D47: Actual
A48: 48 | B48: Airport | D48: Actual
A49: 49
A50: 50 | B50: Please provide background information on the actual performance: - If performance improved compared to previous years, please describe the measures that were implemented (if any), - If performance deteriorated compared to previous years, please explain the reasons which lead to the deterioration, and describe the improvement measures which are planned to improve performance. How does the NSA intend on monitoring their effectiveness on performance
A51: 51
A52: 52
A53: 53
A54: 54
A55: 55 | B55: If the data at airport level are not available, please explain the reasons why data is missing and describe the measures planned to resolve the situation
A56: 56
A57: 57
A58: 58
A59: 59
A60: 60 | B60: Additional comments
A61: 61
A62: 62
A63: 63
B66: Not Applicable

Sheet 2.3.3. Additional indicators
A1: 1 | B1: Estonia | C1: 2023
A2: 2 | B2: 2.3.3 - Additional Capacity Indicators
A3: 3
A4: 4 | B4: Number of additional Capacity Indicators | C4: Click to select number of additional Indicators
A5: 5
A6: 6 | B6: Name of additional indicator #1
A7: 7 | B7: Details and description
A8: 8
A9: 9 | B9: Name of additional indicator #2
A10: 10 | B10: Details and description
A11: 11
A12: 12 | B12: Name of additional indicator #3
A13: 13 | B13: Details and description
A14: 14
A15: 15 | B15: Name of additional indicator #4
A16: 16 | B16: Details and description
A17: 17
A18: 18 | B18: Name of additional indicator #5
A19: 19 | B19: Details and description
A20: 20
A21: 21 | B21: Name of additional indicator #6
A22: 22 | B22: Details and description
A23: 23
A24: 24 | B24: Name of additional indicator #7
A25: 25 | B25: Details and description
A26: 26
A27: 27 | B27: Name of additional indicator #8
A28: 28 | B28: Details and description
A29: 29
A30: 30 | B30: Name of additional indicator #9
A31: 31 | B31: Details and description
A32: 32
A33: 33 | B33: Name of additional indicator #10
A34: 34 | B34: Details and description
A35: 35
A36: 36 | B36: Name of additional indicator #11
A37: 37 | B37: Details and description
A38: 38
A39: 39 | B39: Name of additional indicator #12
A40: 40 | B40: Details and description
A41: 41
A42: 42

Sheet 2.4. COST-EFFICIENCY >>>
A1: NO_PRINT | B1: Estonia | C1: 2023
A2: 2 | B2: SECTION 2.4: COST-EFFICIENCY KPA

Sheet 2.4.1. Charging zones
A1: 1 | B1: Estonia | C1: 2023
A2: 2 | B2: 2.4 - Cost-efficiency
A3: 3
A4: 4 | B4: 2.4.1 - Key Performance Indicators
A5: 5
A6: 6 | B6: List of En-Route Charging Zones and ETNA data references
A7: 7
A8: 8 | D8: Reporting Tables ETNA Reference | E8: Additional Information ETNA Reference
A9: 9 | C9: Estonia
A10: 10
A11: 11
A12: 12
A13: 13
A14: 14
A15: 15
A16: 16
A17: 17
A18: 18
A19: 19
A20: 20
A21: 21 | B21: List of Terminal Charging Zones and ETNA data references
A22: 22
A23: 23 | D23: Reporting Tables ETNA Reference | E23: Additional Information ETNA Reference
A24: 24 | C24: Estonia
A25: 25
A26: 26
A27: 27
A28: 28
A29: 29
A30: 30
A31: 31

Sheet 2.4.1.A. ERT-CZ 1
A1: 1 | B1: Estonia | C1: 2023
A2: 2
A3: 3
A4: 4 | B4: 2.4.1.(a) - Cost efficiency KPI: Determined unit cost (DUC) for en-route ANS
A5: 5 | B5: ='2.4.1. Charging zones'!C9 -> Estonia
A6: 6
A7: 7 | B7: 1. DUC for en route air navigation services
A8: 8
A9: 9 | B9: En route charging zone | D9: RP3 revised cost-efficiency targets (determined 2020-2024)
A10: 10 | B10: Estonia | D10: 2020/2021 D | E10: 2022 D | F10: 2023 D | G10: 2024 D
A11: 11 | B11: Total en route costs in nominal terms (in national currency) | D11: 53,862,873 | E11: 26,786,115 | F11: 28,336,431 | G11: 29,613,617
A12: 12 | B12: Total en route costs in real terms (in national currency at 2017 prices) | D12: 51,961,914 | E12: 25,297,780 | F12: 26,447,397 | G12: 27,337,166
A13: 13 | B13: Total en route Service Units (TSU) | D13: 863,310 | E13: 726,854 | F13: 865,151 | G13: 912,301
A14: 14 | B14: Real en route unit costs (in national currency at 2017 prices) - DUC | D14: 60.19 | E14: 34.80 | F14: 30.57 | G14: 29.97
A15: 15
A16: 16 | B16: En route charging zone | D16: RP3 actuals
A17: 17 | B17: Estonia | D17: 2020/2021 A | E17: 2022 A | F17: 2023 A | G17: 2024 A
A18: 18 | B18: Total en route costs in nominal terms (in national currency) | D18: 53,472,602 | E18: 26,102,327
A19: 19 | B19: Total en route costs in real terms (in national currency at 2017 prices) | D19: 51,280,904 | E19: 22,396,739
A20: 20 | B20: Total en route Service Units (TSU) | D20: 885,691 | E20: 428,511 | F20: 446,250
A21: 21 | B21: Real en route unit costs (in national currency at 2017 prices) | D21: 57.90 | E21: 52.27
A22: 22
A23: 23 | B23: En route charging zone | D23: Difference between actual and plan (in %)
A24: 24 | B24: Estonia | D24: 2020/2021 | E24: 2022 | F24: 2023 | G24: 2024
A25: 25 | B25: Total en route costs in nominal terms (in national currency) | D25: =IFERROR(IF(D18="","",D18/D11-1),"") -> -0.7% | E25: -2.6%
A26: 26 | B26: Total en route costs in real terms (in national currency at 2017 prices) | D26: -1.3% | E26: -11.5%
A27: 27 | B27: Total en route Service Units (TSU) | D27: 2.6% | E27: -41.0% | F27: -48.4%
A28: 28 | B28: Real en route unit costs (in national currency at 2017 prices) | D28: -3.8% | E28: 50.2%
A29: 29
A30: 30 | B30: a) Assessment of actual performance (actual unit cost), including analysis of differences observed between the determined costs and the actual costs for the year
A31: 31
A32: 32
A33: 33
A34: 34
A35: 35 | B35: b) Identification and analysis by the NSA of the underlying reasons or circumstances having led to the targets not being achieved
A36: 36
A37: 37
A38: 38
A39: 39
A40: 40 | B40: c) Recommendations to the ANSP to rectify the situation
A41: 41
A42: 42
A43: 43
A44: 44
A45: 45 | B45: d) Remedial measures taken or planned to be taken by the ANSP | G45: Click to select
A46: 46
A47: 47 | B47: Title | C47: Description | E47: Timeline for implementation | G47: Status
A48: 48
A49: 49
A50: 50
A51: 51
A52: 52
A53: 53
A54: 54
A55: 55
A56: 56
A57: 57
A58: 58
A59: 59
A60: 60
A61: 61
A62: 62
A63: 63
A64: 64
A65: 65
A66: 66
A67: 67
A68: 68
A69: 69 | B69: If no measures have been or will be taken by the ANSP, please explain why
A70: 70
A71: 71
A72: 72
A73: 73
A74: 74 | B74: 2. Follow-up of the measures relating to previous calendar years
A75: 75
A76: 76 | B76: Were any remedial measures put in place relating to deviations from performance targets in previous calendar years? | G76: Click to select
A77: 77
A78: 78 | B78: Have those measures been effectively implemented? | G78: Click to select
A79: 79
A80: 80 | B80: What action has the NSA taken to check/monitor the implementation of those measures and what further actions (if any) are planned during the ongoing calendar year?
A81: 81
A82: 82
A83: 83
A84: 84
A85: 85 | B85: 3. Further observations
A86: 86
A87: 87 | B87: Is the NSA aware of any significant risks which are likely to lead to cost-efficiency performance targets not being achieved during the ongoing calendar year or during the following calendar years of the reference period? | G87: Click to select
A88: 88
A89: 89 | B89: What are those risks ?
A90: 90
A91: 91
A92: 92
A93: 93
A94: 94 | B94: What has been done by the ANSP in order to address the identified performance issues?
A95: 95
A96: 96
A97: 97
A98: 98
A99: 99 | B99: What further measures does the NSA intend to undertake to remedy this situation?
A100: 100
A101: 101
A102: 102
A103: 103
A104: 104 | B104: 4. Major operational or structural changes
A105: 105
A106: 106 | B106: Has the ANSP implemented any major operational or structural changes (incl. any new fixed assets put into operation) during the calendar year enabling current or future cost-efficiency gains? Please outline the relevant changes and their estimated impact on performance.
A107: 107
A108: 108
A109: 109
A110: 110
A111: 111 | B111: 5. Verification of actual costs
A112: 112
A113: 113 | B113: Findings of the verification of actual costs by the NSA (in accordance with Art. 22(7), Art. 23 and Art. 28(7) of IR 2019/317), and where applicable identification of corrections applied to the reported actual costs as a result of this verification.
A114: 114
A115: 115
A116: 116
A117: 117
A118: 118 | B118: Has the NSA verified that the costs referring to non-ANS activities (U-space, drone detection, satellites,…) or ANS costs provided to third countries are presented separately in the ANSP accounts? If not, has the NSA verified that such costs are not included in the en-route cost base?
A119: 119
A120: 120
A121: 121

Sheet 2.4.1.B. TERM-CZ 1
A1: 1 | B1: Estonia | C1: 2023
A2: 2
A3: 3
A4: 4 | B4: 2.4.1.(b) - Cost efficiency KPI: Determined unit cost (DUC) for terminal ANS
A5: 5 | B5: ='2.4.1. Charging zones'!C24 -> Estonia
A6: 6
A7: 7 | B7: 1. DUC for terminal air navigation services
A8: 8
A9: 9 | B9: Terminal charging zone | D9: RP3 revised cost-efficiency targets (determined 2020-2024)
A10: 10 | B10: Estonia | D10: 2020/2021 D | E10: 2022 D | F10: 2023 D | G10: 2024 D
A11: 11 | B11: Total terminal costs in nominal terms (in national currency) | D11: 5,098,809 | E11: 2,393,127 | F11: 2,528,987 | G11: 2,646,202
A12: 12 | B12: Total terminal costs in real terms (in national currency at 2017 prices) | D12: 4,918,779 | E12: 2,254,405 | F12: 2,355,293 | G12: 2,438,319
A13: 13 | B13: Total terminal Service Units (TNSUs) | D13: 18,173 | E13: 17,372 | F13: 18,786 | G13: 19,870
A14: 14 | B14: Real terminal unit costs (in national currency at 2017 prices) - DUC | D14: 270.66 | E14: 129.77 | F14: 125.37 | G14: 122.71
A15: 15
A16: 16 | B16: Terminal charging zone | D16: RP3 actuals
A17: 17 | B17: Estonia | D17: 2020/2021 A | E17: 2022 A | F17: 2023 A | G17: 2024 A
A18: 18 | B18: Total terminal costs in nominal terms (in national currency) | D18: 5,019,457 | E18: 2,809,249
A19: 19 | B19: Total terminal costs in real terms (in national currency at 2017 prices) | D19: 4,820,450 | E19: 2,393,352
A20: 20 | B20: Total terminal Service Units (TNSUs) | D20: 19,188 | E20: 17,403
A21: 21 | B21: Real terminal unit costs (in national currency at 2017 prices) | D21: 251.23 | E21: 137.53
A22: 22
A23: 23 | B23: Terminal charging zone | D23: Difference between actual and plan (in %)
A24: 24 | B24: Estonia | D24: 2020/2021 | E24: 2022 | F24: 2023 | G24: 2024
A25: 25 | B25: Total terminal costs in nominal terms (in national currency) | D25: =IFERROR(IF(D18="","",D18/D11-1),"") -> -1.6% | E25: 17.4%
A26: 26 | B26: Total terminal costs in real terms (in national currency at 2017 prices) | D26: -2.0% | E26: 6.2%
A27: 27 | B27: Total terminal Service Units (TNSUs) | D27: 5.6% | E27: 0.2%
A28: 28 | B28: Real terminal unit costs (in national currency at 2017 prices) | D28: -7.2% | E28: 6.0%
A29: 29
A30: 30 | B30: a) Assessment of actual performance (actual unit cost), including analysis of differences observed between the determined costs and the actual costs for the year
A31: 31
A32: 32
A33: 33
A34: 34
A35: 35 | B35: b) Identification and analysis by the NSA of the underlying reasons or circumstances having led to the targets not being achieved
A36: 36
A37: 37
A38: 38
A39: 39
A40: 40 | B40: c) Recommendations to the ANSP to rectify the situation
A41: 41
A42: 42
A43: 43
A44: 44
A45: 45 | B45: d) Remedial measures taken or planned to be taken by the ANSP | G45: Click to select
A46: 46
A47: 47 | B47: Title | C47: Description | E47: Timeline for implementation | G47: Status
A48: 48
A49: 49
A50: 50
A51: 51
A52: 52
A53: 53
A54: 54
A55: 55
A56: 56
A57: 57
A58: 58
A59: 59
A60: 60
A61: 61
A62: 62
A63: 63
A64: 64
A65: 65
A66: 66
A67: 67
A68: 68
A69: 69 | B69: If no measures have been or will be taken by the ANSP, please explain why
A70: 70
A71: 71
A72: 72
A73: 73
A74: 74 | B74: 2. Follow-up of the measures relating to previous calendar years
A75: 75
A76: 76 | B76: Were any remedial measures put in place relating to deviations from performance targets in previous calendar years? | G76: Click to select
A77: 77
A78: 78 | B78: Have those measures been effectively implemented? | G78: Click to select
A79: 79
A80: 80 | B80: What action has the NSA taken to check/monitor the implementation of those measures and what further actions (if any) are planned during the ongoing calendar year?
A81: 81
A82: 82
A83: 83
A84: 84
A85: 85 | B85: 3. Further observations
A86: 86
A87: 87 | B87: Is the NSA aware of any significant risks which are likely to lead to cost-efficiency performance targets not being achieved during the ongoing calendar year or during the following calendar years of the reference period? | G87: Click to select
A88: 88
A89: 89 | B89: What are those risks ?
A90: 90
A91: 91
A92: 92
A93: 93
A94: 94 | B94: What has been done by the ANSP in order to address the identified performance issues?
A95: 95
A96: 96
A97: 97
A98: 98
A99: 99 | B99: What further measures does the NSA intend to undertake to remedy this situation?
A100: 100
A101: 101
A102: 102
A103: 103
A104: 104 | B104: 4. Major operational or structural changes
A105: 105
A106: 106 | B106: Has the ANSP implemented any major operational or structural changes (incl. any new fixed assets put into operation) during the calendar year enabling current or future cost-efficiency gains? Please outline the relevant changes and their estimated impact on performance.
A107: 107
A108: 108
A109: 109
A110: 110
A111: 111 | B111: 5. Verification of actual costs
A112: 112
A113: 113 | B113: Findings of the verification of actual costs by the NSA (in accordance with Art. 22(7), Art. 23 and Art. 28(7) of IR 2019/317), and where applicable identification of corrections applied to the reported actual costs as a result of this verification.
A114: 114
A115: 115
A116: 116
A117: 117
A118: 118 | B118: Has the NSA verified that the costs referring to non-ANS activities (U-space, drone detection, satellites,…) or ANS costs provided to third countries are presented separately in the ANSP accounts? If not, has the NSA verified that such costs are not included in the terminal cost base?
A119: 119
A120: 120
A121: 121

Sheet 2.4.2.A. ERT PI-CZ 1
A1: 1 | B1: Estonia | C1: 2023
A2: 2 | B2: 2.4.2.(a) - Cost efficiency PI: Actual unit cost incurred by users for en route ANS
A3: 3
A4: 4 | B4: En route charging zone
A5: 5 | B5: Estonia | C5: 2020/2021 | D5: 2022 | E5: 2023 | F5: 2024
A6: 6 | B6: En route unit costs (in national currency) - DUC | C6: 62.39 | D6: 36.85 | E6: 32.75 | F6: 32.46
A7: 7
A8: 8 | B8: Adjustments stemming from the year (in national currency) | C8: 2020/2021 | D8: 2022 | E8: 2023 | F8: 2024
A9: 9 | B9: Inflation adjustment (Art. 26) | C9: 397,693 | D9: 3,100,027 | E9: <T2 E19 >
A10: 10 | B10: Cost exempt from cost-sharing (Art. 28(4) to 28(6)) | C10: -419,665 | D10: -168,204 | E10: <T2 E28 >
A11: 11 | B11: Traffic risk sharing adjustment (Art. 27(2) to 27(5)) | C11: -171,167 | D11: 7,374,728 | E11: <T2 E41 >
A12: 12 | B12: Traffic adjustement (Art. 27(8)) | C12: -326,406 | D12: 2,734,374 | E12: <T2 E44 >
A13: 13 | B13: Financial incentives (Art. 11(3) and 11 (4)) | D13: n/a | E13: <T2 E54 >
A14: 14 | B14: Adjustment for modulation of charges (Art. 32(1)) | C14: 0 | D14: 0 | E14: <T2 E59 >
A15: 15 | B15: Difference in revenue from temporary application of unit rate (Art. 29(4) and 29(5))
A16: 16 | B16: Cross-financing to (-) / from (+) other charging zone(s) (Art. 25(2)(j)) | C16: 0 | D16: 0 | E16: <T2 E66 >
A17: 17 | B17: Total other revenues (Art. 25(3)) | C17: -1,154,530 | D17: -363,000 | E17: <T2 E73 >
A18: 18 | B18: Loss of revenue from application of a lower unit rate (Art. 29(6)) | C18: 0 | D18: 0 | E18: <T2 E76>
A19: 19 | B19: Total adjustments stemming from year n (in nat. currency) | C19: =SUM(C9:C18) -> -1,674,075 | D19: =SUM(D9:D18) -> 12,677,925 | E19: =SUM(E9:E18) -> 0
A20: 20
A21: 21 | B21: Actual service units | C21: 885,691 | D21: 428,511 | E21: 446,250
A22: 22
A23: 23 | B23: Total adjustements per actual service unit (in nat. Currency) | C23: =IFERROR(C19/C21,"") -> -1.89 | D23: =IFERROR(D19/D21,"") -> 29.59 | E23: =IFERROR(E19/E21,"") -> 0.00
A24: 24
A25: 25 | B25: Actual unit cost incurred by users (in nat. Currency) | C25: =IFERROR(C6+C23,"") -> 60.50 | D25: =IFERROR(D6+D23,"") -> 66.44 | E25: =IFERROR(E6+E23,"") -> 32.75
A26: 26
A27: 27 | B27: What initiatives were implemented or are planned that will improve this PI and how does the NSA intend on monitoring their effectiveness on performance?
A28: 28
A29: 29
A30: 30
A31: 31

Sheet 2.4.2.B. TERM PI-CZ 1
A1: 1 | B1: Estonia | C1: 2023
A2: 2 | B2: 2.4.2.(b) - Cost efficiency PI: Actual unit cost incurred by users for terminal ANS
A3: 3
A4: 4 | B4: Terminal charging zone
A5: 5 | B5: Estonia | C5: 2020/2021 | D5: 2022 | E5: 2023 | F5: 2024
A6: 6 | B6: Terminal unit costs (in national currency) - DUC | C6: 280.57 | D6: 137.76 | E6: 134.62 | F6: 133.17
A7: 7
A8: 8 | B8: Adjustments stemming from the year (in national currency) | C8: 2020/2021 | D8: 2022 | E8: 2023 | F8: 2024
A9: 9 | B9: Inflation adjustment (Art. 26) | C9: 38,691 | D9: 288,943 | E9: <T2 E19 >
A10: 10 | B10: Cost exempt from cost-sharing (Art. 28(4) to 28(6)) | C10: -14,762 | D10: 157,927 | E10: <T2 E28 >
A11: 11 | B11: Traffic risk sharing adjustment (Art. 27(2) to 27(5)) | C11: -103,538 | D11: 0 | E11: <T2 E41 >
A12: 12 | B12: Traffic adjustement (Art. 27(8)) | C12: -54,178 | D12: -888 | E12: <T2 E44 >
A13: 13 | B13: Financial incentives (Art. 11(3) and 11 (4)) | D13: n/a | E13: <T2 E54 >
A14: 14 | B14: Adjustment for modulation of charges (Art. 32(1)) | C14: 0 | D14: 0 | E14: <T2 E59 >
A15: 15 | B15: Difference in revenue from temporary application of unit rate (Art. 29(4) and 29(5))
A16: 16 | B16: Cross-financing to (-) / from (+) other charging zone(s) (Art. 25(2)(j)) | C16: 0 | D16: 0 | E16: <T2 E66 >
A17: 17 | B17: Total other revenues (Art. 25(3)) | C17: -1,229,525 | D17: -617,909 | E17: <T2 E73 >
A18: 18 | B18: Loss of revenue from application of a lower unit rate (Art. 29(6)) | C18: 0 | D18: 0 | E18: <T2 E76>
A19: 19 | B19: Total adjustments stemming from year n (in nat. currency) | C19: =SUM(C9:C18) -> -1,363,312 | D19: =SUM(D9:D18) -> -171,927 | E19: =SUM(E9:E18) -> 0
A20: 20
A21: 21 | B21: Actual service units | C21: 19,188 | D21: 17,403 | E21: <T2 E39>
A22: 22
A23: 23 | B23: Total adjustements per actual service unit (in nat. Currency) | C23: =IFERROR(C19/C21,"") -> -71.05 | D23: =IFERROR(D19/D21,"") -> -9.88 | E23: =IFERROR(E19/E21,"") -> 
A24: 24
A25: 25 | B25: Actual unit cost incurred by users (in nat. Currency) | C25: =IFERROR(C6+C23,"") -> 209.52 | D25: =IFERROR(D6+D23,"") -> 127.88 | E25: =IFERROR(E6+E23,"") -> 
A26: 26
A27: 27 | B27: What initiatives were implemented or are planned that will improve this PI and how does the NSA intend on monitoring their effectiveness on performance?
A28: 28
A29: 29
A30: 30
A31: 31

Sheet 2.4.3. Additional indicators
A1: 1 | B1: Estonia | C1: 2023
A2: 2 | B2: 2.4.3 - Additional Cost-Efficiency Indicators
A3: 3
A4: 4 | B4: Number of additional Cost-Efficiency Indicators | C4: Click to select number of additional Indicators
A5: 5
A6: 6 | B6: Name of additional indicator #1
A7: 7 | B7: Details and description
A8: 8
A9: 9 | B9: Name of additional indicator #2
A10: 10 | B10: Details and description
A11: 11
A12: 12 | B12: Name of additional indicator #3
A13: 13 | B13: Details and description
A14: 14
A15: 15 | B15: Name of additional indicator #4
A16: 16 | B16: Details and description
A17: 17
A18: 18 | B18: Name of additional indicator #5
A19: 19 | B19: Details and description
A20: 20
A21: 21 | B21: Name of additional indicator #6
A22: 22 | B22: Details and description
A23: 23
A24: 24 | B24: Name of additional indicator #7
A25: 25 | B25: Details and description
A26: 26
A27: 27 | B27: Name of additional indicator #8
A28: 28 | B28: Details and description
A29: 29
A30: 30 | B30: Name of additional indicator #9
A31: 31 | B31: Details and description
A32: 32
A33: 33 | B33: Name of additional indicator #10
A34: 34 | B34: Details and description
A35: 35
A36: 36 | B36: Name of additional indicator #11
A37: 37 | B37: Details and description
A38: 38
A39: 39 | B39: Name of additional indicator #12
A40: 40 | B40: Details and description
A41: 41
A42: 42

Sheet 3. INCENTIVE SCHEMES >>>
A1: NO_PRINT | B1: Estonia | C1: 2023
A2: 2 | B2: SECTION 3: INCENTIVE SCHEMES

Sheet 3.1. Environment
A1: 1 | B1: Estonia | C1: 2023
A2: 2 | B2: 3 - INCENTIVE SCHEMES
A3: 3
A4: 4 | B4: 3.1 - Environment
A5: 5
A6: 6 | B6: Click to Select the number of incentive schemes
A7: 7
A8: 8 | B8: <Please insert name of incentivised ANSP> | C8: Was there an incentive scheme applied? | D8: Please select your answer
A9: 9 | C9: Type of incentive scheme | D9: Please select the appropriate level
A10: 10
A11: 11 | C11: What was the required target for the incentive?
A12: 12 | C12: What was the verified actual value achieved?
A13: 13 | C13: What was the percentage of bonus(+)/penalties(-)?
A14: 14 | C14: What was the amount in national currency (in nominal terms) of bonus(+)/penalties(-)?
A15: 15
A16: 16 | C16: Justification
A17: 17
A18: 18
A19: 19 | C19: Description of methodology used to verify actual value
A20: 20
A21: 21
A22: 22 | C22: Please provide the number of the compliance issue addressed (as listed above), and describe to measures taken.
A23: 23
A24: 24
A25: 25 | B25: <Please insert name of incentivised ANSP> | C25: Was there an incentive scheme applied? | D25: Please select your answer
A26: 26 | C26: Type of incentive scheme | D26: Please select the appropriate level
A27: 27
A28: 28 | C28: What was the required target for the incentive?
A29: 29 | C29: What was the verified actual value achieved?
A30: 30 | C30: What was the percentage of bonus(+)/penalties(-)?
A31: 31 | C31: What was the amount in national currency (in nominal terms) of bonus(+)/penalties(-)?
A32: 32
A33: 33 | C33: Justification
A34: 34
A35: 35
A36: 36 | C36: Description of methodology used to verify actual value
A37: 37
A38: 38
A39: 39 | C39: Please provide the number of the compliance issue addressed (as listed above), and describe to measures taken.
A40: 40
A41: 41
A42: 42 | B42: <Please insert name of incentivised ANSP> | C42: Was there an incentive scheme applied? | D42: Please select your answer
A43: 43 | C43: Type of incentive scheme | D43: Please select the appropriate level
A44: 44
A45: 45 | C45: What was the required target for the incentive?
A46: 46 | C46: What was the verified actual value achieved?
A47: 47 | C47: What was the percentage of bonus(+)/penalties(-)?
A48: 48 | C48: What was the amount in national currency (in nominal terms) of bonus(+)/penalties(-)?
A49: 49
A50: 50 | C50: Justification
A51: 51
A52: 52
A53: 53 | C53: Description of methodology used to verify actual value
A54: 54
A55: 55
A56: 56 | C56: Please provide the number of the compliance issue addressed (as listed above), and describe to measures taken.
A57: 57
A58: 58
A59: 59 | B59: <Please insert name of incentivised ANSP> | C59: Was there an incentive scheme applied? | D59: Please select your answer
A60: 60 | C60: Type of incentive scheme | D60: Please select the appropriate level
A61: 61
A62: 62 | C62: What was the required target for the incentive?
A63: 63 | C63: What was the verified actual value achieved?
A64: 64 | C64: What was the percentage of bonus(+)/penalties(-)?
A65: 65 | C65: What was the amount in national currency (in nominal terms) of bonus(+)/penalties(-)?
A66: 66
A67: 67 | C67: Justification
A68: 68
A69: 69
A70: 70 | C70: Description of methodology used to verify actual value
A71: 71
A72: 72
A73: 73 | C73: Please provide the number of the compliance issue addressed (as listed above), and describe to measures taken.
A74: 74
A75: 75
A76: 76 | B76: <Please insert name of incentivised ANSP> | C76: Was there an incentive scheme applied? | D76: Please select your answer
A77: 77 | C77: Type of incentive scheme | D77: Please select the appropriate level
A78: 78
A79: 79 | C79: What was the required target for the incentive?
A80: 80 | C80: What was the verified actual value achieved?
A81: 81 | C81: What was the percentage of bonus(+)/penalties(-)?
A82: 82 | C82: What was the amount in national currency (in nominal terms) of bonus(+)/penalties(-)?
A83: 83
A84: 84 | C84: Justification
A85: 85
A86: 86
A87: 87 | C87: Description of methodology used to verify actual value
A88: 88
A89: 89
A90: 90 | C90: Please provide the number of the compliance issue addressed (as listed above), and describe to measures taken.
A91: 91
A92: 92
A93: 93 | B93: <Please insert name of incentivised ANSP> | C93: Was there an incentive scheme applied? | D93: Please select your answer
A94: 94 | C94: Type of incentive scheme | D94: Please select the appropriate level
A95: 95
A96: 96 | C96: What was the required target for the incentive?
A97: 97 | C97: What was the verified actual value achieved?
A98: 98 | C98: What was the percentage of bonus(+)/penalties(-)?
A99: 99 | C99: What was the amount in national currency (in nominal terms) of bonus(+)/penalties(-)?
A100: 100
A101: 101 | C101: Justification
A102: 102
A103: 103
A104: 104 | C104: Description of methodology used to verify actual value
A105: 105
A106: 106
A107: 107 | C107: Please provide the number of the compliance issue addressed (as listed above), and describe to measures taken.
A108: 108
A109: 109
A110: 110 | B110: <Please insert name of incentivised ANSP> | C110: Was there an incentive scheme applied? | D110: Please select your answer
A111: 111 | C111: Type of incentive scheme | D111: Please select the appropriate level
A112: 112
A113: 113 | C113: What was the required target for the incentive?
A114: 114 | C114: What was the verified actual value achieved?
A115: 115 | C115: What was the percentage of bonus(+)/penalties(-)?
A116: 116 | C116: What was the amount in national currency (in nominal terms) of bonus(+)/penalties(-)?
A117: 117
A118: 118 | C118: Justification
A119: 119
A120: 120
A121: 121 | C121: Description of methodology used to verify actual value
A122: 122
A123: 123
A124: 124 | C124: Please provide the number of the compliance issue addressed (as listed above), and describe to measures taken.
A125: 125
A126: 126
A127: 127 | B127: <Please insert name of incentivised ANSP> | C127: Was there an incentive scheme applied? | D127: Please select your answer
A128: 128 | C128: Type of incentive scheme | D128: Please select the appropriate level
A129: 129
A130: 130 | C130: What was the required target for the incentive?
A131: 131 | C131: What was the verified actual value achieved?
A132: 132 | C132: What was the percentage of bonus(+)/penalties(-)?
A133: 133 | C133: What was the amount in national currency (in nominal terms) of bonus(+)/penalties(-)?
A134: 134
A135: 135 | C135: Justification
A136: 136
A137: 137
A138: 138 | C138: Description of methodology used to verify actual value
A139: 139
A140: 140
A141: 141 | C141: Please provide the number of the compliance issue addressed (as listed above), and describe to measures taken.
A142: 142
A143: 143
A144: 144 | B144: <Please insert name of incentivised ANSP> | C144: Was there an incentive scheme applied? | D144: Please select your answer
A145: 145 | C145: Type of incentive scheme | D145: Please select the appropriate level
A146: 146
A147: 147 | C147: What was the required target for the incentive?
A148: 148 | C148: What was the verified actual value achieved?
A149: 149 | C149: What was the percentage of bonus(+)/penalties(-)?
A150: 150 | C150: What was the amount in national currency (in nominal terms) of bonus(+)/penalties(-)?
A151: 151
A152: 152 | C152: Justification
A153: 153
A154: 154
A155: 155 | C155: Description of methodology used to verify actual value
A156: 156
A157: 157
A158: 158 | C158: Please provide the number of the compliance issue addressed (as listed above), and describe to measures taken.
A159: 159
A160: 160
A161: 161 | B161: <Please insert name of incentivised ANSP> | C161: Was there an incentive scheme applied? | D161: Please select your answer
A162: 162 | C162: Type of incentive scheme | D162: Please select the appropriate level
A163: 163
A164: 164 | C164: What was the required target for the incentive?
A165: 165 | C165: What was the verified actual value achieved?
A166: 166 | C166: What was the percentage of bonus(+)/penalties(-)?
A167: 167 | C167: What was the amount in national currency (in nominal terms) of bonus(+)/penalties(-)?
A168: 168
A169: 169 | C169: Justification
A170: 170
A171: 171
A172: 172 | C172: Description of methodology used to verify actual value
A173: 173
A174: 174
A175: 175 | C175: Please provide the number of the compliance issue addressed (as listed above), and describe to measures taken.
A176: 176
A177: 177
A178: 178
A179: 179

Sheet 3.2.1. Capacity - ERT
A1: 1 | B1: Estonia | C1: 2023
A2: 2 | B2: 3.2 - Capacity
A3: 3
A4: 4 | B4: 3.2.1 - Capacity (En-route)
A5: 5
A6: 6 | B6: ANSP #1 | C6: EANS
A7: 7 | B7: Calendar year | C7: 2023
A8: 8
A9: 9 | B9: Pivot value for the calendar year (minutes of ATFM delay per flight)
A10: 10 | B10: Basis for the annual setting of pivot values | C10: Click to select
A11: 11 | B11: If modulated: modulation mechanism of pivot values | C11: Click to select
A12: 12 | B12: Additional comments on the definition of the pivot value for the calendar year
A13: 13
A14: 14 | B14: Dead band Δ (symmetric range) | C14: Select
A15: 15 | B15: Max bonus (≤2%) | C15: % of DC
A16: 16 | B16: Max penalty (≥ Max bonus) | C16: % of DC
A17: 17 | B17: Alert threshold (Δ Ref. value in fraction of min) | C17: =C14 -> Select
A18: 18 | B18: Total determined cost on which the incentives are calculated | C18: nominal/national currency | F18: Ranges | G18: Lower | H18: Upper
A19: 19 | B19: Financial advantages / disadvantages | C19: Dead band range | D19: ="["&_xlfn.IFS(AND(C14="fraction of min",D14>D17),"The dead band cannot be greater than the alert threshold!",AND(C14="%",D14*C9>D17),"The dead band cannot be greater than the alert threshold!", C14="fraction of min",ROUND(C9-MIN(D14,C9),3)&" - "&ROUND(C9+D14,3),C14="%",ROUND(C9*(1-D14),3)&" - "&ROUND(C9*(1+D14),3),C14="Select","Please select an option for the dead band")& "]" -> [Please select an option for the dead band] | F19: Dead band | G19: =_xlfn.IFNA(_xlfn.IFS(C14="fraction of min",ROUND(C9-MIN(D14,C9),3),C14="%",ROUND(C9*(1-D14),3)),"") ->  | H19: =_xlfn.IFNA(_xlfn.IFS(C14="fraction of min",ROUND(C9+D14,3),C14="%",ROUND(C9*(1+D14),3)),"") -> 
A20: 20 | C20: Bonus sliding range | D20: ="[" & _xlfn.IFS(C14="fraction of min",ROUND(C9-MIN(D17,C9),3)&" - " & ROUND(C9-D14,3),C14="%",ROUND(C9-MIN(D17,C9),3) & " - " & ROUND(C9*(1-D14),3),C14="Select","Please select an option for the dead band") & "]" -> [Please select an option for the dead band] | F20: Bonus | G20: =MAX(C9-D17,0) -> 0 | H20: =G19 -> 
A21: 21 | C21: Penalty sliding range | D21: ="[" & _xlfn.IFS(C14="fraction of min",ROUND(C9+D14,3)&" - " & ROUND(C9+D17,3),C14="%",ROUND(C9*(1+D14),3) & " - " & ROUND(C9+D17,3),C14="Select","Please select an option for the dead band") & "]" -> [Please select an option for the dead band] | F21: Penalty | G21: =H19 ->  | H21: =C9+D17 -> 0
A22: 22
A23: 23 | B23: Verified actual value achieved for the calendar year (minutes of ATFM delay per flight)
A24: 24 | B24: Methodology used to compute the actual value achieve, if modulated or any correction was made
A25: 25
A26: 26 | B26: Financial incentive computed by the NSA (+bonus/-penalty) | C26: nominal/national currency
A27: 27 | B27: Automatically computed financial incentive value for verification purposes (+bonus/-penalty) | C27: nominal/national currency | D27: =_xlfn.IFS(C23<=G20,D18*D15,C23<H20,((H20-C23)/(H20-G20))*D15*D18,C23<G21,0,C23<H21,((C23-G21)/(H21-G21))*-D16*D18,C23>=H21,-D16*D18) -> 0
A28: 28
A29: 29
A30: 30 | B30: ANSP #2
A31: 31 | B31: Calendar year | C31: 2023
A32: 32
A33: 33 | B33: Pivot value for the calendar year (minutes of ATFM delay per flight)
A34: 34 | B34: Basis for the annual setting of pivot values | C34: Click to select
A35: 35 | B35: If modulated: modulation mechanism of pivot values | C35: Click to select
A36: 36 | B36: Additional comments on the definition of the pivot value for the calendar year
A37: 37
A38: 38 | B38: Dead band Δ (symmetric range) | C38: Select
A39: 39 | B39: Max bonus (≤2%) | C39: % of DC
A40: 40 | B40: Max penalty (≥ Max bonus) | C40: % of DC
A41: 41 | B41: Alert threshold (Δ Ref. value in fraction of min) | C41: =C38 -> Select
A42: 42 | B42: Total determined cost on which the incentives are calculated | C42: nominal/national currency | F42: Ranges | G42: Lower | H42: Upper
A43: 43 | B43: Financial advantages / disadvantages | C43: Dead band range | D43: ="["&_xlfn.IFS(AND(C38="fraction of min",D38>D41),"The dead band cannot be greater than the alert threshold!",AND(C38="%",D38*C33>D41),"The dead band cannot be greater than the alert threshold!", C38="fraction of min",ROUND(C33-MIN(D38,C33),3)&" - "&ROUND(C33+D38,3),C38="%",ROUND(C33*(1-D38),3)&" - "&ROUND(C33*(1+D38),3),C38="Select","Please select an option for the dead band")& "]" -> [Please select an option for the dead band] | F43: Dead band | G43: =_xlfn.IFNA(_xlfn.IFS(C38="fraction of min",ROUND(C33-MIN(D38,C33),3),C38="%",ROUND(C33*(1-D38),3)),"") ->  | H43: =_xlfn.IFNA(_xlfn.IFS(C38="fraction of min",ROUND(C33+D38,3),C38="%",ROUND(C33*(1+D38),3)),"") -> 
A44: 44 | C44: Bonus sliding range | D44: ="[" & _xlfn.IFS(C38="fraction of min",ROUND(C33-MIN(D41,C33),3)&" - " & ROUND(C33-D38,3),C38="%",ROUND(C33-MIN(D41,C33),3) & " - " & ROUND(C33*(1-D38),3),C38="Select","Please select an option for the dead band") & "]" -> [Please select an option for the dead band] | F44: Bonus | G44: =MAX(C33-D41,0) -> 0 | H44: =G43 -> 
A45: 45 | C45: Penalty sliding range | D45: ="[" & _xlfn.IFS(C38="fraction of min",ROUND(C33+D38,3)&" - " & ROUND(C33+D41,3),C38="%",ROUND(C33*(1+D38),3) & " - " & ROUND(C33+D41,3),C38="Select","Please select an option for the dead band") & "]" -> [Please select an option for the dead band] | F45: Penalty | G45: =H43 ->  | H45: =C33+D41 -> 0
A46: 46
A47: 47 | B47: Verified actual value achieved for the calendar year (minutes of ATFM delay per flight)
A48: 48 | B48: Methodology used to compute the actual value achieve, if modulated or any correction was made
A49: 49
A50: 50 | B50: Financial incentive computed by the NSA (+bonus/-penalty) | C50: nominal/national currency
A51: 51 | B51: Automatically computed financial incentive value for verification purposes (+bonus/-penalty) | C51: nominal/national currency | D51: =_xlfn.IFS(C47<=G44,D42*D39,C47<H44,((H44-C47)/(H44-G44))*D39*D42,C47<G45,0,C47<H45,((C47-G45)/(H45-G45))*-D40*D42,C47>=H45,-D40*D42) -> 0
A52: 52

Sheet 3.2.2. Capacity - TERM
A1: 1 | B1: Estonia | C1: 2023
A2: 2 | B2: 3.2 - Capacity
A3: 3
A4: 4 | B4: 3.2.2 - Capacity (Terminal)
A5: 5
A6: 6 | B6: State | C6: Estonia
A7: 7 | B7: Calendar year | C7: 2023
A8: 8
A9: 9 | B9: Pivot value for the calendar year (minutes of ATFM delay per flight)
A10: 10 | B10: Basis for the annual setting of pivot values | C10: Click to select
A11: 11 | B11: If modulated: modulation mechanism of pivot values | C11: Click to select
A12: 12 | B12: Additional comments on the definition of the pivot value for the calendar year
A13: 13
A14: 14 | B14: Dead band Δ | C14: Select
A15: 15 | B15: Bonus/penalty range (% of pivot value) | C15: % | D15: ±50%
A16: 16 | B16: Max bonus (≤2%) | C16: % of DC
A17: 17 | B17: Max penalty (≥ Max bonus) | C17: % of DC
A18: 18 | B18: Total determined cost on which the incentives are calculated | C18: nominal/national currency | F18: Ranges | G18: Lower | H18: Upper
A19: 19 | B19: Financial advantages / disadvantages | C19: Dead band range | D19: ="["&_xlfn.IFS(AND(C14="fraction of min",D14>D15*C9),"The dead band cannot be greater than the bonus/penalty range!",AND(C14="%",D14*C9>D15*C9),"The dead band cannot be greater than the bonus/penalty range!", C14="fraction of min",ROUND(C9-MIN(D14,C9),3)&" - "&ROUND(C9+D14,3),C14="%",ROUND(C9*(1-D14),3)&" - "&ROUND(C9*(1+D14),3),C14="Select","Please select an option for the dead band")& "]" -> [Please select an option for the dead band] | F19: Dead band | G19: =_xlfn.IFNA(_xlfn.IFS(C14="fraction of min",ROUND(C9-MIN(D14,C9),3),C14="%",ROUND(C9*(1-D14),3)),"") ->  | H19: =_xlfn.IFNA(_xlfn.IFS(C14="fraction of min",ROUND(C9+D14,3),C14="%",ROUND(C9*(1+D14),3)),"") -> 
A20: 20 | C20: Bonus sliding range | D20: ="[" & _xlfn.IFS(C14="fraction of min",ROUND(C9*(1-D15),3)&" - " & ROUND(C9-D14,3),C14="%",ROUND(C9*(1-D15),3) & " - " & ROUND(C9*(1-D14),3),C14="Select","Please select an option for the dead band") & "]" -> [Please select an option for the dead band] | F20: Bonus | G20: =C9*(1-D15) -> 0 | H20: =G19 -> 
A21: 21 | C21: Penalty sliding range | D21: ="[" & _xlfn.IFS(C14="fraction of min",ROUND(C9+D14,3)&" - " & ROUND(C9*(1+D15),3),C14="%",ROUND(C9*(1+D14),3) & " - " & ROUND(C9*(1+D15),3),C14="Select","Please select an option for the dead band") & "]" -> [Please select an option for the dead band] | F21: Penalty | G21: =H19 ->  | H21: =C9*(1+D15) -> 0
A22: 22
A23: 23 | B23: Verified actual value achieved for the calendar year (minutes of ATFM delay per flight)
A24: 24 | B24: Methodology used to compute the actual value achieve, if modulated or any correction was made
A25: 25
A26: 26 | B26: Financial incentive computed by the NSA (+bonus/-penalty) | C26: nominal/national currency
A27: 27 | B27: Automatically computed financial incentive value for verification purposes (+bonus/-penalty) | C27: nominal/national currency | D27: =_xlfn.IFS(C23<=G20,D16*D18,C23<H20,((H20-C23)/(H20-G20))*D18*D16,C23<G21,0,C23<H21,((C23-G21)/(H21-G21))*-D17*D18,C23>=H21,-D17*D18) -> 0
A28: 28
A29: 29
A30: 30 | B30: Explain how the bonus and penalties are going to be apportioned between the different terminal charging zones and ANSPs providing services in each of them
A31: 31
A32: 32

Sheet 3.3. Additional incentives
A1: 1 | B1: Estonia | C1: 2023
A2: 2 | B2: 3.3 - Additional Incentive Schemes
A3: 3
A4: 4 | B4: Click to Select the number of incentive schemes
A5: 5
A6: 6 | B6: <Please insert name of incentivised ANSP> | C6: Scope of incentive scheme | D6: Please select the appropriate level
A7: 7 | C7: Link with KPAs | D7: Please select your answer
A8: 8 | C8: Type of incentive scheme applied? | D8: Please select your answer
A9: 9
A10: 10 | C10: Description of the incentive scheme
A11: 11 | C11: What was the required target for the incentive?
A12: 12 | C12: What was the verified actual value achieved?
A13: 13 | C13: If financial: What was the amount in national currency (in nominal terms) of bonus(+)/penalties(-)?
A14: 14 | C14: If non-financial: What was the incentive measure?
A15: 15
A16: 16 | C16: Justification
A17: 17
A18: 18
A19: 19 | C19: Description of methodology used to verify actual value
A20: 20
A21: 21
A22: 22 | B22: <Please insert name of incentivised ANSP> | C22: Scope of incentive scheme | D22: Please select the appropriate level
A23: 23 | C23: Link with KPAs | D23: Please select your answer
A24: 24 | C24: Type of incentive scheme applied? | D24: Please select your answer
A25: 25
A26: 26 | C26: Description of the incentive scheme
A27: 27 | C27: What was the required target for the incentive?
A28: 28 | C28: What was the verified actual value achieved?
A29: 29 | C29: If financial: What was the amount in national currency (in nominal terms) of bonus(+)/penalties(-)?
A30: 30 | C30: If non-financial: What was the incentive measure?
A31: 31
A32: 32 | C32: Justification
A33: 33
A34: 34
A35: 35 | C35: Description of methodology used to verify actual value
A36: 36
A37: 37
A38: 38 | B38: <Please insert name of incentivised ANSP> | C38: Scope of incentive scheme | D38: Please select the appropriate level
A39: 39 | C39: Link with KPAs | D39: Please select your answer
A40: 40 | C40: Type of incentive scheme applied? | D40: Please select your answer
A41: 41
A42: 42 | C42: Description of the incentive scheme
A43: 43 | C43: What was the required target for the incentive?
A44: 44 | C44: What was the verified actual value achieved?
A45: 45 | C45: If financial: What was the amount in national currency (in nominal terms) of bonus(+)/penalties(-)?
A46: 46 | C46: If non-financial: What was the incentive measure?
A47: 47
A48: 48 | C48: Justification
A49: 49
A50: 50
A51: 51 | C51: Description of methodology used to verify actual value
A52: 52
A53: 53
A54: 54 | B54: <Please insert name of incentivised ANSP> | C54: Scope of incentive scheme | D54: Please select the appropriate level
A55: 55 | C55: Link with KPAs | D55: Please select your answer
A56: 56 | C56: Type of incentive scheme applied? | D56: Please select your answer
A57: 57
A58: 58 | C58: Description of the incentive scheme
A59: 59 | C59: What was the required target for the incentive?
A60: 60 | C60: What was the verified actual value achieved?
A61: 61 | C61: If financial: What was the amount in national currency (in nominal terms) of bonus(+)/penalties(-)?
A62: 62 | C62: If non-financial: What was the incentive measure?
A63: 63
A64: 64 | C64: Justification
A65: 65
A66: 66
A67: 67 | C67: Description of methodology used to verify actual value
A68: 68
A69: 69
A70: 70 | B70: <Please insert name of incentivised ANSP> | C70: Scope of incentive scheme | D70: Please select the appropriate level
A71: 71 | C71: Link with KPAs | D71: Please select your answer
A72: 72 | C72: Type of incentive scheme applied? | D72: Please select your answer
A73: 73
A74: 74 | C74: Description of the incentive scheme
A75: 75 | C75: What was the required target for the incentive?
A76: 76 | C76: What was the verified actual value achieved?
A77: 77 | C77: If financial: What was the amount in national currency (in nominal terms) of bonus(+)/penalties(-)?
A78: 78 | C78: If non-financial: What was the incentive measure?
A79: 79
A80: 80 | C80: Justification
A81: 81
A82: 82
A83: 83 | C83: Description of methodology used to verify actual value
A84: 84
A85: 85
A86: 86 | B86: <Please insert name of incentivised ANSP> | C86: Scope of incentive scheme | D86: Please select the appropriate level
A87: 87 | C87: Link with KPAs | D87: Please select your answer
A88: 88 | C88: Type of incentive scheme applied? | D88: Please select your answer
A89: 89
A90: 90 | C90: Description of the incentive scheme
A91: 91 | C91: What was the required target for the incentive?
A92: 92 | C92: What was the verified actual value achieved?
A93: 93 | C93: If financial: What was the amount in national currency (in nominal terms) of bonus(+)/penalties(-)?
A94: 94 | C94: If non-financial: What was the incentive measure?
A95: 95
A96: 96 | C96: Justification
A97: 97
A98: 98
A99: 99 | C99: Description of methodology used to verify actual value
A100: 100
A101: 101
A102: 102 | B102: <Please insert name of incentivised ANSP> | C102: Scope of incentive scheme | D102: Please select the appropriate level
A103: 103 | C103: Link with KPAs | D103: Please select your answer
A104: 104 | C104: Type of incentive scheme applied? | D104: Please select your answer
A105: 105
A106: 106 | C106: Description of the incentive scheme
A107: 107 | C107: What was the required target for the incentive?
A108: 108 | C108: What was the verified actual value achieved?
A109: 109 | C109: If financial: What was the amount in national currency (in nominal terms) of bonus(+)/penalties(-)?
A110: 110 | C110: If non-financial: What was the incentive measure?
A111: 111
A112: 112 | C112: Justification
A113: 113
A114: 114
A115: 115 | C115: Description of methodology used to verify actual value
A116: 116
A117: 117
A118: 118 | B118: <Please insert name of incentivised ANSP> | C118: Scope of incentive scheme | D118: Please select the appropriate level
A119: 119 | C119: Link with KPAs | D119: Please select your answer
A120: 120 | C120: Type of incentive scheme applied? | D120: Please select your answer
A121: 121
A122: 122 | C122: Description of the incentive scheme
A123: 123 | C123: What was the required target for the incentive?
A124: 124 | C124: What was the verified actual value achieved?
A125: 125 | C125: If financial: What was the amount in national currency (in nominal terms) of bonus(+)/penalties(-)?
A126: 126 | C126: If non-financial: What was the incentive measure?
A127: 127
A128: 128 | C128: Justification
A129: 129
A130: 130
A131: 131 | C131: Description of methodology used to verify actual value
A132: 132
A133: 133
A134: 134 | B134: <Please insert name of incentivised ANSP> | C134: Scope of incentive scheme | D134: Please select the appropriate level
A135: 135 | C135: Link with KPAs | D135: Please select your answer
A136: 136 | C136: Type of incentive scheme applied? | D136: Please select your answer
A137: 137
A138: 138 | C138: Description of the incentive scheme
A139: 139 | C139: What was the required target for the incentive?
A140: 140 | C140: What was the verified actual value achieved?
A141: 141 | C141: If financial: What was the amount in national currency (in nominal terms) of bonus(+)/penalties(-)?
A142: 142 | C142: If non-financial: What was the incentive measure?
A143: 143
A144: 144 | C144: Justification
A145: 145
A146: 146
A147: 147 | C147: Description of methodology used to verify actual value
A148: 148
A149: 149
A150: 150 | B150: <Please insert name of incentivised ANSP> | C150: Scope of incentive scheme | D150: Please select the appropriate level
A151: 151 | C151: Link with KPAs | D151: Please select your answer
A152: 152 | C152: Type of incentive scheme applied? | D152: Please select your answer
A153: 153
A154: 154 | C154: Description of the incentive scheme
A155: 155 | C155: What was the required target for the incentive?
A156: 156 | C156: What was the verified actual value achieved?
A157: 157 | C157: If financial: What was the amount in national currency (in nominal terms) of bonus(+)/penalties(-)?
A158: 158 | C158: If non-financial: What was the incentive measure?
A159: 159
A160: 160 | C160: Justification
A161: 161
A162: 162
A163: 163 | C163: Description of methodology used to verify actual value
A164: 164
A165: 165
A166: 166
A167: 167
A168: 168
A169: 169
A170: 170
A171: 171
A172: 172
A173: 173
A174: 174
A175: 175
A176: 176
A177: 177
A178: 178
A179: 179
A180: 180
A181: 181
A182: 182
A183: 183
A184: 184
A185: 185
A186: 186
A187: 187
A188: 188
A189: 189
A190: 190
A191: 191
A192: 192
A193: 193
A194: 194
A195: 195
A196: 196
A197: 197
A198: 198
A199: 199
A200: 200
... 62 more rows

Sheet 4. INVESTMENTS >>>
A1: NO_PRINT | B1: Estonia | C1: 2023
A2: 2 | B2: SECTION 4: INVESTMENTS

Sheet 4. Investments - 1
B1: Estonia | C1: 2023
A2: 2 | B2: 4 - INVESTMENTS
A3: 3
A4: 4
A5: 5 | B5: EANS
A6: 6
A7: 7 | B7: Currency | D7: EUR
A8: 8
A9: 9 | B9: Investment plan as per RP3 performance plan
A10: 10
A11: 11 | B11: Number of new major investments (PP) | F11: 0
A12: 12
A13: 13 | B13: # | C13: Name of new major investment (i.e. above 5 M€ equivalent in national currency) | D13: Total value of the asset (capex or contractual leasing value) (in national currency) | E13: Value of the assets allocated to ANS in the scope of the PP (in national currency) | F13: Determined costs of investment (i.e. depreciation, cost of capital and cost of leasing) (in national currency) | K13: Lifecycle (Amortisation period in years) | L13: Allocation (%)* | N13: Planned date of entry into operation | O13: Actual costs of investment (i.e. depreciation, cost of capital and cost of leasing) (in national currency)
A14: 14 | B14: # | F14: 2020 | G14: 2021 | H14: 2022 | I14: 2023 | J14: 2024 | L14: Enroute | M14: Terminal | O14: 2020 | P14: 2021 | Q14: 2022 | R14: 2023 | S14: 2024
A15: 15 | B15: 1
A16: 16 | B16: 2
A17: 17 | B17: 3
A18: 18 | B18: 4
A19: 19 | B19: 5
A20: 20 | B20: 6
A21: 21 | B21: 7
A22: 22 | B22: 8
A23: 23 | B23: 9
A24: 24 | B24: 10
A25: 25 | B25: 11
A26: 26 | B26: 12
A27: 27 | B27: 13
A28: 28 | B28: 14
A29: 29 | B29: 15
A30: 30 | B30: 16
A31: 31 | B31: 17
A32: 32 | B32: 18
A33: 33 | B33: 19
A34: 34 | B34: 20
A35: 35
A36: 36 | B36: Sub-total of new major investments above (1) | D36: 0 | E36: 0 | F36: 0 | G36: 0 | H36: 0 | I36: 0 | J36: 0 | O36: 0 | P36: 0 | Q36: 0 | R36: =SUM(R15:R34) -> 0
A37: 37 | B37: Sub-total other new investments (2) | D37: 24,005,150 | E37: 24,005,150 | F37: 0 | G37: 76,854 | H37: 935,617 | I37: 2,928,594 | J37: 3,591,579 | O37: 0 | P37: 305,485 | Q37: 946,154
A38: 38 | B38: Sub-total existing investments (3) | F38: 6,423,367 | G38: 5,814,196 | H38: 3,850,920 | I38: 2,183,174 | J38: 1,801,232 | O38: 6,423,367 | P38: 6,079,549 | Q38: 3,894,289
A39: 39 | B39: 0 | F39: 0 | G39: 0 | H39: 0 | I39: 0 | J39: 0 | O39: 0 | P39: 0 | Q39: 0 | R39: 0 | S39: 0
A40: 40 | B40: Total new and existing investments (1) + (2) + (3) | D40: 24,005,150 | E40: 24,005,150 | F40: 6,423,367 | G40: 5,891,050 | H40: 4,786,537 | I40: 5,111,768 | J40: 5,392,811 | O40: 6,423,367 | P40: 6,385,034 | Q40: 4,840,444 | R40: =SUM(R36:R39) -> 0
A41: 41 | B41: * The total % enroute+terminal should be equal to 100%.
A42: 42 | B42: Has the ANSP made progress on the implementation of major investments in accordance with the schedule contained in the performance plan? | O42: Click to select
A43: 43
A44: 44 | B44: Please indicate what were the changes related to the planned schedule and for which major investments did those changes apply
A45: 45
A46: 46
A47: 47
A48: 48
A49: 49 | B49: In case of changes to the implementation schedule, please analyze the related justifications provided by the ANSP for each major investment
A50: 50
A51: 51
A52: 52
A53: 53
A54: 54 | B54: Additional investments not foreseen as part of the performance plan and requested by the ANSP in accordance with Art. 28(4) of IR 2019/317.
A55: 55
A56: 56
A57: 57 | B57: Number of additional new major investments 2020-2021 | F57: 0
A58: 58
A59: 59 | B59: # | C59: Name of additional new major investment (i.e. above 5 M€ equivalent in national currency) | D59: Total value of the asset (capex or contractual leasing value) (in national currency) | E59: Value of the assets allocated to ANS in the scope of the PP (in national currency) | F59: Determined costs of investment (i.e. depreciation, cost of capital and cost of leasing) (in national currency) | K59: Lifecycle (Amortisation period in years) | L59: Allocation (%)* | N59: Date of entry into operation | O59: Actual costs of investment (i.e. depreciation, cost of capital and cost of leasing) (in national currency)
A60: 60 | B60: # | F60: 2020 | G60: 2021 | H60: 2022 | I60: 2023 | J60: 2024 | L60: Enroute | M60: Terminal | O60: 2020 | P60: 2021 | Q60: 2022 | R60: 2023 | S60: 2024
A61: 61 | B61: 1
A62: 62 | B62: 2
A63: 63 | B63: 3
A64: 64 | B64: 4
A65: 65 | B65: 5
A66: 66 | B66: 6
A67: 67 | B67: 7
A68: 68 | B68: 8
A69: 69 | B69: 9
A70: 70 | B70: 10
A71: 71 | B71: 11
A72: 72 | B72: 12
A73: 73 | B73: 13
A74: 74 | B74: 14
A75: 75 | B75: 15
A76: 76 | B76: 16
A77: 77 | B77: 17
A78: 78 | B78: 18
A79: 79 | B79: 19
A80: 80 | B80: 20
A81: 81
A82: 82 | B82: Sub-total of additional new major investments above (1) | D82: =SUM(D61:D80) -> 0 | E82: =SUM(E61:E80) -> 0 | H82: =SUM(H61:H80) -> 0 | I82: =SUM(I61:I80) -> 0 | J82: =SUM(J61:J80) -> 0 | P82: =SUM(P61:P80) -> 0 | Q82: =SUM(Q61:Q80) -> 0 | R82: =SUM(R61:R80) -> 0
A83: 83 | B83: * The total % enroute+terminal should be equal to 100%.
A84: 84
A85: 85
A86: 86
A87: 87
A88: 88 | B88: Number of additional new major investments 2022 | F88: 0
A89: 89
A90: 90 | B90: # | C90: Name of additional new major investment (i.e. above 5 M€ equivalent in national currency) | D90: Total value of the asset (capex or contractual leasing value) (in national currency) | E90: Value of the assets allocated to ANS in the scope of the PP (in national currency) | F90: Determined costs of investment (i.e. depreciation, cost of capital and cost of leasing) (in national currency) | K90: Lifecycle (Amortisation period in years) | L90: Allocation (%)* | N90: Date of entry into operation | O90: Actual costs of investment (i.e. depreciation, cost of capital and cost of leasing) (in national currency)
A91: 91 | B91: # | F91: 2020 | G91: 2021 | H91: 2022 | I91: 2023 | J91: 2024 | L91: Enroute | M91: Terminal | O91: 2020 | P91: 2021 | Q91: 2022 | R91: 2023 | S91: 2024
A92: 92 | B92: 1
A93: 93 | B93: 2
A94: 94 | B94: 3
A95: 95 | B95: 4
A96: 96 | B96: 5
A97: 97 | B97: 6
A98: 98 | B98: 7
A99: 99 | B99: 8
A100: 100 | B100: 9
A101: 101 | B101: 10
A102: 102 | B102: 11
A103: 103 | B103: 12
A104: 104 | B104: 13
A105: 105 | B105: 14
A106: 106 | B106: 15
A107: 107 | B107: 16
A108: 108 | B108: 17
A109: 109 | B109: 18
A110: 110 | B110: 19
A111: 111 | B111: 20
A112: 112
A113: 113 | B113: Sub-total of additional new major investments above (1) | D113: =SUM(D92:D111) -> 0 | E113: =SUM(E92:E111) -> 0 | I113: =SUM(I92:I111) -> 0 | J113: =SUM(J92:J111) -> 0 | Q113: =SUM(Q92:Q111) -> 0 | R113: =SUM(R92:R111) -> 0
A114: 114 | B114: * The total % enroute+terminal should be equal to 100%.
A115: 115
A116: 116
A117: 117
A118: 118
A119: 119 | B119: Number of additional new major investments 2023
A120: 120
A121: 121 | B121: # | C121: Name of additional new major investment (i.e. above 5 M€ equivalent in national currency) | D121: Total value of the asset (capex or contractual leasing value) (in national currency) | E121: Value of the assets allocated to ANS in the scope of the PP (in national currency) | F121: Determined costs of investment (i.e. depreciation, cost of capital and cost of leasing) (in national currency) | K121: Lifecycle (Amortisation period in years) | L121: Allocation (%)* | N121: Date of entry into operation | O121: Actual costs of investment (i.e. depreciation, cost of capital and cost of leasing) (in national currency)
A122: 122 | B122: # | F122: 2020 | G122: 2021 | H122: 2022 | I122: 2023 | J122: 2024 | L122: Enroute | M122: Terminal | O122: 2020 | P122: 2021 | Q122: 2022 | R122: 2023 | S122: 2024
A123: 123 | B123: 1
A124: 124 | B124: 2
A125: 125 | B125: 3
A126: 126 | B126: 4
A127: 127 | B127: 5
A128: 128 | B128: 6
A129: 129 | B129: 7
A130: 130 | B130: 8
A131: 131 | B131: 9
A132: 132 | B132: 10
A133: 133 | B133: 11
A134: 134 | B134: 12
A135: 135 | B135: 13
A136: 136 | B136: 14
A137: 137 | B137: 15
A138: 138 | B138: 16
A139: 139 | B139: 17
A140: 140 | B140: 18
A141: 141 | B141: 19
A142: 142 | B142: 20
A143: 143
A144: 144 | B144: Sub-total of additional new major investments above (1) | D144: =SUM(D123:D142) -> 0 | E144: =SUM(E123:E142) -> 0 | H144: =SUM(H123:H142) -> 0 | I144: =SUM(I123:I142) -> 0 | J144: =SUM(J123:J142) -> 0 | P144: =SUM(P123:P142) -> 0
A145: 145 | B145: * The total % enroute+terminal should be equal to 100%.
A146: 146
A147: 147
A148: 148
A149: 149
A150: 150 | B150: Number of additional new major investments 2023 | F150: Click to select
A151: 151
A152: 152 | B152: # | C152: Name of additional new major investment (i.e. above 5 M€ equivalent in national currency) | D152: Total value of the asset (capex or contractual leasing value) (in national currency) | E152: Value of the assets allocated to ANS in the scope of the PP (in national currency) | F152: Determined costs of investment (i.e. depreciation, cost of capital and cost of leasing) (in national currency) | K152: Lifecycle (Amortisation period in years) | L152: Allocation (%)* | N152: Date of entry into operation | O152: Actual costs of investment (i.e. depreciation, cost of capital and cost of leasing) (in national currency)
A153: 153 | B153: # | F153: 2020 | G153: 2021 | H153: 2022 | I153: 2023 | J153: 2024 | L153: Enroute | M153: Terminal | O153: 2020 | P153: 2021 | Q153: 2022 | R153: 2023 | S153: 2024
A154: 154 | B154: 1
A155: 155 | B155: 2
A156: 156 | B156: 3
A157: 157 | B157: 4
A158: 158 | B158: 5
A159: 159 | B159: 6
A160: 160 | B160: 7
A161: 161 | B161: 8
A162: 162 | B162: 9
A163: 163 | B163: 10
A164: 164 | B164: 11
A165: 165 | B165: 12
A166: 166 | B166: 13
A167: 167 | B167: 14
A168: 168 | B168: 15
A169: 169 | B169: 16
A170: 170 | B170: 17
A171: 171 | B171: 18
A172: 172 | B172: 19
A173: 173 | B173: 20
A174: 174
A175: 175 | B175: Sub-total of additional new major investments above (1) | D175: =SUM(D154:D173) -> 0 | E175: =SUM(E154:E173) -> 0 | J175: =SUM(J154:J173) -> 0 | R175: =SUM(R154:R173) -> 0
A176: 176 | B176: * The total % enroute+terminal should be equal to 100%.
A177: 177
A178: 178
A179: 179
A180: 180 | B180: Details of additional new major investments not foreseen as part of the performance plan
A181: 181
A182: 182 | B182: Name of New Major Additional investment 1 | E182: =C154 -> 0 | Q182: Total value of the asset | S182: =D154 -> 0
A183: 183 | B183: Description of the asset
A184: 184 | B184: The investment is mandated by a SES Regulation (i.e. PCP/CP1/Interoperability)? | E184: Click to select | S184: Yes
A185: 185 | B185: Ref. to the Regulation and, if funded through Union assistance programmes, ref. to the relevant grant agreement.
A186: 186 | B186: Specify links to the PCP/CP1/Interoperability Regulations (add the sub-AF number(s) under each relevant box) | E186: AF1 | F186: AF2 | G186: AF2 | H186: AF2 | I186: AF2 | J186: AF2 | K186: AF3 | L186: AF4 | M186: AF5 | N186: AF6 | O186: Interoperability | P186: Interoperability | Q186: Interoperability | R186: Interoperability | S186: Interoperability
A187: 187
A188: 188 | B188: Level of impact of the investment | E188: Network
A189: 189 | E189: Local
A190: 190 | E190: Non-performance
A191: 191 | B191: Quantitative impact per KPA | E191: Safety
A192: 192 | E192: Environment
A193: 193 | E193: Capacity
A194: 194 | E194: Cost Efficiency
A195: 195 | B195: Benefits for airspace users and results of the consultation of airspace users' representatives
A196: 196 | B196: Results of the consultation of airspace users' representatives
A197: 197 | B197: Joint investment / partnership | E197: Click to select
A198: 198 | B198: Investment in ATM systems | E198: Click to select
A199: 199 | B199: If investment in ATM system, type? | E199: Click to select
A200: 200 | B200: If investment in ATM system, Reference to European ATM Master Plan / PCP / CP1 | E200: Click to select
... 405 more rows

Sheet 5. MILITARY DIMENSION >>>
A1: NO_PRINT | B1: Estonia | C1: 2023
A2: 2 | B2: SECTION5: MILITARY DIMENSION OF THE PLAN

Sheet 5. Military Dimension
A1: 1 | B1: Estonia | C1: 2023
A2: 2 | B2: 5 - MILITARY DIMENSION OF THE PLAN
A3: 3
A4: 4 | B4: Environment
A5: 5
A6: 6 | B6: Provide analysis and evaluate the scale of the impact of military dimension on the environment KPA. Please highlight the role of airspace design, procedures used in airspace reservation, interoperability of systems, information management, and specific local circumstances.
A7: 7
A8: 8
A9: 9
A10: 10
A11: 11 | B11: What measures have been implemeted or planned to improve the situation?
A12: 12
A13: 13
A14: 14
A15: 15
A16: 16 | B16: Capacity
A17: 17
A18: 18 | B18: Provide analysis and evaluate the scale of the impact of military dimension on the capacity KPA. Please highlight the role of airspace design, procedures used in airspace reservation, interoperability of systems, information management, and specific local circumstances.
A19: 19
A20: 20
A21: 21
A22: 22
A23: 23 | B23: What measures have been implemeted or planned to improve the situation?
A24: 24
A25: 25
A26: 26
A27: 27
A28: 28 | B28: Cost-efficiency
A29: 29
A30: 30 | B30: Provide analysis and evaluate the scale of the impact of military dimension on the cost-efficiency KPA. Please highlight what type of commercial/financial agreements exist between the ANSP(s) and the Military (if any).
A31: 31
A32: 32
A33: 33
A34: 34
A35: 35 | B35: Additional information related to Russia’s war of aggression against Ukraine
A36: 36
A37: 37 | B37: Please describe the changes in military operations directly related to Russia’s war of aggression against Ukraine.
A38: 38
A39: 39
A40: 40
A41: 41
A42: 42
A43: 43 | B43: Please describe if/how significant changes occurred in the definition/use of military airspaces.
A44: 44
A45: 45
A46: 46
A47: 47
A48: 48
A49: 49 | B49: Please describe if significant airspace blocks are/have been reserved for continuous military operations (i.e. being restricted from civilian traffic). Please describe the geographical location and volume of these airspace blocks (i.e. horizontal and vertical boundaries).
A50: 50
A51: 51
A52: 52

Sheet 6. ANNEXES >>>
A1: NO_PRINT | B1: Estonia | C1: 2023
A2: 2 | B2: SECTION 6: ANNEXES

Sheet 6. Annexes
A1: 1 | B1: Estonia | C1: 2023
A2: 2 | B2: 6 - ANNEXES
A3: 3
A4: 4 | B4: List of annexes
A5: 5
A6: 6
A7: 7
